Workbook

Sheet Simulations (3) (hidden)
A1: Année | B1: Mois | C1: Cotisation | D1: Cotisation | E1: Cotisation | F1: Intérêts 01 | G1: Intérêts 02 | H1: Intérêts 03 | I1: Cumul de | J1: Provision de | K1: Provision de | L1: Provision de | M1: FRAIS_01 | N1: FRAIS_02 | O1: FRAIS_03 | P1: Gains_01 | Q1: Gains_01 | R1: Gain_02 | U1: 5 ANS | V1: 10 ANS | W1: 15 ANS | X1: 20 ANS
D2: investie 01&02 | E2: investie 03 | I2: cotisations | J2: clôture 01 | K2: clôture 02 | L2: clôture 03 | T2: CAPITAL A TERME | U2: =SUM(C3:C62) -> 3936000
A3: 1 | B3: 1 | C3: =Prime_périodique -> 65600 | D3: =+C3*PI_1 -> 63632 | E3: =+C3*PI_3 -> 63632 | F3: =tm_1*D3 -> 208.3146098 | G3: =+tm_2*D3 -> 233.8354718 | H3: =+tm_3*E3 -> 259.2446446 | I3: =+C3 -> 65600 | J3: =D3*(1+tm_1) -> 63840.31461 | K3: =D3*(1+tm_2) -> 63865.83547 | L3: =E3*(1+tm_3) -> 63891.24464 | M3: =FV(Paramètres!$C$24,B3,-D3,,1)-FV(i_p_1,B3,-D3,,1)+(1-PI_1)*'Simulations (3)'!C3*B3 -> 916.152672 | N3: =FV(Paramètres!$D$24,B3,-D3,,1)-FV(i_p_2,B3,-D3,,1)+(1-PI_1)*'Simulations (3)'!C3*B3 -> 785.8697997 | O3: =FV(Paramètres!$E$24,B3,-E3,,1)-FV(i_p_3,B3,-E3,,1)+(1-PI_1)*'Simulations (3)'!C3*B3 -> 655.8475306 | P3: =+J3-I3 -> -1759.68539 | Q3: =+K3-I3 -> -1734.164528 | R3: =+L3-I3 -> -1708.755355 | T3: CUMUL COTISATION | U3: =SUM(C3:C62) -> 3936000
B4: =+B3+1 -> 2 | C4: =C3 -> 65600 | D4: 63632 | E4: 63632 | F4: =(D4+J3)*(tm_1) -> 417.3111875 | G4: =+tm_2*(D4+K3) -> 468.5302443 | H4: =+tm_3*(E4+L3) -> 519.545484 | I4: =+I3+C4 -> 131200 | J4: =(D4+J3)*(1+tm_1) -> 127889.6258 | K4: =(D4+K3)*(1+tm_2) -> 127966.3657 | L4: =(E4+L3)*(1+tm_3) -> 128042.7901 | M4: =FV(Paramètres!$C$24,B4,-D4,,1)-FV(i_p_1,B4,-D4,,1)+(1-PI_1)*'Simulations (3)'!C4*B4 -> 756.1838595 | N4: =FV(Paramètres!$D$24,B4,-D4,,1)-FV(i_p_2,B4,-D4,,1)+(1-PI_1)*'Simulations (3)'!C4*B4 -> 358.960044 | O4: =FV(Paramètres!$E$24,B4,-E4,,1)-FV(i_p_3,B4,-E4,,1)+(1-PI_1)*'Simulations (3)'!C4*B4 -> -38.20698538 | P4: =+J4-I4 -> -3310.374203 | Q4: =+K4-I4 -> -3233.634284 | R4: =+L4-I4 -> -3157.209871
B5: =+B4+1 -> 3 | C5: =C4 -> 65600 | D5: 63632 | E5: 63632 | F5: 626.9919655 | G5: 704.0874754 | H5: 780.9068212 | I5: =+I4+C5 -> 196800 | J5: 192148.6178 | K5: 192302.4532 | L5: 192455.6969 | M5: =FV(Paramètres!$C$24,B5,-D5,,1)-FV(i_p_1,B5,-D5,,1)+(1-PI_1)*'Simulations (3)'!C5*B5 -> -504.6725903 | N5: =FV(Paramètres!$D$24,B5,-D5,,1)-FV(i_p_2,B5,-D5,,1)+(1-PI_1)*'Simulations (3)'!C5*B5 -> -1312.076608 | O5: =FV(Paramètres!$E$24,B5,-E5,,1)-FV(i_p_3,B5,-E5,,1)+(1-PI_1)*'Simulations (3)'!C5*B5 -> -2120.867134 | P5: =+J5-I5 -> -4651.382237 | Q5: =+K5-I5 -> -4497.546808 | R5: =+L5-I5 -> -4344.30305
B6: 4 | C6: 65600 | D6: 63632 | E6: 63632 | F6: 837.3591839 | G6: 940.5103345 | H6: 1043.332977 | I6: 262400 | J6: 256617.9769 | K6: 256874.9635 | L6: 257131.0299 | M6: =FV(Paramètres!$C$24,B6,-D6,,1)-FV(i_p_1,B6,-D6,,1)+(1-PI_1)*'Simulations (3)'!C6*B6 -> -2891.684606 | N6: =FV(Paramètres!$D$24,B6,-D6,,1)-FV(i_p_2,B6,-D6,,1)+(1-PI_1)*'Simulations (3)'!C6*B6 -> -4259.301073 | O6: =FV(Paramètres!$E$24,B6,-E6,,1)-FV(i_p_3,B6,-E6,,1)+(1-PI_1)*'Simulations (3)'!C6*B6 -> -5631.814157 | P6: -5782.023053 | Q6: -5525.036474 | R6: -5268.970073
B7: 5 | C7: 65600 | D7: 63632 | E7: 63632 | F7: 1048.41509 | G7: 1177.802002 | H7: 1306.828289 | I7: 328000 | J7: 321298.392 | K7: 321684.7655 | L7: 322069.8582 | M7: =FV(Paramètres!$C$24,B7,-D7,,1)-FV(i_p_1,B7,-D7,,1)+(1-PI_1)*'Simulations (3)'!C7*B7 -> -6430.631869 | N7: =FV(Paramètres!$D$24,B7,-D7,,1)-FV(i_p_2,B7,-D7,,1)+(1-PI_1)*'Simulations (3)'!C7*B7 -> -8515.503784 | O7: =FV(Paramètres!$E$24,B7,-E7,,1)-FV(i_p_3,B7,-E7,,1)+(1-PI_1)*'Simulations (3)'!C7*B7 -> -10611.73119 | P7: -6701.607964 | Q7: -6315.234472 | R7: -5930.141784
B8: 6 | C8: 65600 | D8: 63632 | E8: 63632 | F8: 1260.161938 | G8: 1415.965672 | H8: 1571.397114 | I8: 393600 | J8: 386190.554 | K8: 386732.7312 | L8: 387273.2553 | M8: =FV(Paramètres!$C$24,B8,-D8,,1)-FV(i_p_1,B8,-D8,,1)+(1-PI_1)*'Simulations (3)'!C8*B8 -> -11147.81598 | N8: =FV(Paramètres!$D$24,B8,-D8,,1)-FV(i_p_2,B8,-D8,,1)+(1-PI_1)*'Simulations (3)'!C8*B8 -> -14114.22098 | O8: =FV(Paramètres!$E$24,B8,-E8,,1)-FV(i_p_3,B8,-E8,,1)+(1-PI_1)*'Simulations (3)'!C8*B8 -> -17102.32807 | P8: -7409.446026 | Q8: -6867.268799 | R8: -6326.74467
B9: 7 | C9: =Prime_périodique -> 65600 | D9: 63632 | E9: 63632 | F9: 1472.60199 | G9: 1655.004548 | H9: 1837.043825 | I9: 459200 | J9: 451295.156 | K9: 452019.7357 | L9: 452742.2992 | M9: =FV(Paramètres!$C$24,B9,-D9,,1)-FV(i_p_1,B9,-D9,,1)+(1-PI_1)*'Simulations (3)'!C9*B9 -> -17070.07083 | N9: =FV(Paramètres!$D$24,B9,-D9,,1)-FV(i_p_2,B9,-D9,,1)+(1-PI_1)*'Simulations (3)'!C9*B9 -> -21089.75136 | O9: =FV(Paramètres!$E$24,B9,-E9,,1)-FV(i_p_3,B9,-E9,,1)+(1-PI_1)*'Simulations (3)'!C9*B9 -> -25146.36683 | P9: -7904.844036 | Q9: -7180.264252 | R9: -6457.700845
B10: 8 | C10: 65600 | D10: 63632 | E10: 63632 | F10: 1685.737515 | G10: 1894.921846 | H10: 2103.772813 | I10: 524800 | J10: 516612.8935 | K10: 517546.6576 | L10: 518478.072 | M10: =FV(Paramètres!$C$24,B10,-D10,,1)-FV(i_p_1,B10,-D10,,1)+(1-PI_1)*'Simulations (3)'!C10*B10 -> -24224.77321 | N10: =FV(Paramètres!$D$24,B10,-D10,,1)-FV(i_p_2,B10,-D10,,1)+(1-PI_1)*'Simulations (3)'!C10*B10 -> -29477.1731 | O10: =FV(Paramètres!$E$24,B10,-E10,,1)-FV(i_p_3,B10,-E10,,1)+(1-PI_1)*'Simulations (3)'!C10*B10 -> -34787.68772 | P10: -8187.10652 | Q10: -7253.342406 | R10: -6321.928032
B11: 9 | C11: 65600 | D11: 63632 | E11: 63632 | F11: 1899.570791 | G11: 2135.720794 | H11: 2371.588489 | I11: 590400 | J11: 582144.4643 | K11: 583314.3784 | L11: 584481.6605 | M11: =FV(Paramètres!$C$24,B11,-D11,,1)-FV(i_p_1,B11,-D11,,1)+(1-PI_1)*'Simulations (3)'!C11*B11 -> -32639.85354 | N11: =FV(Paramètres!$D$24,B11,-D11,,1)-FV(i_p_2,B11,-D11,,1)+(1-PI_1)*'Simulations (3)'!C11*B11 -> -39312.36131 | O11: =FV(Paramètres!$E$24,B11,-E11,,1)-FV(i_p_3,B11,-E11,,1)+(1-PI_1)*'Simulations (3)'!C11*B11 -> -46071.23594 | P11: -8255.535729 | Q11: -7085.621611 | R11: -5918.339543
B12: 10 | C12: 65600 | D12: 63632 | E12: 63632 | F12: 2114.104101 | G12: 2377.404633 | H12: 2640.495279 | I12: 656000 | J12: 647890.5684 | K12: 649323.783 | L12: 650754.1557 | M12: =FV(Paramètres!$C$24,B12,-D12,,1)-FV(i_p_1,B12,-D12,,1)+(1-PI_1)*'Simulations (3)'!C12*B12 -> -42343.80692 | N12: =FV(Paramètres!$D$24,B12,-D12,,1)-FV(i_p_2,B12,-D12,,1)+(1-PI_1)*'Simulations (3)'!C12*B12 -> -50632.00573 | O12: =FV(Paramètres!$E$24,B12,-E12,,1)-FV(i_p_3,B12,-E12,,1)+(1-PI_1)*'Simulations (3)'!C12*B12 -> -59043.08905 | P12: -8109.431628 | Q12: -6676.216979 | R12: -5245.844264
B13: 11 | C13: 65600 | D13: 63632 | E13: 63632 | F13: 2329.339738 | G13: 2619.976614 | H13: 2910.497628 | I13: 721600 | J13: 713851.9081 | K13: 715575.7596 | L13: 717296.6534 | M13: =FV(Paramètres!$C$24,B13,-D13,,1)-FV(i_p_1,B13,-D13,,1)+(1-PI_1)*'Simulations (3)'!C13*B13 -> -53365.70435 | N13: =FV(Paramètres!$D$24,B13,-D13,,1)-FV(i_p_2,B13,-D13,,1)+(1-PI_1)*'Simulations (3)'!C13*B13 -> -63473.62902 | O13: =FV(Paramètres!$E$24,B13,-E13,,1)-FV(i_p_3,B13,-E13,,1)+(1-PI_1)*'Simulations (3)'!C13*B13 -> -73750.48497 | P13: -7748.09189 | Q13: -6024.240365 | R13: -4303.346637
B14: 12 | C14: 65600 | D14: 63632 | E14: 63632 | F14: 2545.28 | G14: 2863.44 | H14: 3181.6 | I14: 787200 | J14: 780029.1881 | K14: 782071.1996 | L14: 784110.2534 | M14: =FV(Paramètres!$C$24,B14,-D14,,1)-FV(i_p_1,B14,-D14,,1)+(1-PI_1)*'Simulations (3)'!C14*B14 -> -65735.20413 | N14: =FV(Paramètres!$D$24,B14,-D14,,1)-FV(i_p_2,B14,-D14,,1)+(1-PI_1)*'Simulations (3)'!C14*B14 -> -77875.60528 | O14: =FV(Paramètres!$E$24,B14,-E14,,1)-FV(i_p_3,B14,-E14,,1)+(1-PI_1)*'Simulations (3)'!C14*B14 -> -90241.85077 | P14: -7170.81189 | Q14: -5128.800365 | R14: -3089.746637
A15: 2 | B15: 13 | C15: 65600 | D15: 63632 | E15: 63632 | F15: 2761.927194 | G15: 3107.798068 | H15: 3453.806877 | I15: 852800 | J15: 846423.1153 | K15: 848810.9977 | L15: 851196.0602 | M15: =FV(Paramètres!$C$24,B15,-D15,,1)-FV(i_p_1,B15,-D15,,1)+(1-PI_1)*'Simulations (3)'!C15*B15 -> -79482.56359 | N15: =FV(Paramètres!$D$24,B15,-D15,,1)-FV(i_p_2,B15,-D15,,1)+(1-PI_1)*'Simulations (3)'!C15*B15 -> -93877.17911 | O15: =FV(Paramètres!$E$24,B15,-E15,,1)-FV(i_p_3,B15,-E15,,1)+(1-PI_1)*'Simulations (3)'!C15*B15 -> -108566.8321 | P15: -6376.884696 | Q15: -3989.002297 | R15: -1603.93976
B16: 14 | C16: 65600 | D16: 63632 | E16: 63632 | F16: 2979.283635 | G16: 3353.054105 | H16: 3727.122758 | I16: 918400 | J16: 913034.3989 | K16: 915796.0518 | L16: 918555.183 | M16: =FV(Paramètres!$C$24,B16,-D16,,1)-FV(i_p_1,B16,-D16,,1)+(1-PI_1)*'Simulations (3)'!C16*B16 -> -94638.65093 | N16: =FV(Paramètres!$D$24,B16,-D16,,1)-FV(i_p_2,B16,-D16,,1)+(1-PI_1)*'Simulations (3)'!C16*B16 -> -111518.485 | O16: =FV(Paramètres!$E$24,B16,-E16,,1)-FV(i_p_3,B16,-E16,,1)+(1-PI_1)*'Simulations (3)'!C16*B16 -> -128776.3235 | P16: -5365.601061 | Q16: -2603.948192 | R16: 155.1829983
B17: 15 | C17: 65600 | D17: 63632 | E17: 63632 | F17: 3197.351644 | G17: 3599.211412 | H17: 4001.552162 | I17: 984000 | J17: 979863.7506 | K17: 983027.2632 | L17: 986188.7352 | M17: =FV(Paramètres!$C$24,B17,-D17,,1)-FV(i_p_1,B17,-D17,,1)+(1-PI_1)*'Simulations (3)'!C17*B17 -> -111234.9574 | N17: =FV(Paramètres!$D$24,B17,-D17,,1)-FV(i_p_2,B17,-D17,,1)+(1-PI_1)*'Simulations (3)'!C17*B17 -> -130840.5672 | O17: =FV(Paramètres!$E$24,B17,-E17,,1)-FV(i_p_3,B17,-E17,,1)+(1-PI_1)*'Simulations (3)'!C17*B17 -> -150922.4989 | P17: -4136.249416 | Q17: -972.7367798 | R17: 2188.735161
B18: 16 | C18: 65600 | D18: 63632 | E18: 63632 | F18: 3416.133551 | G18: 3846.2733 | H18: 4277.099626 | I18: 1049600 | J18: 1046911.884 | K18: 1050505.537 | L18: 1054097.835 | M18: =FV(Paramètres!$C$24,B18,-D18,,1)-FV(i_p_1,B18,-D18,,1)+(1-PI_1)*'Simulations (3)'!C18*B18 -> -129303.6097 | N18: =FV(Paramètres!$D$24,B18,-D18,,1)-FV(i_p_2,B18,-D18,,1)+(1-PI_1)*'Simulations (3)'!C18*B18 -> -151885.4001 | O18: =FV(Paramètres!$E$24,B18,-E18,,1)-FV(i_p_3,B18,-E18,,1)+(1-PI_1)*'Simulations (3)'!C18*B18 -> -175058.8441 | P18: -2688.115865 | Q18: 905.5365197 | R18: 4497.834786
B19: 17 | C19: 65600 | D19: 63632 | E19: 63632 | F19: 3635.631693 | G19: 4094.243093 | H19: 4553.769704 | I19: 1115200 | J19: 1114179.516 | K19: 1118231.78 | L19: 1122283.604 | M19: =FV(Paramètres!$C$24,B19,-D19,,1)-FV(i_p_1,B19,-D19,,1)+(1-PI_1)*'Simulations (3)'!C19*B19 -> -148877.3824 | N19: =FV(Paramètres!$D$24,B19,-D19,,1)-FV(i_p_2,B19,-D19,,1)+(1-PI_1)*'Simulations (3)'!C19*B19 -> -174695.9089 | O19: =FV(Paramètres!$E$24,B19,-E19,,1)-FV(i_p_3,B19,-E19,,1)+(1-PI_1)*'Simulations (3)'!C19*B19 -> -201240.1884 | P19: -1020.484172 | Q19: 3031.779612 | R19: 7083.60449
B20: 18 | C20: 65600 | D20: 63632 | E20: 63632 | F20: 3855.848415 | G20: 4343.124127 | H20: 4831.56697 | I20: 1180800 | J20: 1181667.364 | K20: 1186206.904 | L20: 1190747.171 | M20: =FV(Paramètres!$C$24,B20,-D20,,1)-FV(i_p_1,B20,-D20,,1)+(1-PI_1)*'Simulations (3)'!C20*B20 -> -169989.7113 | N20: =FV(Paramètres!$D$24,B20,-D20,,1)-FV(i_p_2,B20,-D20,,1)+(1-PI_1)*'Simulations (3)'!C20*B20 -> -199315.9907 | O20: =FV(Paramètres!$E$24,B20,-E20,,1)-FV(i_p_3,B20,-E20,,1)+(1-PI_1)*'Simulations (3)'!C20*B20 -> -229522.7385 | P20: 867.3642435 | Q20: 5406.90374 | R20: 9947.17146
B21: 19 | C21: 65600 | D21: 63632 | E21: 63632 | F21: 4076.786069 | G21: 4592.919752 | H21: 5110.496016 | I21: 1246400 | J21: 1249376.15 | K21: 1254431.823 | L21: 1259489.667 | M21: =FV(Paramètres!$C$24,B21,-D21,,1)-FV(i_p_1,B21,-D21,,1)+(1-PI_1)*'Simulations (3)'!C21*B21 -> -192674.7058 | N21: =FV(Paramètres!$D$24,B21,-D21,,1)-FV(i_p_2,B21,-D21,,1)+(1-PI_1)*'Simulations (3)'!C21*B21 -> -225790.5366 | O21: =FV(Paramètres!$E$24,B21,-E21,,1)-FV(i_p_3,B21,-E21,,1)+(1-PI_1)*'Simulations (3)'!C21*B21 -> -259964.1122 | P21: 2976.150313 | Q21: 8031.823492 | R21: 13089.66748
B22: 20 | C22: 65600 | D22: 63632 | E22: 63632 | F22: 4298.447016 | G22: 4843.633329 | H22: 5390.561454 | I22: 1312000 | J22: 1317306.597 | K22: 1322907.457 | L22: 1328512.229 | M22: =FV(Paramètres!$C$24,B22,-D22,,1)-FV(i_p_1,B22,-D22,,1)+(1-PI_1)*'Simulations (3)'!C22*B22 -> -216967.1631 | N22: =FV(Paramètres!$D$24,B22,-D22,,1)-FV(i_p_2,B22,-D22,,1)+(1-PI_1)*'Simulations (3)'!C22*B22 -> -254165.4536 | O22: =FV(Paramètres!$E$24,B22,-E22,,1)-FV(i_p_3,B22,-E22,,1)+(1-PI_1)*'Simulations (3)'!C22*B22 -> -292623.3736 | P22: 5306.597329 | Q22: 10907.45682 | R22: 16512.22893
B23: 21 | C23: 65600 | D23: 63632 | E23: 63632 | F23: 4520.833623 | G23: 5095.26823 | H23: 5671.767913 | I23: 1377600 | J23: 1385459.431 | K23: 1391634.725 | L23: 1397815.997 | M23: =FV(Paramètres!$C$24,B23,-D23,,1)-FV(i_p_1,B23,-D23,,1)+(1-PI_1)*'Simulations (3)'!C23*B23 -> -242902.5813 | N23: =FV(Paramètres!$D$24,B23,-D23,,1)-FV(i_p_2,B23,-D23,,1)+(1-PI_1)*'Simulations (3)'!C23*B23 -> -284487.687 | O23: =FV(Paramètres!$E$24,B23,-E23,,1)-FV(i_p_3,B23,-E23,,1)+(1-PI_1)*'Simulations (3)'!C23*B23 -> -327561.0689 | P23: 7859.430952 | Q23: 14034.72505 | R23: 20215.99684
B24: 22 | C24: 65600 | D24: 63632 | E24: 63632 | F24: 4743.948266 | G24: 5347.827841 | H24: 5954.120043 | I24: 1443200 | J24: 1453835.379 | K24: 1460614.553 | L24: 1467402.117 | M24: =FV(Paramètres!$C$24,B24,-D24,,1)-FV(i_p_1,B24,-D24,,1)+(1-PI_1)*'Simulations (3)'!C24*B24 -> -270517.1736 | N24: =FV(Paramètres!$D$24,B24,-D24,,1)-FV(i_p_2,B24,-D24,,1)+(1-PI_1)*'Simulations (3)'!C24*B24 -> -316805.2441 | O24: =FV(Paramètres!$E$24,B24,-E24,,1)-FV(i_p_3,B24,-E24,,1)+(1-PI_1)*'Simulations (3)'!C24*B24 -> -364839.2629 | P24: 10635.37922 | Q24: 17414.55289 | R24: 24202.11689
B25: 23 | C25: 65600 | D25: 63632 | E25: 63632 | F25: 4967.793328 | G25: 5601.315561 | H25: 6237.622509 | I25: 1508800 | J25: 1522435.173 | K25: 1529847.868 | L25: 1537271.739 | M25: =FV(Paramètres!$C$24,B25,-D25,,1)-FV(i_p_1,B25,-D25,,1)+(1-PI_1)*'Simulations (3)'!C25*B25 -> -299847.8822 | N25: =FV(Paramètres!$D$24,B25,-D25,,1)-FV(i_p_2,B25,-D25,,1)+(1-PI_1)*'Simulations (3)'!C25*B25 -> -351167.2178 | O25: =FV(Paramètres!$E$24,B25,-E25,,1)-FV(i_p_3,B25,-E25,,1)+(1-PI_1)*'Simulations (3)'!C25*B25 -> -404521.5768 | P25: 13635.17254 | Q25: 21047.86845 | R25: 28471.73939
B26: 24 | C26: 65600 | D26: 63632 | E26: 63632 | F26: 5192.3712 | G26: 5855.7348 | H26: 6522.28 | I26: 1574400 | J26: 1591259.544 | K26: 1599335.603 | L26: 1607426.019 | M26: =FV(Paramètres!$C$24,B26,-D26,,1)-FV(i_p_1,B26,-D26,,1)+(1-PI_1)*'Simulations (3)'!C26*B26 -> -330932.3931 | N26: =FV(Paramètres!$D$24,B26,-D26,,1)-FV(i_p_2,B26,-D26,,1)+(1-PI_1)*'Simulations (3)'!C26*B26 -> -387623.8103 | O26: =FV(Paramètres!$E$24,B26,-E26,,1)-FV(i_p_3,B26,-E26,,1)+(1-PI_1)*'Simulations (3)'!C26*B26 -> -446673.2265 | P26: 16859.54374 | Q26: 24935.60325 | R26: 33026.01939
A27: 3 | B27: 25 | C27: 65600 | D27: 63632 | E27: 63632 | F27: 5417.684282 | G27: 6111.088981 | H27: 6808.097221 | I27: 1640000 | J27: 1660309.228 | K27: 1669078.692 | L27: 1677866.117 | M27: =FV(Paramètres!$C$24,B27,-D27,,1)-FV(i_p_1,B27,-D27,,1)+(1-PI_1)*'Simulations (3)'!C27*B27 -> -363809.1508 | N27: =FV(Paramètres!$D$24,B27,-D27,,1)-FV(i_p_2,B27,-D27,,1)+(1-PI_1)*'Simulations (3)'!C27*B27 -> -426226.3585 | O27: =FV(Paramètres!$E$24,B27,-E27,,1)-FV(i_p_3,B27,-E27,,1)+(1-PI_1)*'Simulations (3)'!C27*B27 -> -491361.0625 | P27: 20309.22803 | Q27: 29078.69223 | R27: 37866.11662
B28: 26 | C28: 65600 | D28: 63632 | E28: 63632 | F28: 5643.73498 | G28: 6367.38154 | H28: 7095.078896 | I28: 1705600 | J28: 1729584.963 | K28: 1739078.074 | L28: 1748593.196 | M28: =FV(Paramètres!$C$24,B28,-D28,,1)-FV(i_p_1,B28,-D28,,1)+(1-PI_1)*'Simulations (3)'!C28*B28 -> -398517.3733 | N28: =FV(Paramètres!$D$24,B28,-D28,,1)-FV(i_p_2,B28,-D28,,1)+(1-PI_1)*'Simulations (3)'!C28*B28 -> -467027.3591 | O28: =FV(Paramètres!$E$24,B28,-E28,,1)-FV(i_p_3,B28,-E28,,1)+(1-PI_1)*'Simulations (3)'!C28*B28 -> -538653.6098 | P28: 23984.96301 | Q28: 33478.07377 | R28: 42993.19551
B29: 27 | C29: 65600 | D29: 63632 | E29: 63632 | F29: 5870.52571 | G29: 6624.615925 | H29: 7383.22977 | I29: 1771200 | J29: 1799087.489 | K29: 1809334.69 | L29: 1819608.425 | M29: =FV(Paramètres!$C$24,B29,-D29,,1)-FV(i_p_1,B29,-D29,,1)+(1-PI_1)*'Simulations (3)'!C29*B29 -> -435097.0672 | N29: =FV(Paramètres!$D$24,B29,-D29,,1)-FV(i_p_2,B29,-D29,,1)+(1-PI_1)*'Simulations (3)'!C29*B29 -> -510080.494 | O29: =FV(Paramètres!$E$24,B29,-E29,,1)-FV(i_p_3,B29,-E29,,1)+(1-PI_1)*'Simulations (3)'!C29*B29 -> -588621.1099 | P29: 27887.48872 | Q29: 38134.6897 | R29: 48408.42528
B30: 28 | C30: 65600 | D30: 63632 | E30: 63632 | F30: 6098.058893 | G30: 6882.795598 | H30: 7672.554607 | I30: 1836800 | J30: 1868817.548 | K30: 1879849.485 | L30: 1890912.98 | M30: =FV(Paramètres!$C$24,B30,-D30,,1)-FV(i_p_1,B30,-D30,,1)+(1-PI_1)*'Simulations (3)'!C30*B30 -> -473589.044 | N30: =FV(Paramètres!$D$24,B30,-D30,,1)-FV(i_p_2,B30,-D30,,1)+(1-PI_1)*'Simulations (3)'!C30*B30 -> -555440.6577 | O30: =FV(Paramètres!$E$24,B30,-E30,,1)-FV(i_p_3,B30,-E30,,1)+(1-PI_1)*'Simulations (3)'!C30*B30 -> -641335.5628 | P30: 32017.54761 | Q30: 43049.4853 | R30: 54112.97989
B31: 29 | C31: 65600 | D31: 63632 | E31: 63632 | F31: 6326.336961 | G31: 7141.924032 | H31: 7963.058189 | I31: 1902400 | J31: 1938775.885 | K31: 1950623.409 | L31: 1962508.038 | M31: =FV(Paramètres!$C$24,B31,-D31,,1)-FV(i_p_1,B31,-D31,,1)+(1-PI_1)*'Simulations (3)'!C31*B31 -> -514034.9355 | N31: =FV(Paramètres!$D$24,B31,-D31,,1)-FV(i_p_2,B31,-D31,,1)+(1-PI_1)*'Simulations (3)'!C31*B31 -> -603163.9834 | O31: =FV(Paramètres!$E$24,B31,-E31,,1)-FV(i_p_3,B31,-E31,,1)+(1-PI_1)*'Simulations (3)'!C31*B31 -> -696870.771 | P31: 36375.88457 | Q31: 48223.40933 | R31: 60108.03808
B32: 30 | C32: 65600 | D32: 63632 | E32: 63632 | F32: 6555.362352 | G32: 7402.004713 | H32: 8254.745318 | I32: 1968000 | J32: 2008963.247 | K32: 2021657.414 | L32: 2034394.783 | M32: =FV(Paramètres!$C$24,B32,-D32,,1)-FV(i_p_1,B32,-D32,,1)+(1-PI_1)*'Simulations (3)'!C32*B32 -> -556477.2103 | N32: =FV(Paramètres!$D$24,B32,-D32,,1)-FV(i_p_2,B32,-D32,,1)+(1-PI_1)*'Simulations (3)'!C32*B32 -> -653307.8711 | O32: =FV(Paramètres!$E$24,B32,-E32,,1)-FV(i_p_3,B32,-E32,,1)+(1-PI_1)*'Simulations (3)'!C32*B32 -> -755302.3836 | P32: 40963.24692 | Q32: 53657.41404 | R32: 66394.7834
B33: 31 | C33: 65600 | D33: 63632 | E33: 63632 | F33: 6785.137512 | G33: 7663.041141 | H33: 8547.620817 | I33: 2033600 | J33: 2079380.384 | K33: 2092952.455 | L33: 2106574.404 | M33: =FV(Paramètres!$C$24,B33,-D33,,1)-FV(i_p_1,B33,-D33,,1)+(1-PI_1)*'Simulations (3)'!C33*B33 -> -600959.1904 | N33: =FV(Paramètres!$D$24,B33,-D33,,1)-FV(i_p_2,B33,-D33,,1)+(1-PI_1)*'Simulations (3)'!C33*B33 -> -705931.0158 | O33: =FV(Paramètres!$E$24,B33,-E33,,1)-FV(i_p_3,B33,-E33,,1)+(1-PI_1)*'Simulations (3)'!C33*B33 -> -816707.9424 | P33: 45780.38444 | Q33: 59352.45518 | R33: 72974.40421
B34: 32 | C34: 65600 | D34: 63632 | E34: 63632 | F34: 7015.664897 | G34: 7925.036829 | H34: 8841.689527 | I34: 2099200 | J34: 2150028.049 | K34: 2164509.492 | L34: 2179048.094 | M34: =FV(Paramètres!$C$24,B34,-D34,,1)-FV(i_p_1,B34,-D34,,1)+(1-PI_1)*'Simulations (3)'!C34*B34 -> -647525.0682 | N34: =FV(Paramètres!$D$24,B34,-D34,,1)-FV(i_p_2,B34,-D34,,1)+(1-PI_1)*'Simulations (3)'!C34*B34 -> -761093.4366 | O34: =FV(Paramètres!$E$24,B34,-E34,,1)-FV(i_p_3,B34,-E34,,1)+(1-PI_1)*'Simulations (3)'!C34*B34 -> -881166.9287 | P34: 50828.04933 | Q34: 65309.49201 | R34: 79848.09374
B35: 33 | C35: 65600 | D35: =+C35*PI_1 -> 63632 | E35: 63632 | F35: 7246.946968 | G35: 8187.9953 | H35: 9136.956309 | I35: 2164800 | J35: 2220906.996 | K35: 2236329.487 | L35: 2251817.05 | M35: =FV(Paramètres!$C$24,B35,-D35,,1)-FV(i_p_1,B35,-D35,,1)+(1-PI_1)*'Simulations (3)'!C35*B35 -> -696219.9235 | N35: =FV(Paramètres!$D$24,B35,-D35,,1)-FV(i_p_2,B35,-D35,,1)+(1-PI_1)*'Simulations (3)'!C35*B35 -> -818856.5056 | O35: =FV(Paramètres!$E$24,B35,-E35,,1)-FV(i_p_3,B35,-E35,,1)+(1-PI_1)*'Simulations (3)'!C35*B35 -> -948760.811 | P35: 56106.9963 | Q35: 71529.48731 | R35: 87017.05005
B36: 34 | C36: 65600 | D36: 63632 | E36: 63632 | F36: 7478.986196 | G36: 8451.920094 | H36: 9433.426045 | I36: 2230400 | J36: 2292017.982 | K36: 2308413.407 | L36: 2324882.476 | M36: =FV(Paramètres!$C$24,B36,-D36,,1)-FV(i_p_1,B36,-D36,,1)+(1-PI_1)*'Simulations (3)'!C36*B36 -> -747089.7416 | N36: =FV(Paramètres!$D$24,B36,-D36,,1)-FV(i_p_2,B36,-D36,,1)+(1-PI_1)*'Simulations (3)'!C36*B36 -> -879282.9787 | O36: =FV(Paramètres!$E$24,B36,-E36,,1)-FV(i_p_3,B36,-E36,,1)+(1-PI_1)*'Simulations (3)'!C36*B36 -> -1019573.095 | P36: 61617.9825 | Q36: 78013.40741 | R36: 94482.47609
B37: 35 | C37: 65600 | D37: 63632 | E37: 63632 | F37: 7711.785061 | G37: 8716.814761 | H37: 9731.103635 | I37: 2296000 | J37: 2363361.768 | K37: 2380762.222 | L37: 2398245.58 | M37: =FV(Paramètres!$C$24,B37,-D37,,1)-FV(i_p_1,B37,-D37,,1)+(1-PI_1)*'Simulations (3)'!C37*B37 -> -800181.431 | N37: =FV(Paramètres!$D$24,B37,-D37,,1)-FV(i_p_2,B37,-D37,,1)+(1-PI_1)*'Simulations (3)'!C37*B37 -> -942437.0261 | O37: =FV(Paramètres!$E$24,B37,-E37,,1)-FV(i_p_3,B37,-E37,,1)+(1-PI_1)*'Simulations (3)'!C37*B37 -> -1093689.371 | P37: 67361.76756 | Q37: 84762.22217 | R37: 102245.5797
B38: 36 | C38: 65600 | D38: 63632 | E38: 63632 | F38: 7945.346048 | G38: 8982.682866 | H38: 10029.994 | I38: =+I37+C38 -> 2361600 | J38: 2434939.114 | K38: 2453376.905 | L38: 2471907.574 | M38: =FV(Paramètres!$C$24,B38,-D38,,1)-FV(i_p_1,B38,-D38,,1)+(1-PI_1)*'Simulations (3)'!C38*B38 -> -855542.8414 | N38: =FV(Paramètres!$D$24,B38,-D38,,1)-FV(i_p_2,B38,-D38,,1)+(1-PI_1)*'Simulations (3)'!C38*B38 -> -1008384.264 | O38: =FV(Paramètres!$E$24,B38,-E38,,1)-FV(i_p_3,B38,-E38,,1)+(1-PI_1)*'Simulations (3)'!C38*B38 -> -1171197.373 | P38: 73339.1136 | Q38: 91776.90504 | R38: 110307.5737
A39: 4 | B39: 37 | C39: 65600 | D39: 63632 | E39: 63632 | F39: 8179.671653 | G39: 9249.527985 | H39: 10330.10208 | I39: =+I38+C39 -> 2427200 | J39: 2506750.785 | K39: 2526258.433 | L39: 2545869.676 | M39: =FV(Paramètres!$C$24,B39,-D39,,1)-FV(i_p_1,B39,-D39,,1)+(1-PI_1)*'Simulations (3)'!C39*B39 -> -913222.7831 | N39: =FV(Paramètres!$D$24,B39,-D39,,1)-FV(i_p_2,B39,-D39,,1)+(1-PI_1)*'Simulations (3)'!C39*B39 -> -1077191.787 | O39: =FV(Paramètres!$E$24,B39,-E39,,1)-FV(i_p_3,B39,-E39,,1)+(1-PI_1)*'Simulations (3)'!C39*B39 -> -1252187.02 | P39: 79550.78526 | Q39: 99058.43302 | R39: 118669.6758
B40: 38 | C40: 65600 | D40: 63632 | E40: 63632 | F40: 8414.76438 | G40: 9517.353709 | H40: 10631.43284 | I40: 2492800 | J40: 2578797.55 | K40: 2599407.787 | L40: 2620133.109 | M40: =FV(Paramètres!$C$24,B40,-D40,,1)-FV(i_p_1,B40,-D40,,1)+(1-PI_1)*'Simulations (3)'!C40*B40 -> -973271.0455 | N40: =FV(Paramètres!$D$24,B40,-D40,,1)-FV(i_p_2,B40,-D40,,1)+(1-PI_1)*'Simulations (3)'!C40*B40 -> -1148928.201 | O40: =FV(Paramètres!$E$24,B40,-E40,,1)-FV(i_p_3,B40,-E40,,1)+(1-PI_1)*'Simulations (3)'!C40*B40 -> -1336750.482 | P40: 85997.54964 | Q40: 106607.7867 | R40: 127333.1087
B41: 39 | C41: 65600 | D41: 63632 | E41: 63632 | F41: 8650.626738 | G41: 9786.163642 | H41: 10933.99126 | I41: 2558400 | J41: 2651080.176 | K41: 2672825.95 | L41: 2694699.1 | M41: =FV(Paramètres!$C$24,B41,-D41,,1)-FV(i_p_1,B41,-D41,,1)+(1-PI_1)*'Simulations (3)'!C41*B41 -> -1035738.417 | N41: =FV(Paramètres!$D$24,B41,-D41,,1)-FV(i_p_2,B41,-D41,,1)+(1-PI_1)*'Simulations (3)'!C41*B41 -> -1223663.655 | O41: =FV(Paramètres!$E$24,B41,-E41,,1)-FV(i_p_3,B41,-E41,,1)+(1-PI_1)*'Simulations (3)'!C41*B41 -> -1424982.228 | P41: 92680.17638 | Q41: 114425.9504 | R41: 136299.0999
B42: 40 | C42: 65600 | D42: 63632 | E42: 63632 | F42: 8887.261249 | G42: 10055.9614 | H42: 11237.78234 | I42: 2624000 | J42: 2723599.438 | K42: 2746513.912 | L42: 2769568.882 | M42: =FV(Paramètres!$C$24,B42,-D42,,1)-FV(i_p_1,B42,-D42,,1)+(1-PI_1)*'Simulations (3)'!C42*B42 -> -1100676.703 | N42: =FV(Paramètres!$D$24,B42,-D42,,1)-FV(i_p_2,B42,-D42,,1)+(1-PI_1)*'Simulations (3)'!C42*B42 -> -1301469.881 | O42: =FV(Paramètres!$E$24,B42,-E42,,1)-FV(i_p_3,B42,-E42,,1)+(1-PI_1)*'Simulations (3)'!C42*B42 -> -1516979.085 | P42: 99599.43763 | Q42: 122513.9118 | R42: 145568.8822
B43: 41 | C43: 65600 | D43: 63632 | E43: 63632 | F43: 9124.67044 | G43: 10326.75061 | H43: 11542.8111 | I43: 2689600 | J43: 2796356.108 | K43: 2820472.662 | L43: 2844743.693 | M43: =FV(Paramètres!$C$24,B43,-D43,,1)-FV(i_p_1,B43,-D43,,1)+(1-PI_1)*'Simulations (3)'!C43*B43 -> -1168138.751 | N43: =FV(Paramètres!$D$24,B43,-D43,,1)-FV(i_p_2,B43,-D43,,1)+(1-PI_1)*'Simulations (3)'!C43*B43 -> -1382420.221 | O43: =FV(Paramètres!$E$24,B43,-E43,,1)-FV(i_p_3,B43,-E43,,1)+(1-PI_1)*'Simulations (3)'!C43*B43 -> -1612840.298 | P43: 106756.1081 | Q43: 130872.6624 | R43: 155143.6933
B44: 42 | C44: 65600 | D44: 63632 | E44: 63632 | F44: 9362.856846 | G44: 10598.53493 | H44: 11849.08258 | I44: 2755200 | J44: 2869350.965 | K44: 2894703.197 | L44: 2920224.776 | M44: =FV(Paramètres!$C$24,B44,-D44,,1)-FV(i_p_1,B44,-D44,,1)+(1-PI_1)*'Simulations (3)'!C44*B44 -> -1238178.464 | N44: =FV(Paramètres!$D$24,B44,-D44,,1)-FV(i_p_2,B44,-D44,,1)+(1-PI_1)*'Simulations (3)'!C44*B44 -> -1466589.672 | O44: =FV(Paramètres!$E$24,B44,-E44,,1)-FV(i_p_3,B44,-E44,,1)+(1-PI_1)*'Simulations (3)'!C44*B44 -> -1712667.587 | P44: 114150.9649 | Q44: 139503.1973 | R44: 165024.7759
B45: 43 | C45: 65600 | D45: 63632 | E45: 63632 | F45: 9601.823013 | G45: 10871.31799 | H45: 12156.60186 | I45: 2820800 | J45: 2942584.788 | K45: 2969206.515 | L45: 2996013.378 | M45: =FV(Paramètres!$C$24,B45,-D45,,1)-FV(i_p_1,B45,-D45,,1)+(1-PI_1)*'Simulations (3)'!C45*B45 -> -1310850.827 | N45: =FV(Paramètres!$D$24,B45,-D45,,1)-FV(i_p_2,B45,-D45,,1)+(1-PI_1)*'Simulations (3)'!C45*B45 -> -1554054.914 | O45: =FV(Paramètres!$E$24,B45,-E45,,1)-FV(i_p_3,B45,-E45,,1)+(1-PI_1)*'Simulations (3)'!C45*B45 -> -1816565.21 | P45: 121784.7879 | Q45: 148406.5153 | R45: 175213.3778
B46: 44 | C46: 65600 | D46: 63632 | E46: 63632 | F46: 9841.571493 | G46: 11145.10349 | H46: 12465.374 | I46: 2886400 | J46: 3016058.359 | K46: 3043983.619 | L46: 3072110.752 | M46: =FV(Paramètres!$C$24,B46,-D46,,1)-FV(i_p_1,B46,-D46,,1)+(1-PI_1)*'Simulations (3)'!C46*B46 -> -1386211.928 | N46: =FV(Paramètres!$D$24,B46,-D46,,1)-FV(i_p_2,B46,-D46,,1)+(1-PI_1)*'Simulations (3)'!C46*B46 -> -1644894.355 | O46: =FV(Paramètres!$E$24,B46,-E46,,1)-FV(i_p_3,B46,-E46,,1)+(1-PI_1)*'Simulations (3)'!C46*B46 -> -1924640.026 | P46: 129658.3594 | Q46: 157583.6188 | R46: 185710.7518
B47: 45 | C47: 65600 | D47: 63632 | E47: 63632 | F47: 10082.10485 | G47: 11419.89509 | H47: 12775.40412 | I47: 2952000 | J47: 3089772.464 | K47: 3119035.514 | L47: 3148518.156 | M47: =FV(Paramètres!$C$24,B47,-D47,,1)-FV(i_p_1,B47,-D47,,1)+(1-PI_1)*'Simulations (3)'!C47*B47 -> -1464318.977 | N47: =FV(Paramètres!$D$24,B47,-D47,,1)-FV(i_p_2,B47,-D47,,1)+(1-PI_1)*'Simulations (3)'!C47*B47 -> -1739188.165 | O47: =FV(Paramètres!$E$24,B47,-E47,,1)-FV(i_p_3,B47,-E47,,1)+(1-PI_1)*'Simulations (3)'!C47*B47 -> -2037001.559 | P47: 137772.4643 | Q47: 167035.5139 | R47: 196518.1559
B48: 46 | C48: 65600 | D48: 63632 | E48: 63632 | F48: 10323.42564 | G48: 11695.6965 | H48: 13086.69735 | I48: 3017600 | J48: 3163727.89 | K48: 3194363.21 | L48: 3225236.853 | M48: =FV(Paramètres!$C$24,B48,-D48,,1)-FV(i_p_1,B48,-D48,,1)+(1-PI_1)*'Simulations (3)'!C48*B48 -> -1545230.331 | N48: =FV(Paramètres!$D$24,B48,-D48,,1)-FV(i_p_2,B48,-D48,,1)+(1-PI_1)*'Simulations (3)'!C48*B48 -> -1837018.318 | O48: =FV(Paramètres!$E$24,B48,-E48,,1)-FV(i_p_3,B48,-E48,,1)+(1-PI_1)*'Simulations (3)'!C48*B48 -> -2153762.061 | P48: 146127.8899 | Q48: 176763.2104 | R48: 207636.8533
B49: 47 | C49: 65600 | D49: 63632 | E49: 63632 | F49: 10565.53646 | G49: 11972.51143 | H49: 13399.25882 | I49: 3083200 | J49: 3237925.426 | K49: 3269967.722 | L49: 3302268.112 | M49: =FV(Paramètres!$C$24,B49,-D49,,1)-FV(i_p_1,B49,-D49,,1)+(1-PI_1)*'Simulations (3)'!C49*B49 -> -1629005.515 | N49: =FV(Paramètres!$D$24,B49,-D49,,1)-FV(i_p_2,B49,-D49,,1)+(1-PI_1)*'Simulations (3)'!C49*B49 -> -1938468.628 | O49: =FV(Paramètres!$E$24,B49,-E49,,1)-FV(i_p_3,B49,-E49,,1)+(1-PI_1)*'Simulations (3)'!C49*B49 -> -2275036.585 | P49: 154725.4264 | Q49: 186767.7218 | R49: 219068.1121
B50: 48 | C50: 65600 | D50: 63632 | E50: 63632 | F50: 10808.43989 | G50: 12250.34359 | H50: 13713.0937 | I50: 3148800 | J50: 3312365.866 | K50: 3345850.065 | L50: 3379613.206 | M50: =FV(Paramètres!$C$24,B50,-D50,,1)-FV(i_p_1,B50,-D50,,1)+(1-PI_1)*'Simulations (3)'!C50*B50 -> -1715705.246 | N50: =FV(Paramètres!$D$24,B50,-D50,,1)-FV(i_p_2,B50,-D50,,1)+(1-PI_1)*'Simulations (3)'!C50*B50 -> -2043624.797 | O50: =FV(Paramètres!$E$24,B50,-E50,,1)-FV(i_p_3,B50,-E50,,1)+(1-PI_1)*'Simulations (3)'!C50*B50 -> -2400943.051 | P50: 163565.8663 | Q50: 197050.0654 | R50: 230813.2058
A51: 5 | B51: 49 | C51: 65600 | D51: 63632 | E51: 63632 | F51: 11052.13852 | G51: 12529.19674 | H51: 14028.20719 | I51: 3214400 | J51: 3387050.005 | K51: 3422011.262 | L51: 3457273.413 | M51: =FV(Paramètres!$C$24,B51,-D51,,1)-FV(i_p_1,B51,-D51,,1)+(1-PI_1)*'Simulations (3)'!C51*B51 -> -1805391.456 | N51: =FV(Paramètres!$D$24,B51,-D51,,1)-FV(i_p_2,B51,-D51,,1)+(1-PI_1)*'Simulations (3)'!C51*B51 -> -2152574.45 | O51: =FV(Paramètres!$E$24,B51,-E51,,1)-FV(i_p_3,B51,-E51,,1)+(1-PI_1)*'Simulations (3)'!C51*B51 -> -2531602.316 | P51: 172650.0048 | Q51: 207611.2621 | R51: 242873.413
B52: 50 | C52: 65600 | D52: 63632 | E52: 63632 | F52: 11296.63495 | G52: 12809.07463 | H52: 14344.60448 | I52: 3280000 | J52: 3461978.64 | K52: 3498452.337 | L52: 3535250.017 | M52: =FV(Paramètres!$C$24,B52,-D52,,1)-FV(i_p_1,B52,-D52,,1)+(1-PI_1)*'Simulations (3)'!C52*B52 -> -1898127.318 | N52: =FV(Paramètres!$D$24,B52,-D52,,1)-FV(i_p_2,B52,-D52,,1)+(1-PI_1)*'Simulations (3)'!C52*B52 -> -2265407.18 | O52: =FV(Paramètres!$E$24,B52,-E52,,1)-FV(i_p_3,B52,-E52,,1)+(1-PI_1)*'Simulations (3)'!C52*B52 -> -2667138.249 | P52: 181978.6397 | Q52: 218452.3368 | R52: 255250.0174
B53: 51 | C53: 65600 | D53: 63632 | E53: 63632 | F53: 11541.93181 | G53: 13089.98101 | H53: 14662.29082 | I53: 3345600 | J53: 3537152.572 | K53: 3575174.318 | L53: 3613544.308 | M53: =FV(Paramètres!$C$24,B53,-D53,,1)-FV(i_p_1,B53,-D53,,1)+(1-PI_1)*'Simulations (3)'!C53*B53 -> -1993977.27 | N53: =FV(Paramètres!$D$24,B53,-D53,,1)-FV(i_p_2,B53,-D53,,1)+(1-PI_1)*'Simulations (3)'!C53*B53 -> -2382214.597 | O53: =FV(Paramètres!$E$24,B53,-E53,,1)-FV(i_p_3,B53,-E53,,1)+(1-PI_1)*'Simulations (3)'!C53*B53 -> -2807677.805 | P53: 191552.5715 | Q53: 229574.3178 | R53: 267944.3083
B54: 52 | C54: 65600 | D54: 63632 | E54: 63632 | F54: 11788.0317 | G54: 13371.91966 | H54: 14981.27145 | I54: 3411200 | J54: 3612572.603 | K54: 3652178.237 | L54: 3692157.58 | M54: =FV(Paramètres!$C$24,B54,-D54,,1)-FV(i_p_1,B54,-D54,,1)+(1-PI_1)*'Simulations (3)'!C54*B54 -> -2093007.035 | N54: =FV(Paramètres!$D$24,B54,-D54,,1)-FV(i_p_2,B54,-D54,,1)+(1-PI_1)*'Simulations (3)'!C54*B54 -> -2503090.364 | O54: =FV(Paramètres!$E$24,B54,-E54,,1)-FV(i_p_3,B54,-E54,,1)+(1-PI_1)*'Simulations (3)'!C54*B54 -> -2953351.098 | P54: 201372.6032 | Q54: 240978.2374 | R54: 280957.5797
B55: 53 | C55: 65600 | D55: 63632 | E55: 63632 | F55: 12034.93726 | G55: 13654.89439 | H55: 15301.55165 | I55: 3476800 | J55: 3688239.54 | K55: 3729465.132 | L55: 3771091.131 | M55: =FV(Paramètres!$C$24,B55,-D55,,1)-FV(i_p_1,B55,-D55,,1)+(1-PI_1)*'Simulations (3)'!C55*B55 -> -2195283.656 | N55: =FV(Paramètres!$D$24,B55,-D55,,1)-FV(i_p_2,B55,-D55,,1)+(1-PI_1)*'Simulations (3)'!C55*B55 -> -2628130.249 | O55: =FV(Paramètres!$E$24,B55,-E55,,1)-FV(i_p_3,B55,-E55,,1)+(1-PI_1)*'Simulations (3)'!C55*B55 -> -3104291.484 | P55: 211439.5405 | Q55: 252665.1318 | R55: 294291.1314
B56: 54 | C56: 65600 | D56: 63632 | E56: 63632 | F56: 12282.65112 | G56: 13938.909 | H56: 15623.13671 | I56: 3542400 | J56: 3764154.192 | K56: 3807036.041 | L56: 3850346.268 | M56: =FV(Paramètres!$C$24,B56,-D56,,1)-FV(i_p_1,B56,-D56,,1)+(1-PI_1)*'Simulations (3)'!C56*B56 -> -2300875.514 | N56: =FV(Paramètres!$D$24,B56,-D56,,1)-FV(i_p_2,B56,-D56,,1)+(1-PI_1)*'Simulations (3)'!C56*B56 -> -2757432.173 | O56: =FV(Paramètres!$E$24,B56,-E56,,1)-FV(i_p_3,B56,-E56,,1)+(1-PI_1)*'Simulations (3)'!C56*B56 -> -3260635.64 | P56: 221754.1916 | Q56: 264636.0408 | R56: 307946.2681
B57: 55 | C57: 65600 | D57: 63632 | E57: 63632 | F57: 12531.17593 | G57: 14223.9673 | H57: 15946.03195 | I57: 3608000 | J57: 3840317.368 | K57: 3884892.008 | L57: 3929924.3 | M57: =FV(Paramètres!$C$24,B57,-D57,,1)-FV(i_p_1,B57,-D57,,1)+(1-PI_1)*'Simulations (3)'!C57*B57 -> -2409852.359 | N57: =FV(Paramètres!$D$24,B57,-D57,,1)-FV(i_p_2,B57,-D57,,1)+(1-PI_1)*'Simulations (3)'!C57*B57 -> -2891096.251 | O57: =FV(Paramètres!$E$24,B57,-E57,,1)-FV(i_p_3,B57,-E57,,1)+(1-PI_1)*'Simulations (3)'!C57*B57 -> -3422523.644 | P57: 232317.3676 | Q57: 276892.0081 | R57: 321924.3
B58: 56 | C58: 65600 | D58: 63632 | E58: 63632 | F58: 12780.51435 | G58: 14510.07314 | H58: 16270.2427 | I58: 3673600 | J58: 3916729.882 | K58: 3963034.081 | L58: 4009826.543 | M58: =FV(Paramètres!$C$24,B58,-D58,,1)-FV(i_p_1,B58,-D58,,1)+(1-PI_1)*'Simulations (3)'!C58*B58 -> -2522285.334 | N58: =FV(Paramètres!$D$24,B58,-D58,,1)-FV(i_p_2,B58,-D58,,1)+(1-PI_1)*'Simulations (3)'!C58*B58 -> -3029224.848 | O58: =FV(Paramètres!$E$24,B58,-E58,,1)-FV(i_p_3,B58,-E58,,1)+(1-PI_1)*'Simulations (3)'!C58*B58 -> -3590099.058 | P58: 243129.8819 | Q58: 289434.0813 | R58: 336226.5427
B59: 57 | C59: 65600 | D59: 63632 | E59: 63632 | F59: 13030.66904 | G59: 14797.23037 | H59: 16595.77433 | I59: 3739200 | J59: 3993392.551 | K59: 4041463.312 | L59: 4090054.317 | M59: =FV(Paramètres!$C$24,B59,-D59,,1)-FV(i_p_1,B59,-D59,,1)+(1-PI_1)*'Simulations (3)'!C59*B59 -> -2638247.007 | N59: =FV(Paramètres!$D$24,B59,-D59,,1)-FV(i_p_2,B59,-D59,,1)+(1-PI_1)*'Simulations (3)'!C59*B59 -> -3171922.625 | O59: =FV(Paramètres!$E$24,B59,-E59,,1)-FV(i_p_3,B59,-E59,,1)+(1-PI_1)*'Simulations (3)'!C59*B59 -> -3763509.021 | P59: 254192.5509 | Q59: 302263.3116 | R59: 350854.3171
B60: 58 | C60: 65600 | D60: 63632 | E60: 63632 | F60: 13281.64267 | G60: 15085.44284 | H60: 16922.63221 | I60: =+I59+C60 -> 3804800 | J60: 4070306.194 | K60: 4120180.754 | L60: 4170608.949 | M60: =FV(Paramètres!$C$24,B60,-D60,,1)-FV(i_p_1,B60,-D60,,1)+(1-PI_1)*'Simulations (3)'!C60*B60 -> -2757811.393 | N60: =FV(Paramètres!$D$24,B60,-D60,,1)-FV(i_p_2,B60,-D60,,1)+(1-PI_1)*'Simulations (3)'!C60*B60 -> -3319296.592 | O60: =FV(Paramètres!$E$24,B60,-E60,,1)-FV(i_p_3,B60,-E60,,1)+(1-PI_1)*'Simulations (3)'!C60*B60 -> -3942904.329 | P60: 265506.1936 | Q60: 315380.7545 | R60: 365808.9493
B61: 59 | C61: 65600 | D61: 63632 | E61: 63632 | F61: 13533.43792 | G61: 15374.71444 | H61: 17250.82176 | I61: =+I60+C61 -> 3870400 | J61: 4147471.632 | K61: 4199187.469 | L61: 4251491.771 | M61: =FV(Paramètres!$C$24,B61,-D61,,1)-FV(i_p_1,B61,-D61,,1)+(1-PI_1)*'Simulations (3)'!C61*B61 -> -2881053.99 | N61: =FV(Paramètres!$D$24,B61,-D61,,1)-FV(i_p_2,B61,-D61,,1)+(1-PI_1)*'Simulations (3)'!C61*B61 -> -3471456.16 | O61: =FV(Paramètres!$E$24,B61,-E61,,1)-FV(i_p_3,B61,-E61,,1)+(1-PI_1)*'Simulations (3)'!C61*B61 -> -4128439.531 | P61: 277071.6315 | Q61: 328787.4689 | R61: 381091.771
B62: 60 | C62: 65600 | D62: 63632 | E62: 63632 | F62: 13786.05749 | G62: 15665.04906 | H62: 17580.34839 | I62: 3936000 | J62: 4224889.689 | K62: 4278484.518 | L62: 4332704.119 | M62: =FV(Paramètres!$C$24,B62,-D62,,1)-FV(i_p_1,B62,-D62,,1)+(1-PI_1)*'Simulations (3)'!C62*B62 -> -3008051.803 | N62: =FV(Paramètres!$D$24,B62,-D62,,1)-FV(i_p_2,B62,-D62,,1)+(1-PI_1)*'Simulations (3)'!C62*B62 -> -3628513.195 | O62: =FV(Paramètres!$E$24,B62,-E62,,1)-FV(i_p_3,B62,-E62,,1)+(1-PI_1)*'Simulations (3)'!C62*B62 -> -4320273.02 | P62: 288889.689 | Q62: 342484.518 | R62: 396704.1194
A63: 6 | B63: 61 | C63: 65600 | D63: 63632 | E63: 63632 | F63: 14039.50406 | G63: 15956.4506 | H63: 17911.21755 | I63: 4001600 | J63: 4302561.193 | K63: 4358072.969 | L63: 4414247.337 | M63: =FV(Paramètres!$C$24,B63,-D63,,1)-FV(i_p_1,B63,-D63,,1)+(1-PI_1)*'Simulations (3)'!C63*B63 -> -3138883.375 | N63: =FV(Paramètres!$D$24,B63,-D63,,1)-FV(i_p_2,B63,-D63,,1)+(1-PI_1)*'Simulations (3)'!C63*B63 -> -3790582.07 | O63: =FV(Paramètres!$E$24,B63,-E63,,1)-FV(i_p_3,B63,-E63,,1)+(1-PI_1)*'Simulations (3)'!C63*B63 -> -4518567.127 | P63: 300961.1931 | Q63: 356472.9686 | R63: 412647.337
B64: 62 | C64: 65600 | D64: 63632 | E64: 63632 | F64: 14293.78035 | G64: 16248.92298 | H64: 18243.43471 | I64: 4067200 | J64: 4380486.973 | K64: 4437953.892 | L64: 4496122.772 | M64: =FV(Paramètres!$C$24,B64,-D64,,1)-FV(i_p_1,B64,-D64,,1)+(1-PI_1)*'Simulations (3)'!C64*B64 -> -3273628.82 | N64: =FV(Paramètres!$D$24,B64,-D64,,1)-FV(i_p_2,B64,-D64,,1)+(1-PI_1)*'Simulations (3)'!C64*B64 -> -3957779.724 | O64: =FV(Paramètres!$E$24,B64,-E64,,1)-FV(i_p_3,B64,-E64,,1)+(1-PI_1)*'Simulations (3)'!C64*B64 -> -4723488.221 | P64: 313286.9734 | Q64: 370753.8916 | R64: 428922.7717
B65: 63 | C65: 65600 | D65: 63632 | E65: 63632 | F65: 14548.88908 | G65: 16542.47015 | H65: 18577.00536 | I65: 4132800 | J65: 4458667.863 | K65: 4518128.362 | L65: 4578331.777 | M65: =FV(Paramètres!$C$24,B65,-D65,,1)-FV(i_p_1,B65,-D65,,1)+(1-PI_1)*'Simulations (3)'!C65*B65 -> -3412369.851 | N65: =FV(Paramètres!$D$24,B65,-D65,,1)-FV(i_p_2,B65,-D65,,1)+(1-PI_1)*'Simulations (3)'!C65*B65 -> -4130225.719 | O65: =FV(Paramètres!$E$24,B65,-E65,,1)-FV(i_p_3,B65,-E65,,1)+(1-PI_1)*'Simulations (3)'!C65*B65 -> -4935206.807 | P65: 325867.8625 | Q65: 385328.3617 | R65: 445531.777
B66: 64 | C66: 65600 | D66: 63632 | E66: 63632 | F66: 14804.83297 | G66: 16837.09605 | H66: 18911.93503 | I66: 4198400 | J66: 4537104.695 | K66: 4598597.458 | L66: 4660875.712 | M66: =FV(Paramètres!$C$24,B66,-D66,,1)-FV(i_p_1,B66,-D66,,1)+(1-PI_1)*'Simulations (3)'!C66*B66 -> -3555189.812 | N66: =FV(Paramètres!$D$24,B66,-D66,,1)-FV(i_p_2,B66,-D66,,1)+(1-PI_1)*'Simulations (3)'!C66*B66 -> -4308042.296 | O66: =FV(Paramètres!$E$24,B66,-E66,,1)-FV(i_p_3,B66,-E66,,1)+(1-PI_1)*'Simulations (3)'!C66*B66 -> -5153897.628 | P66: 338704.6955 | Q66: 400197.4578 | R66: 462475.7121
B67: 65 | C67: 65600 | D67: =+C67*PI_1 -> 63632 | E67: =+C67*PI_3 -> 63632 | F67: 15061.61475 | G67: 17132.80464 | H67: 19248.22924 | I67: 4264000 | J67: 4615798.31 | K67: 4679362.262 | L67: 4743755.941 | M67: =FV(Paramètres!$C$24,B67,-D67,,1)-FV(i_p_1,B67,-D67,,1)+(1-PI_1)*'Simulations (3)'!C67*B67 -> -3702173.713 | N67: =FV(Paramètres!$D$24,B67,-D67,,1)-FV(i_p_2,B67,-D67,,1)+(1-PI_1)*'Simulations (3)'!C67*B67 -> -4491354.437 | O67: =FV(Paramètres!$E$24,B67,-E67,,1)-FV(i_p_3,B67,-E67,,1)+(1-PI_1)*'Simulations (3)'!C67*B67 -> -5379739.769 | P67: 351798.3102 | Q67: 415362.2624 | R67: 479755.9413
B68: 66 | C68: 65600 | D68: 63632 | E68: 63632 | F68: =(D68+J67)*(tm_1) -> 15319.23716 | G68: =+tm_2*(D68+K67) -> 17429.5999 | H68: =+tm_3*(E68+L67) -> 19585.89355 | I68: 4329600 | J68: =(D68+J67)*(1+tm_1) -> 4694749.547 | K68: =(D68+K67)*(1+tm_2) -> 4760423.862 | L68: =(E68+L67)*(1+tm_3) -> 4826973.835 | M68: =FV(Paramètres!$C$24,B68,-D68,,1)-FV(i_p_1,B68,-D68,,1)+(1-PI_1)*'Simulations (3)'!C68*B68 -> -3853408.262 | N68: =FV(Paramètres!$D$24,B68,-D68,,1)-FV(i_p_2,B68,-D68,,1)+(1-PI_1)*'Simulations (3)'!C68*B68 -> -4680289.926 | O68: =FV(Paramètres!$E$24,B68,-E68,,1)-FV(i_p_3,B68,-E68,,1)+(1-PI_1)*'Simulations (3)'!C68*B68 -> -5612916.769 | P68: 365149.5474 | Q68: 430823.8623 | R68: 497373.8349
B69: =+B68+1 -> 67 | C69: 65600 | D69: 63632 | E69: 63632 | F69: 15577.70297 | G69: 17727.48583 | H69: 19924.93355 | I69: 4395200 | J69: 4773959.25 | K69: 4841783.348 | L69: 4910530.768 | M69: =FV(Paramètres!$C$24,B69,-D69,,1)-FV(i_p_1,B69,-D69,,1)+(1-PI_1)*'Simulations (3)'!C69*B69 -> -4008981.896 | N69: =FV(Paramètres!$D$24,B69,-D69,,1)-FV(i_p_2,B69,-D69,,1)+(1-PI_1)*'Simulations (3)'!C69*B69 -> -4874979.409 | O69: =FV(Paramètres!$E$24,B69,-E69,,1)-FV(i_p_3,B69,-E69,,1)+(1-PI_1)*'Simulations (3)'!C69*B69 -> -5853616.725 | P69: =+J69-I69 -> 378759.2504 | Q69: =+K69-I69 -> 446583.3481 | R69: =+L69-I69 -> 515330.7684
B70: 68 | C70: 65600 | D70: 63632 | E70: 63632 | F70: 15837.01493 | G70: 18026.46643 | H70: 20265.35484 | I70: 4460800 | J70: 4853428.265 | K70: 4923441.815 | L70: 4994428.123 | M70: =FV(Paramètres!$C$24,B70,-D70,,1)-FV(i_p_1,B70,-D70,,1)+(1-PI_1)*'Simulations (3)'!C70*B70 -> -4168984.819 | N70: =FV(Paramètres!$D$24,B70,-D70,,1)-FV(i_p_2,B70,-D70,,1)+(1-PI_1)*'Simulations (3)'!C70*B70 -> -5075556.46 | O70: =FV(Paramètres!$E$24,B70,-E70,,1)-FV(i_p_3,B70,-E70,,1)+(1-PI_1)*'Simulations (3)'!C70*B70 -> -6102032.408 | P70: 392628.2653 | Q70: 462641.8146 | R70: 533628.1232
B71: 69 | C71: 65600 | D71: 63632 | E71: 63632 | F71: 16097.1758 | G71: 18326.54573 | H71: 20607.16305 | I71: 4526400 | J71: 4933157.441 | K71: 5005400.36 | L71: 5078667.286 | M71: =FV(Paramètres!$C$24,B71,-D71,,1)-FV(i_p_1,B71,-D71,,1)+(1-PI_1)*'Simulations (3)'!C71*B71 -> -4333509.033 | N71: =FV(Paramètres!$D$24,B71,-D71,,1)-FV(i_p_2,B71,-D71,,1)+(1-PI_1)*'Simulations (3)'!C71*B71 -> -5282157.646 | O71: =FV(Paramètres!$E$24,B71,-E71,,1)-FV(i_p_3,B71,-E71,,1)+(1-PI_1)*'Simulations (3)'!C71*B71 -> -6358361.379 | P71: 406757.4411 | Q71: 479000.3603 | R71: 552267.2863
B72: 70 | C72: 65600 | D72: 63632 | E72: 63632 | F72: 16358.18838 | G72: 18627.72777 | H72: 20950.36382 | I72: 4592000 | J72: 5013147.629 | K72: 5087660.088 | L72: 5163249.65 | M72: =FV(Paramètres!$C$24,B72,-D72,,1)-FV(i_p_1,B72,-D72,,1)+(1-PI_1)*'Simulations (3)'!C72*B72 -> -4502648.38 | N72: =FV(Paramètres!$D$24,B72,-D72,,1)-FV(i_p_2,B72,-D72,,1)+(1-PI_1)*'Simulations (3)'!C72*B72 -> -5494922.594 | O72: =FV(Paramètres!$E$24,B72,-E72,,1)-FV(i_p_3,B72,-E72,,1)+(1-PI_1)*'Simulations (3)'!C72*B72 -> -6622806.105 | P72: 421147.6295 | Q72: 495660.0881 | R72: 571249.6501
B73: 71 | C73: =Prime_périodique -> 65600 | D73: 63632 | E73: 63632 | F73: 16620.05544 | G73: 18930.01659 | H73: 21294.96285 | I73: 4657600 | J73: 5093399.685 | K73: 5170222.105 | L73: 5248176.613 | M73: =FV(Paramètres!$C$24,B73,-D73,,1)-FV(i_p_1,B73,-D73,,1)+(1-PI_1)*'Simulations (3)'!C73*B73 -> -4676498.57 | N73: =FV(Paramètres!$D$24,B73,-D73,,1)-FV(i_p_2,B73,-D73,,1)+(1-PI_1)*'Simulations (3)'!C73*B73 -> -5713994.058 | O73: =FV(Paramètres!$E$24,B73,-E73,,1)-FV(i_p_3,B73,-E73,,1)+(1-PI_1)*'Simulations (3)'!C73*B73 -> -6895574.083 | P73: 435799.6849 | Q73: 512622.1047 | R73: 590576.613
B74: 72 | C74: 65600 | D74: 63632 | E74: 63632 | F74: 16882.77978 | G74: 19233.41626 | H74: 21640.9658 | I74: 4723200 | J74: 5173914.465 | K74: 5253087.521 | L74: 5333449.579 | M74: =FV(Paramètres!$C$24,B74,-D74,,1)-FV(i_p_1,B74,-D74,,1)+(1-PI_1)*'Simulations (3)'!C74*B74 -> -4855157.227 | N74: =FV(Paramètres!$D$24,B74,-D74,,1)-FV(i_p_2,B74,-D74,,1)+(1-PI_1)*'Simulations (3)'!C74*B74 -> -5939517.988 | O74: =FV(Paramètres!$E$24,B74,-E74,,1)-FV(i_p_3,B74,-E74,,1)+(1-PI_1)*'Simulations (3)'!C74*B74 -> -7176877.961 | P74: 450714.4647 | Q74: 529887.5209 | R74: 610249.5788
A75: 7 | B75: 73 | C75: 65600 | D75: 63632 | E75: 63632 | F75: 17146.36422 | G75: 19537.93087 | H75: 21988.37842 | I75: 4788800 | J75: 5254692.829 | K75: 5336257.452 | L75: 5419069.957 | M75: =FV(Paramètres!$C$24,B75,-D75,,1)-FV(i_p_1,B75,-D75,,1)+(1-PI_1)*'Simulations (3)'!C75*B75 -> -5038723.919 | N75: =FV(Paramètres!$D$24,B75,-D75,,1)-FV(i_p_2,B75,-D75,,1)+(1-PI_1)*'Simulations (3)'!C75*B75 -> -6171643.604 | O75: =FV(Paramètres!$E$24,B75,-E75,,1)-FV(i_p_3,B75,-E75,,1)+(1-PI_1)*'Simulations (3)'!C75*B75 -> -7466935.67 | P75: 465892.8289 | Q75: 547457.4518 | R75: 630269.9572
B76: 74 | C76: 65600 | D76: 63632 | E76: 63632 | F76: 17410.81157 | G76: 19843.56452 | H76: 22337.20644 | I76: 4854400 | J76: 5335735.64 | K76: 5419733.016 | L76: 5505039.164 | M76: =FV(Paramètres!$C$24,B76,-D76,,1)-FV(i_p_1,B76,-D76,,1)+(1-PI_1)*'Simulations (3)'!C76*B76 -> -5227300.201 | N76: =FV(Paramètres!$D$24,B76,-D76,,1)-FV(i_p_2,B76,-D76,,1)+(1-PI_1)*'Simulations (3)'!C76*B76 -> -6410523.466 | O76: =FV(Paramètres!$E$24,B76,-E76,,1)-FV(i_p_3,B76,-E76,,1)+(1-PI_1)*'Simulations (3)'!C76*B76 -> -7765970.55 | P76: 481335.6405 | Q76: 565333.0163 | R76: 650639.1636
B77: 75 | C77: 65600 | D77: 63632 | E77: 63632 | F77: 17676.12464 | G77: 20150.32131 | H77: 22687.45563 | I77: 4920000 | J77: 5417043.765 | K77: 5503515.338 | L77: 5591358.619 | M77: =FV(Paramètres!$C$24,B77,-D77,,1)-FV(i_p_1,B77,-D77,,1)+(1-PI_1)*'Simulations (3)'!C77*B77 -> -5420989.654 | N77: =FV(Paramètres!$D$24,B77,-D77,,1)-FV(i_p_2,B77,-D77,,1)+(1-PI_1)*'Simulations (3)'!C77*B77 -> -6656313.551 | O77: =FV(Paramètres!$E$24,B77,-E77,,1)-FV(i_p_3,B77,-E77,,1)+(1-PI_1)*'Simulations (3)'!C77*B77 -> -8074211.487 | P77: 497043.7651 | Q77: 583515.3376 | R77: 671358.6193
B78: 76 | C78: 65600 | D78: 63632 | E78: 63632 | F78: 17942.30629 | G78: 20458.20537 | H78: 23039.13178 | I78: 4985600 | J78: 5498618.071 | K78: 5587605.543 | L78: 5678029.751 | M78: =FV(Paramètres!$C$24,B78,-D78,,1)-FV(i_p_1,B78,-D78,,1)+(1-PI_1)*'Simulations (3)'!C78*B78 -> -5619897.925 | N78: =FV(Paramètres!$D$24,B78,-D78,,1)-FV(i_p_2,B78,-D78,,1)+(1-PI_1)*'Simulations (3)'!C78*B78 -> -6909173.327 | O78: =FV(Paramètres!$E$24,B78,-E78,,1)-FV(i_p_3,B78,-E78,,1)+(1-PI_1)*'Simulations (3)'!C78*B78 -> -8391893.046 | P78: 513018.0714 | Q78: 602005.543 | R78: 692429.751
B79: 77 | C79: 65600 | D79: 63632 | E79: 63632 | F79: 18209.35934 | G79: 20767.22085 | H79: 23392.2407 | I79: 5051200 | J79: 5580459.431 | K79: 5672004.764 | L79: 5765053.992 | M79: =FV(Paramètres!$C$24,B79,-D79,,1)-FV(i_p_1,B79,-D79,,1)+(1-PI_1)*'Simulations (3)'!C79*B79 -> -5824132.767 | N79: =FV(Paramètres!$D$24,B79,-D79,,1)-FV(i_p_2,B79,-D79,,1)+(1-PI_1)*'Simulations (3)'!C79*B79 -> -7169265.831 | O79: =FV(Paramètres!$E$24,B79,-E79,,1)-FV(i_p_3,B79,-E79,,1)+(1-PI_1)*'Simulations (3)'!C79*B79 -> -8719255.617 | P79: 529259.4307 | Q79: 620804.7638 | R79: 713853.9917
B80: 78 | C80: 65600 | D80: 63632 | E80: 63632 | F80: 18477.28665 | G80: 21077.3719 | H80: 23746.78823 | I80: 5116800 | J80: 5662568.717 | K80: 5756714.136 | L80: 5852432.78 | M80: =FV(Paramètres!$C$24,B80,-D80,,1)-FV(i_p_1,B80,-D80,,1)+(1-PI_1)*'Simulations (3)'!C80*B80 -> -6033804.081 | N80: =FV(Paramètres!$D$24,B80,-D80,,1)-FV(i_p_2,B80,-D80,,1)+(1-PI_1)*'Simulations (3)'!C80*B80 -> -7436757.749 | O80: =FV(Paramètres!$E$24,B80,-E80,,1)-FV(i_p_3,B80,-E80,,1)+(1-PI_1)*'Simulations (3)'!C80*B80 -> -9056545.554 | P80: 545768.7174 | Q80: 639914.1357 | R80: 735632.78
B81: 79 | C81: 65600 | D81: 63632 | E81: 63632 | F81: 18746.09109 | G81: 21388.66269 | H81: 24102.78023 | I81: 5182400 | J81: 5744946.808 | K81: 5841734.798 | L81: 5940167.56 | M81: =FV(Paramètres!$C$24,B81,-D81,,1)-FV(i_p_1,B81,-D81,,1)+(1-PI_1)*'Simulations (3)'!C81*B81 -> -6249023.959 | N81: =FV(Paramètres!$D$24,B81,-D81,,1)-FV(i_p_2,B81,-D81,,1)+(1-PI_1)*'Simulations (3)'!C81*B81 -> -7711819.499 | O81: =FV(Paramètres!$E$24,B81,-E81,,1)-FV(i_p_3,B81,-E81,,1)+(1-PI_1)*'Simulations (3)'!C81*B81 -> -9404015.326 | P81: 562546.8085 | Q81: 659334.7984 | R81: 757767.5602
B82: 80 | C82: 65600 | D82: 63632 | E82: 63632 | F82: 19015.77552 | G82: 21701.09742 | H82: 24460.22258 | I82: 5248000 | J82: 5827594.584 | K82: 5927067.896 | L82: 6028259.783 | M82: =FV(Paramètres!$C$24,B82,-D82,,1)-FV(i_p_1,B82,-D82,,1)+(1-PI_1)*'Simulations (3)'!C82*B82 -> -6469906.728 | N82: =FV(Paramètres!$D$24,B82,-D82,,1)-FV(i_p_2,B82,-D82,,1)+(1-PI_1)*'Simulations (3)'!C82*B82 -> -7994625.309 | O82: =FV(Paramètres!$E$24,B82,-E82,,1)-FV(i_p_3,B82,-E82,,1)+(1-PI_1)*'Simulations (3)'!C82*B82 -> -9761923.665 | P82: 579594.584 | Q82: 679067.8959 | R82: 780259.7828
B83: 81 | C83: 65600 | D83: 63632 | E83: 63632 | F83: 19286.34283 | G83: 22014.68029 | H83: 24819.1212 | I83: 5313600 | J83: 5910512.927 | K83: 6012714.576 | L83: 6116710.904 | M83: =FV(Paramètres!$C$24,B83,-D83,,1)-FV(i_p_1,B83,-D83,,1)+(1-PI_1)*'Simulations (3)'!C83*B83 -> -6696568.994 | N83: =FV(Paramètres!$D$24,B83,-D83,,1)-FV(i_p_2,B83,-D83,,1)+(1-PI_1)*'Simulations (3)'!C83*B83 -> -8285353.31 | O83: =FV(Paramètres!$E$24,B83,-E83,,1)-FV(i_p_3,B83,-E83,,1)+(1-PI_1)*'Simulations (3)'!C83*B83 -> -10130535.72 | P83: 596912.9268 | Q83: 699114.5761 | R83: 803110.904
B84: 82 | C84: 65600 | D84: 63632 | E84: 63632 | F84: 19557.79591 | G84: 22329.41552 | H84: 25179.48202 | I84: 5379200 | J84: 5993702.723 | K84: 6098675.992 | L84: 6205522.386 | M84: =FV(Paramètres!$C$24,B84,-D84,,1)-FV(i_p_1,B84,-D84,,1)+(1-PI_1)*'Simulations (3)'!C84*B84 -> -6929129.684 | N84: =FV(Paramètres!$D$24,B84,-D84,,1)-FV(i_p_2,B84,-D84,,1)+(1-PI_1)*'Simulations (3)'!C84*B84 -> -8584185.613 | O84: =FV(Paramètres!$E$24,B84,-E84,,1)-FV(i_p_3,B84,-E84,,1)+(1-PI_1)*'Simulations (3)'!C84*B84 -> -10510123.23 | P84: 614502.7228 | Q84: 719475.9917 | R84: 826322.386
B85: 83 | C85: 65600 | D85: 63632 | E85: 63632 | F85: 19830.13766 | G85: 22645.30734 | H85: 25541.31099 | I85: 5444800 | J85: 6077164.86 | K85: 6184953.299 | L85: 6294695.697 | M85: =FV(Paramètres!$C$24,B85,-D85,,1)-FV(i_p_1,B85,-D85,,1)+(1-PI_1)*'Simulations (3)'!C85*B85 -> -7167710.099 | N85: =FV(Paramètres!$D$24,B85,-D85,,1)-FV(i_p_2,B85,-D85,,1)+(1-PI_1)*'Simulations (3)'!C85*B85 -> -8891308.408 | O85: =FV(Paramètres!$E$24,B85,-E85,,1)-FV(i_p_3,B85,-E85,,1)+(1-PI_1)*'Simulations (3)'!C85*B85 -> -10900964.66 | P85: 632364.8604 | Q85: 740153.299 | R85: 849895.697
B86: 84 | C86: 65600 | D86: 63632 | E86: 63632 | F86: 20103.37098 | G86: 22962.36 | H86: 25904.61409 | I86: 5510400 | J86: 6160900.231 | K86: 6271547.659 | L86: 6384232.311 | M86: =FV(Paramètres!$C$24,B86,-D86,,1)-FV(i_p_1,B86,-D86,,1)+(1-PI_1)*'Simulations (3)'!C86*B86 -> -7412433.954 | N86: =FV(Paramètres!$D$24,B86,-D86,,1)-FV(i_p_2,B86,-D86,,1)+(1-PI_1)*'Simulations (3)'!C86*B86 -> -9206912.044 | O86: =FV(Paramètres!$E$24,B86,-E86,,1)-FV(i_p_3,B86,-E86,,1)+(1-PI_1)*'Simulations (3)'!C86*B86 -> -11303345.38 | P86: 650500.2314 | Q86: 761147.659 | R86: 873832.3111
A87: 8 | B87: 85 | C87: 65600 | D87: 63632 | E87: 63632 | F87: 20377.49879 | G87: 23280.57776 | H87: 26269.39734 | I87: 5576000 | J87: 6244909.73 | K87: 6358460.237 | L87: 6474133.708 | M87: =FV(Paramètres!$C$24,B87,-D87,,1)-FV(i_p_1,B87,-D87,,1)+(1-PI_1)*'Simulations (3)'!C87*B87 -> -7663427.429 | N87: =FV(Paramètres!$D$24,B87,-D87,,1)-FV(i_p_2,B87,-D87,,1)+(1-PI_1)*'Simulations (3)'!C87*B87 -> -9531191.132 | O87: =FV(Paramètres!$E$24,B87,-E87,,1)-FV(i_p_3,B87,-E87,,1)+(1-PI_1)*'Simulations (3)'!C87*B87 -> -11717557.86 | P87: 668909.7302 | Q87: 782460.2368 | R87: 898133.7084
B88: 86 | C88: 65600 | D88: 63632 | E88: 63632 | F88: 20652.52403 | G88: 23599.96492 | H88: 26635.66676 | I88: 5641600 | J88: 6329194.254 | K88: 6445692.202 | L88: 6564401.375 | M88: =FV(Paramètres!$C$24,B88,-D88,,1)-FV(i_p_1,B88,-D88,,1)+(1-PI_1)*'Simulations (3)'!C88*B88 -> -7920819.22 | N88: =FV(Paramètres!$D$24,B88,-D88,,1)-FV(i_p_2,B88,-D88,,1)+(1-PI_1)*'Simulations (3)'!C88*B88 -> -9864344.634 | O88: =FV(Paramètres!$E$24,B88,-E88,,1)-FV(i_p_3,B88,-E88,,1)+(1-PI_1)*'Simulations (3)'!C88*B88 -> -12143901.8 | P88: 687594.2542 | Q88: 804092.2017 | R88: 922801.3752
B89: 87 | C89: 65600 | D89: 63632 | E89: 63632 | F89: 20928.44963 | G89: 23920.52577 | H89: 27003.42841 | I89: 5707200 | J89: 6413754.704 | K89: 6533244.727 | L89: 6655036.804 | M89: =FV(Paramètres!$C$24,B89,-D89,,1)-FV(i_p_1,B89,-D89,,1)+(1-PI_1)*'Simulations (3)'!C89*B89 -> -8184740.584 | N89: =FV(Paramètres!$D$24,B89,-D89,,1)-FV(i_p_2,B89,-D89,,1)+(1-PI_1)*'Simulations (3)'!C89*B89 -> -10206575.96 | O89: =FV(Paramètres!$E$24,B89,-E89,,1)-FV(i_p_3,B89,-E89,,1)+(1-PI_1)*'Simulations (3)'!C89*B89 -> -12582684.34 | P89: 706554.7038 | Q89: 826044.7274 | R89: 947836.8036
B90: 88 | C90: 65600 | D90: 63632 | E90: 63632 | F90: 21205.27854 | G90: 24242.26461 | H90: 27372.68837 | I90: 5772800 | J90: 6498591.982 | K90: 6621118.992 | L90: 6746041.492 | M90: =FV(Paramètres!$C$24,B90,-D90,,1)-FV(i_p_1,B90,-D90,,1)+(1-PI_1)*'Simulations (3)'!C90*B90 -> -8455325.393 | N90: =FV(Paramètres!$D$24,B90,-D90,,1)-FV(i_p_2,B90,-D90,,1)+(1-PI_1)*'Simulations (3)'!C90*B90 -> -10558093.07 | O90: =FV(Paramètres!$E$24,B90,-E90,,1)-FV(i_p_3,B90,-E90,,1)+(1-PI_1)*'Simulations (3)'!C90*B90 -> -13034220.24 | P90: 725791.9824 | Q90: 848318.9921 | R90: 973241.492
B91: 89 | C91: 65600 | D91: 63632 | E91: 63632 | F91: 21483.01371 | G91: 24565.18579 | H91: 27743.45273 | I91: 5838400 | J91: 6583706.996 | K91: 6709316.178 | L91: 6837416.945 | M91: =FV(Paramètres!$C$24,B91,-D91,,1)-FV(i_p_1,B91,-D91,,1)+(1-PI_1)*'Simulations (3)'!C91*B91 -> -8732710.185 | N91: =FV(Paramètres!$D$24,B91,-D91,,1)-FV(i_p_2,B91,-D91,,1)+(1-PI_1)*'Simulations (3)'!C91*B91 -> -10919108.56 | O91: =FV(Paramètres!$E$24,B91,-E91,,1)-FV(i_p_3,B91,-E91,,1)+(1-PI_1)*'Simulations (3)'!C91*B91 -> -13498832.06 | P91: 745306.9961 | Q91: 870916.1778 | R91: 999016.9447
B92: 90 | C92: 65600 | D92: 63632 | E92: 63632 | F92: 21761.65812 | G92: 24889.29363 | H92: 28115.72764 | I92: 5904000 | J92: 6669100.654 | K92: 6797837.471 | L92: 6929164.672 | M92: =FV(Paramètres!$C$24,B92,-D92,,1)-FV(i_p_1,B92,-D92,,1)+(1-PI_1)*'Simulations (3)'!C92*B92 -> -9017034.218 | N92: =FV(Paramètres!$D$24,B92,-D92,,1)-FV(i_p_2,B92,-D92,,1)+(1-PI_1)*'Simulations (3)'!C92*B92 -> -11289839.82 | O92: =FV(Paramètres!$E$24,B92,-E92,,1)-FV(i_p_3,B92,-E92,,1)+(1-PI_1)*'Simulations (3)'!C92*B92 -> -13976850.34 | P92: 765100.6542 | Q92: 893837.4715 | R92: 1025164.672
B93: 91 | C93: 65600 | D93: 63632 | E93: 63632 | F93: 22041.21473 | G93: 25214.59251 | H93: 28489.51924 | I93: 5969600 | J93: 6754773.869 | K93: 6886684.064 | L93: 7021286.192 | M93: =FV(Paramètres!$C$24,B93,-D93,,1)-FV(i_p_1,B93,-D93,,1)+(1-PI_1)*'Simulations (3)'!C93*B93 -> -9308439.522 | N93: =FV(Paramètres!$D$24,B93,-D93,,1)-FV(i_p_2,B93,-D93,,1)+(1-PI_1)*'Simulations (3)'!C93*B93 -> -11670509.04 | O93: =FV(Paramètres!$E$24,B93,-E93,,1)-FV(i_p_3,B93,-E93,,1)+(1-PI_1)*'Simulations (3)'!C93*B93 -> -14468613.86 | P93: 785173.8689 | Q93: 917084.064 | R93: 1051686.192
B94: 92 | C94: 65600 | D94: 63632 | E94: 63632 | F94: 22321.68654 | G94: 25541.08681 | H94: 28864.83371 | I94: 6035200 | J94: 6840727.555 | K94: 6975857.151 | L94: 7113783.025 | M94: =FV(Paramètres!$C$24,B94,-D94,,1)-FV(i_p_1,B94,-D94,,1)+(1-PI_1)*'Simulations (3)'!C94*B94 -> -9607070.954 | N94: =FV(Paramètres!$D$24,B94,-D94,,1)-FV(i_p_2,B94,-D94,,1)+(1-PI_1)*'Simulations (3)'!C94*B94 -> -12061343.42 | O94: =FV(Paramètres!$E$24,B94,-E94,,1)-FV(i_p_3,B94,-E94,,1)+(1-PI_1)*'Simulations (3)'!C94*B94 -> -14974469.74 | P94: 805527.5555 | Q94: 940657.1508 | R94: 1078583.025
B95: 93 | C95: 65600 | D95: 63632 | E95: 63632 | F95: 22603.07655 | G95: 25868.78091 | H95: 29241.67726 | I95: 6100800 | J95: 6926962.632 | K95: 7065357.932 | L95: 7206656.703 | M95: =FV(Paramètres!$C$24,B95,-D95,,1)-FV(i_p_1,B95,-D95,,1)+(1-PI_1)*'Simulations (3)'!C95*B95 -> -9913076.256 | N95: =FV(Paramètres!$D$24,B95,-D95,,1)-FV(i_p_2,B95,-D95,,1)+(1-PI_1)*'Simulations (3)'!C95*B95 -> -12462575.23 | O95: =FV(Paramètres!$E$24,B95,-E95,,1)-FV(i_p_3,B95,-E95,,1)+(1-PI_1)*'Simulations (3)'!C95*B95 -> -15494773.74 | P95: 826162.632 | Q95: 964557.9317 | R95: 1105856.703
B96: 94 | C96: 65600 | D96: 63632 | E96: 63632 | F96: 22885.38775 | G96: 26197.67922 | H96: 29620.05612 | I96: 6166400 | J96: 7013480.02 | K96: 7155187.611 | L96: 7299908.759 | M96: =FV(Paramètres!$C$24,B96,-D96,,1)-FV(i_p_1,B96,-D96,,1)+(1-PI_1)*'Simulations (3)'!C96*B96 -> -10226606.11 | N96: =FV(Paramètres!$D$24,B96,-D96,,1)-FV(i_p_2,B96,-D96,,1)+(1-PI_1)*'Simulations (3)'!C96*B96 -> -12874441.91 | O96: =FV(Paramètres!$E$24,B96,-E96,,1)-FV(i_p_3,B96,-E96,,1)+(1-PI_1)*'Simulations (3)'!C96*B96 -> -16029890.44 | P96: 847080.0198 | Q96: 988787.6109 | R96: 1133508.759
B97: 95 | C97: 65600 | D97: 63632 | E97: 63632 | F97: 23168.62316 | G97: 26527.78617 | H97: 29999.97654 | I97: 6232000 | J97: 7100280.643 | K97: 7245347.397 | L97: 7393540.735 | M97: =FV(Paramètres!$C$24,B97,-D97,,1)-FV(i_p_1,B97,-D97,,1)+(1-PI_1)*'Simulations (3)'!C97*B97 -> -10547814.2 | N97: =FV(Paramètres!$D$24,B97,-D97,,1)-FV(i_p_2,B97,-D97,,1)+(1-PI_1)*'Simulations (3)'!C97*B97 -> -13297186.24 | O97: =FV(Paramètres!$E$24,B97,-E97,,1)-FV(i_p_3,B97,-E97,,1)+(1-PI_1)*'Simulations (3)'!C97*B97 -> -16580193.43 | P97: 868280.6429 | Q97: 1013347.397 | R97: 1161540.735
B98: 96 | C98: 65600 | D98: 63632 | E98: 63632 | F98: 23452.78582 | G98: 26859.1062 | H98: 30381.4448 | I98: 6297600 | J98: 7187365.429 | K98: 7335838.503 | L98: 7487554.18 | M98: =FV(Paramètres!$C$24,B98,-D98,,1)-FV(i_p_1,B98,-D98,,1)+(1-PI_1)*'Simulations (3)'!C98*B98 -> -10876857.27 | N98: =FV(Paramètres!$D$24,B98,-D98,,1)-FV(i_p_2,B98,-D98,,1)+(1-PI_1)*'Simulations (3)'!C98*B98 -> -13731056.39 | O98: =FV(Paramètres!$E$24,B98,-E98,,1)-FV(i_p_3,B98,-E98,,1)+(1-PI_1)*'Simulations (3)'!C98*B98 -> -17146065.58 | P98: 889765.4288 | Q98: 1038238.503 | R98: 1189954.18
A99: 9 | B99: 97 | C99: 65600 | D99: =+C99*PI_1 -> 63632 | E99: 63632 | F99: 23737.87874 | G99: 27191.64376 | H99: 30764.46721 | I99: 6363200 | J99: 7274735.307 | K99: 7426662.147 | L99: 7581950.647 | M99: =FV(Paramètres!$C$24,B99,-D99,,1)-FV(i_p_1,B99,-D99,,1)+(1-PI_1)*'Simulations (3)'!C99*B99 -> -11213895.17 | N99: =FV(Paramètres!$D$24,B99,-D99,,1)-FV(i_p_2,B99,-D99,,1)+(1-PI_1)*'Simulations (3)'!C99*B99 -> -14176306.11 | O99: =FV(Paramètres!$E$24,B99,-E99,,1)-FV(i_p_3,B99,-E99,,1)+(1-PI_1)*'Simulations (3)'!C99*B99 -> -17727899.23 | P99: 911535.3075 | Q99: 1063462.147 | R99: 1218750.647
B100: 98 | C100: 65600 | D100: 63632 | E100: 63632 | F100: 24023.90499 | G100: 27525.40334 | H100: 31149.0501 | I100: 6428800 | J100: 7362391.212 | K100: 7517819.55 | L100: 7676731.697 | M100: =FV(Paramètres!$C$24,B100,-D100,,1)-FV(i_p_1,B100,-D100,,1)+(1-PI_1)*'Simulations (3)'!C100*B100 -> -11559090.96 | N100: =FV(Paramètres!$D$24,B100,-D100,,1)-FV(i_p_2,B100,-D100,,1)+(1-PI_1)*'Simulations (3)'!C100*B100 -> -14633194.78 | O100: =FV(Paramètres!$E$24,B100,-E100,,1)-FV(i_p_3,B100,-E100,,1)+(1-PI_1)*'Simulations (3)'!C100*B100 -> -18326096.44 | P100: 933591.2125 | Q100: 1089019.55 | R100: 1247931.697
B101: 99 | C101: 65600 | D101: 63632 | E101: 63632 | F101: 24310.86761 | G101: 27860.38943 | H101: 31535.19983 | I101: 6494400 | J101: 7450334.08 | K101: 7609311.94 | L101: 7771898.897 | M101: =FV(Paramètres!$C$24,B101,-D101,,1)-FV(i_p_1,B101,-D101,,1)+(1-PI_1)*'Simulations (3)'!C101*B101 -> -11912610.9 | N101: =FV(Paramètres!$D$24,B101,-D101,,1)-FV(i_p_2,B101,-D101,,1)+(1-PI_1)*'Simulations (3)'!C101*B101 -> -15101987.61 | O101: =FV(Paramètres!$E$24,B101,-E101,,1)-FV(i_p_3,B101,-E101,,1)+(1-PI_1)*'Simulations (3)'!C101*B101 -> -18941069.27 | P101: 955934.0801 | Q101: 1114911.94 | R101: 1277498.897
B102: 100 | C102: 65600 | D102: 63632 | E102: 63632 | F102: 24598.76968 | G102: 28196.60652 | H102: 31922.92279 | I102: 6560000 | J102: 7538564.85 | K102: 7701140.546 | L102: 7867453.82 | M102: =FV(Paramètres!$C$24,B102,-D102,,1)-FV(i_p_1,B102,-D102,,1)+(1-PI_1)*'Simulations (3)'!C102*B102 -> -12274624.61 | N102: =FV(Paramètres!$D$24,B102,-D102,,1)-FV(i_p_2,B102,-D102,,1)+(1-PI_1)*'Simulations (3)'!C102*B102 -> -15582955.72 | O102: =FV(Paramètres!$E$24,B102,-E102,,1)-FV(i_p_3,B102,-E102,,1)+(1-PI_1)*'Simulations (3)'!C102*B102 -> -19573239.93 | P102: 978564.8498 | Q102: 1141140.546 | R102: 1307453.82
B103: 101 | C103: 65600 | D103: 63632 | E103: 63632 | F103: 24887.61426 | G103: 28534.05915 | H103: 32312.22537 | I103: 6625600 | J103: 7627084.464 | K103: 7793306.605 | L103: 7963398.045 | M103: =FV(Paramètres!$C$24,B103,-D103,,1)-FV(i_p_1,B103,-D103,,1)+(1-PI_1)*'Simulations (3)'!C103*B103 -> -12645305.04 | N103: =FV(Paramètres!$D$24,B103,-D103,,1)-FV(i_p_2,B103,-D103,,1)+(1-PI_1)*'Simulations (3)'!C103*B103 -> -16076376.27 | O103: =FV(Paramètres!$E$24,B103,-E103,,1)-FV(i_p_3,B103,-E103,,1)+(1-PI_1)*'Simulations (3)'!C103*B103 -> -20223041.12 | P103: 1001484.464 | Q103: 1167706.605 | R103: 1337798.045
B104: 102 | C104: 65600 | D104: 63632 | E104: 63632 | F104: 25177.40444 | G104: 28872.75185 | H104: 32703.11402 | I104: 6691200 | J104: 7715893.868 | K104: 7885811.357 | L104: 8059733.159 | M104: =FV(Paramètres!$C$24,B104,-D104,,1)-FV(i_p_1,B104,-D104,,1)+(1-PI_1)*'Simulations (3)'!C104*B104 -> -13024828.61 | N104: =FV(Paramètres!$D$24,B104,-D104,,1)-FV(i_p_2,B104,-D104,,1)+(1-PI_1)*'Simulations (3)'!C104*B104 -> -16582532.64 | O104: =FV(Paramètres!$E$24,B104,-E104,,1)-FV(i_p_3,B104,-E104,,1)+(1-PI_1)*'Simulations (3)'!C104*B104 -> -20890916.27 | P104: 1024693.868 | Q104: 1194611.357 | R104: 1368533.159
B105: 103 | C105: 65600 | D105: 63632 | E105: 63632 | F105: 25468.14332 | G105: 29212.68918 | H105: 33095.5952 | I105: 6756800 | J105: 7804994.012 | K105: 7978656.047 | L105: 8156460.755 | M105: =FV(Paramètres!$C$24,B105,-D105,,1)-FV(i_p_1,B105,-D105,,1)+(1-PI_1)*'Simulations (3)'!C105*B105 -> -13413375.23 | N105: =FV(Paramètres!$D$24,B105,-D105,,1)-FV(i_p_2,B105,-D105,,1)+(1-PI_1)*'Simulations (3)'!C105*B105 -> -17101714.53 | O105: =FV(Paramètres!$E$24,B105,-E105,,1)-FV(i_p_3,B105,-E105,,1)+(1-PI_1)*'Simulations (3)'!C105*B105 -> -21577319.77 | P105: 1048194.012 | Q105: 1221856.047 | R105: 1399660.755
B106: 104 | C106: 65600 | D106: 63632 | E106: 63632 | F106: 25759.83401 | G106: 29553.87571 | H106: 33489.67539 | I106: 6822400 | J106: 7894385.846 | K106: 8071841.922 | L106: 8253582.43 | M106: =FV(Paramètres!$C$24,B106,-D106,,1)-FV(i_p_1,B106,-D106,,1)+(1-PI_1)*'Simulations (3)'!C106*B106 -> -13811128.41 | N106: =FV(Paramètres!$D$24,B106,-D106,,1)-FV(i_p_2,B106,-D106,,1)+(1-PI_1)*'Simulations (3)'!C106*B106 -> -17634218.08 | O106: =FV(Paramètres!$E$24,B106,-E106,,1)-FV(i_p_3,B106,-E106,,1)+(1-PI_1)*'Simulations (3)'!C106*B106 -> -22282717.27 | P106: 1071985.846 | Q106: 1249441.922 | R106: 1431182.43
B107: 105 | C107: 65600 | D107: 63632 | E107: 63632 | F107: 26052.47961 | G107: 29896.31605 | H107: 33885.36112 | I107: 6888000 | J107: 7984070.325 | K107: 8165370.238 | L107: 8351099.791 | M107: =FV(Paramètres!$C$24,B107,-D107,,1)-FV(i_p_1,B107,-D107,,1)+(1-PI_1)*'Simulations (3)'!C107*B107 -> -14218275.29 | N107: =FV(Paramètres!$D$24,B107,-D107,,1)-FV(i_p_2,B107,-D107,,1)+(1-PI_1)*'Simulations (3)'!C107*B107 -> -18180346.1 | O107: =FV(Paramètres!$E$24,B107,-E107,,1)-FV(i_p_3,B107,-E107,,1)+(1-PI_1)*'Simulations (3)'!C107*B107 -> -23007585.96 | P107: 1096070.325 | Q107: 1277370.238 | R107: 1463099.791
B108: 106 | C108: 65600 | D108: 63632 | E108: 63632 | F108: 26346.08326 | G108: 30240.01478 | H108: 34282.65892 | I108: 6953600 | J108: 8074048.409 | K108: 8259242.253 | L108: 8449014.45 | M108: =FV(Paramètres!$C$24,B108,-D108,,1)-FV(i_p_1,B108,-D108,,1)+(1-PI_1)*'Simulations (3)'!C108*B108 -> -14635006.74 | N108: =FV(Paramètres!$D$24,B108,-D108,,1)-FV(i_p_2,B108,-D108,,1)+(1-PI_1)*'Simulations (3)'!C108*B108 -> -18740408.1 | O108: =FV(Paramètres!$E$24,B108,-E108,,1)-FV(i_p_3,B108,-E108,,1)+(1-PI_1)*'Simulations (3)'!C108*B108 -> -23752414.83 | P108: 1120448.409 | Q108: 1305642.253 | R108: 1495414.45
B109: 107 | C109: 65600 | D109: 63632 | E109: 63632 | F109: 26640.64809 | G109: 30584.97654 | H109: 34681.57536 | I109: 7019200 | J109: 8164321.057 | K109: 8353459.23 | L109: 8547328.025 | M109: =FV(Paramètres!$C$24,B109,-D109,,1)-FV(i_p_1,B109,-D109,,1)+(1-PI_1)*'Simulations (3)'!C109*B109 -> -15061517.43 | N109: =FV(Paramètres!$D$24,B109,-D109,,1)-FV(i_p_2,B109,-D109,,1)+(1-PI_1)*'Simulations (3)'!C109*B109 -> -19314720.54 | O109: =FV(Paramètres!$E$24,B109,-E109,,1)-FV(i_p_3,B109,-E109,,1)+(1-PI_1)*'Simulations (3)'!C109*B109 -> -24517705.01 | P109: 1145121.057 | Q109: 1334259.23 | R109: 1528128.025
B110: 108 | C110: 65600 | D110: 63632 | E110: 63632 | F110: 26936.17725 | G110: 30931.20597 | H110: 35082.11704 | I110: 7084800 | J110: 8254889.234 | K110: 8448022.436 | L110: 8646042.142 | M110: =FV(Paramètres!$C$24,B110,-D110,,1)-FV(i_p_1,B110,-D110,,1)+(1-PI_1)*'Simulations (3)'!C110*B110 -> -15498005.88 | N110: =FV(Paramètres!$D$24,B110,-D110,,1)-FV(i_p_2,B110,-D110,,1)+(1-PI_1)*'Simulations (3)'!C110*B110 -> -19903606.95 | O110: =FV(Paramètres!$E$24,B110,-E110,,1)-FV(i_p_3,B110,-E110,,1)+(1-PI_1)*'Simulations (3)'!C110*B110 -> -25303970 | P110: 1170089.234 | Q110: 1363222.436 | R110: 1561242.142
A111: 10 | B111: 109 | C111: 65600 | D111: =+C111*PI_2 -> 63632 | E111: 63632 | F111: 27232.67389 | G111: 31278.70773 | H111: 35484.29057 | I111: 7150400 | J111: 8345753.908 | K111: 8542933.143 | L111: 8745158.433 | M111: =FV(Paramètres!$C$24,B111,-D111,,1)-FV(i_p_1,B111,-D111,,1)+(1-PI_1)*'Simulations (3)'!C111*B111 -> -15944674.6 | N111: =FV(Paramètres!$D$24,B111,-D111,,1)-FV(i_p_2,B111,-D111,,1)+(1-PI_1)*'Simulations (3)'!C111*B111 -> -20507398.05 | O111: =FV(Paramètres!$E$24,B111,-E111,,1)-FV(i_p_3,B111,-E111,,1)+(1-PI_1)*'Simulations (3)'!C111*B111 -> -26111736.05 | P111: 1195353.908 | Q111: 1392533.143 | R111: 1594758.433
B112: 110 | C112: 65600 | D112: 63632 | E112: 63632 | F112: 27530.14119 | G112: 31627.48649 | H112: 35888.10261 | I112: 7216000 | J112: 8436916.049 | K112: 8638192.63 | L112: 8844678.536 | M112: =FV(Paramètres!$C$24,B112,-D112,,1)-FV(i_p_1,B112,-D112,,1)+(1-PI_1)*'Simulations (3)'!C112*B112 -> -16401730.08 | N112: =FV(Paramètres!$D$24,B112,-D112,,1)-FV(i_p_2,B112,-D112,,1)+(1-PI_1)*'Simulations (3)'!C112*B112 -> -21126431.96 | O112: =FV(Paramètres!$E$24,B112,-E112,,1)-FV(i_p_3,B112,-E112,,1)+(1-PI_1)*'Simulations (3)'!C112*B112 -> -26941542.41 | P112: 1220916.049 | Q112: 1422192.63 | R112: 1628678.536
B113: 111 | C113: 65600 | D113: 63632 | E113: 63632 | F113: 27828.58232 | G113: 31977.54695 | H113: 36293.55982 | I113: 7281600 | J113: 8528376.631 | K113: 8733802.177 | L113: 8944604.095 | M113: =FV(Paramètres!$C$24,B113,-D113,,1)-FV(i_p_1,B113,-D113,,1)+(1-PI_1)*'Simulations (3)'!C113*B113 -> -16869382.94 | N113: =FV(Paramètres!$D$24,B113,-D113,,1)-FV(i_p_2,B113,-D113,,1)+(1-PI_1)*'Simulations (3)'!C113*B113 -> -21761054.36 | O113: =FV(Paramètres!$E$24,B113,-E113,,1)-FV(i_p_3,B113,-E113,,1)+(1-PI_1)*'Simulations (3)'!C113*B113 -> -27793941.71 | P113: 1246776.631 | Q113: 1452202.177 | R113: 1663004.095
B114: 112 | C114: 65600 | D114: 63632 | E114: 63632 | F114: 28128.00047 | G114: 32328.89381 | H114: 36700.66892 | I114: 7347200 | J114: 8620136.632 | K114: 8829763.071 | L114: 9044936.764 | M114: =FV(Paramètres!$C$24,B114,-D114,,1)-FV(i_p_1,B114,-D114,,1)+(1-PI_1)*'Simulations (3)'!C114*B114 -> -17347847.98 | N114: =FV(Paramètres!$D$24,B114,-D114,,1)-FV(i_p_2,B114,-D114,,1)+(1-PI_1)*'Simulations (3)'!C114*B114 -> -22411618.63 | O114: =FV(Paramètres!$E$24,B114,-E114,,1)-FV(i_p_3,B114,-E114,,1)+(1-PI_1)*'Simulations (3)'!C114*B114 -> -28669500.23 | P114: 1272936.632 | Q114: 1482563.071 | R114: 1697736.764
B115: 113 | C115: 65600 | D115: 63632 | E115: 63632 | F115: 28428.39883 | G115: 32681.53181 | H115: 37109.43664 | I115: 7412800 | J115: 8712197.031 | K115: 8926076.602 | L115: 9145678.201 | M115: =FV(Paramètres!$C$24,B115,-D115,,1)-FV(i_p_1,B115,-D115,,1)+(1-PI_1)*'Simulations (3)'!C115*B115 -> -17837344.28 | N115: =FV(Paramètres!$D$24,B115,-D115,,1)-FV(i_p_2,B115,-D115,,1)+(1-PI_1)*'Simulations (3)'!C115*B115 -> -23078486.05 | O115: =FV(Paramètres!$E$24,B115,-E115,,1)-FV(i_p_3,B115,-E115,,1)+(1-PI_1)*'Simulations (3)'!C115*B115 -> -29568798.29 | P115: 1299397.031 | Q115: 1513276.602 | R115: 1732878.201
B116: 114 | C116: 65600 | D116: 63632 | E116: 63632 | F116: 28729.78062 | G116: 33035.46568 | H116: 37519.86972 | I116: 7478400 | J116: 8804558.811 | K116: 9022744.068 | L116: 9246830.071 | M116: =FV(Paramètres!$C$24,B116,-D116,,1)-FV(i_p_1,B116,-D116,,1)+(1-PI_1)*'Simulations (3)'!C116*B116 -> -18338095.27 | N116: =FV(Paramètres!$D$24,B116,-D116,,1)-FV(i_p_2,B116,-D116,,1)+(1-PI_1)*'Simulations (3)'!C116*B116 -> -23762025.94 | O116: =FV(Paramètres!$E$24,B116,-E116,,1)-FV(i_p_3,B116,-E116,,1)+(1-PI_1)*'Simulations (3)'!C116*B116 -> -30492430.57 | P116: 1326158.811 | Q116: 1544344.068 | R116: 1768430.071
B117: 115 | C117: 65600 | D117: 63632 | E117: 63632 | F117: 29032.14906 | G117: 33390.70019 | H117: 37931.97496 | I117: 7544000 | J117: 8897222.96 | K117: 9119766.768 | L117: 9348394.046 | M117: =FV(Paramètres!$C$24,B117,-D117,,1)-FV(i_p_1,B117,-D117,,1)+(1-PI_1)*'Simulations (3)'!C117*B117 -> -18850328.81 | N117: =FV(Paramètres!$D$24,B117,-D117,,1)-FV(i_p_2,B117,-D117,,1)+(1-PI_1)*'Simulations (3)'!C117*B117 -> -24462615.89 | O117: =FV(Paramètres!$E$24,B117,-E117,,1)-FV(i_p_3,B117,-E117,,1)+(1-PI_1)*'Simulations (3)'!C117*B117 -> -31441006.46 | P117: 1353222.96 | Q117: 1575766.768 | R117: 1804394.046
B118: 116 | C118: 65600 | D118: 63632 | E118: 63632 | F118: 29335.50737 | G118: 33747.24012 | H118: 38345.75916 | I118: 7609600 | J118: 8990190.468 | K118: 9217146.008 | L118: 9450371.805 | M118: =FV(Paramètres!$C$24,B118,-D118,,1)-FV(i_p_1,B118,-D118,,1)+(1-PI_1)*'Simulations (3)'!C118*B118 -> -19374277.3 | N118: =FV(Paramètres!$D$24,B118,-D118,,1)-FV(i_p_2,B118,-D118,,1)+(1-PI_1)*'Simulations (3)'!C118*B118 -> -25180641.89 | O118: =FV(Paramètres!$E$24,B118,-E118,,1)-FV(i_p_3,B118,-E118,,1)+(1-PI_1)*'Simulations (3)'!C118*B118 -> -32415150.46 | P118: 1380590.468 | Q118: 1607546.008 | R118: 1840771.805
B119: 117 | C119: 65600 | D119: 63632 | E119: 63632 | F119: 29639.85879 | G119: 34105.09027 | H119: 38761.22918 | I119: 7675200 | J119: 9083462.327 | K119: 9314883.099 | L119: 9552765.034 | M119: =FV(Paramètres!$C$24,B119,-D119,,1)-FV(i_p_1,B119,-D119,,1)+(1-PI_1)*'Simulations (3)'!C119*B119 -> -19910177.75 | N119: =FV(Paramètres!$D$24,B119,-D119,,1)-FV(i_p_2,B119,-D119,,1)+(1-PI_1)*'Simulations (3)'!C119*B119 -> -25916498.58 | O119: =FV(Paramètres!$E$24,B119,-E119,,1)-FV(i_p_3,B119,-E119,,1)+(1-PI_1)*'Simulations (3)'!C119*B119 -> -33415502.5 | P119: 1408262.327 | Q119: 1639683.099 | R119: 1877565.034
B120: 118 | C120: 65600 | D120: 63632 | E120: 63632 | F120: 29945.20659 | G120: 34464.25545 | H120: 39178.39187 | I120: 7740800 | J120: 9177039.533 | K120: 9412979.354 | L120: 9655575.426 | M120: =FV(Paramètres!$C$24,B120,-D120,,1)-FV(i_p_1,B120,-D120,,1)+(1-PI_1)*'Simulations (3)'!C120*B120 -> -20458271.9 | N120: =FV(Paramètres!$D$24,B120,-D120,,1)-FV(i_p_2,B120,-D120,,1)+(1-PI_1)*'Simulations (3)'!C120*B120 -> -26670589.37 | O120: =FV(Paramètres!$E$24,B120,-E120,,1)-FV(i_p_3,B120,-E120,,1)+(1-PI_1)*'Simulations (3)'!C120*B120 -> -34442718.35 | P120: 1436239.533 | Q120: 1672179.354 | R120: 1914775.426
B121: 119 | C121: 65600 | D121: 63632 | E121: 63632 | F121: 30251.55401 | G121: 34824.74049 | H121: 39597.25413 | I121: 7806400 | J121: 9270923.087 | K121: 9511436.095 | L121: 9758804.68 | M121: =FV(Paramètres!$C$24,B121,-D121,,1)-FV(i_p_1,B121,-D121,,1)+(1-PI_1)*'Simulations (3)'!C121*B121 -> -21018806.28 | N121: =FV(Paramètres!$D$24,B121,-D121,,1)-FV(i_p_2,B121,-D121,,1)+(1-PI_1)*'Simulations (3)'!C121*B121 -> -27443326.69 | O121: =FV(Paramètres!$E$24,B121,-E121,,1)-FV(i_p_3,B121,-E121,,1)+(1-PI_1)*'Simulations (3)'!C121*B121 -> -35497470.03 | P121: 1464523.087 | Q121: 1705036.095 | R121: 1952404.68
B122: 120 | C122: 65600 | D122: 63632 | E122: 63632 | F122: 30558.90434 | G122: 35186.55024 | H122: 40017.82289 | I122: 7872000 | J122: 9365113.991 | K122: 9610254.645 | L122: 9862454.503 | M122: =FV(Paramètres!$C$24,B122,-D122,,1)-FV(i_p_1,B122,-D122,,1)+(1-PI_1)*'Simulations (3)'!C122*B122 -> -21592032.3 | N122: =FV(Paramètres!$D$24,B122,-D122,,1)-FV(i_p_2,B122,-D122,,1)+(1-PI_1)*'Simulations (3)'!C122*B122 -> -28235132.16 | O122: =FV(Paramètres!$E$24,B122,-E122,,1)-FV(i_p_3,B122,-E122,,1)+(1-PI_1)*'Simulations (3)'!C122*B122 -> -36580446.16 | P122: 1493113.991 | Q122: 1738254.645 | R122: 1990454.503
A123: 11 | B123: 121 | C123: 65600 | D123: 63632 | E123: 63632 | F123: 30867.26085 | G123: 35549.68958 | H123: 40440.1051 | I123: 7937600 | J123: 9459613.252 | K123: 9709436.334 | L123: 9966526.608 | M123: =FV(Paramètres!$C$24,B123,-D123,,1)-FV(i_p_1,B123,-D123,,1)+(1-PI_1)*'Simulations (3)'!C123*B123 -> -22178206.41 | N123: =FV(Paramètres!$D$24,B123,-D123,,1)-FV(i_p_2,B123,-D123,,1)+(1-PI_1)*'Simulations (3)'!C123*B123 -> -29046436.82 | O123: =FV(Paramètres!$E$24,B123,-E123,,1)-FV(i_p_3,B123,-E123,,1)+(1-PI_1)*'Simulations (3)'!C123*B123 -> -37692352.43 | P123: 1522013.252 | Q123: 1771836.334 | R123: 2028926.608
B124: 122 | C124: 65600 | D124: 63632 | E124: 63632 | F124: 31176.62684 | G124: 35914.16339 | H124: 40864.10774 | I124: 8003200 | J124: 9554421.879 | K124: 9808982.498 | L124: 10071022.72 | M124: =FV(Paramètres!$C$24,B124,-D124,,1)-FV(i_p_1,B124,-D124,,1)+(1-PI_1)*'Simulations (3)'!C124*B124 -> -22777590.11 | N124: =FV(Paramètres!$D$24,B124,-D124,,1)-FV(i_p_2,B124,-D124,,1)+(1-PI_1)*'Simulations (3)'!C124*B124 -> -29877681.31 | O124: =FV(Paramètres!$E$24,B124,-E124,,1)-FV(i_p_3,B124,-E124,,1)+(1-PI_1)*'Simulations (3)'!C124*B124 -> -38833911.98 | P124: 1551221.879 | Q124: 1805782.498 | R124: 2067822.716
B125: 123 | C125: 65600 | D125: 63632 | E125: 63632 | F125: 31487.00561 | G125: 36279.97656 | H125: 41289.83782 | I125: =+I124+C125 -> 8068800 | J125: 9649540.885 | K125: 9908894.474 | L125: 10175944.55 | M125: =FV(Paramètres!$C$24,B125,-D125,,1)-FV(i_p_1,B125,-D125,,1)+(1-PI_1)*'Simulations (3)'!C125*B125 -> -23390450.12 | N125: =FV(Paramètres!$D$24,B125,-D125,,1)-FV(i_p_2,B125,-D125,,1)+(1-PI_1)*'Simulations (3)'!C125*B125 -> -30729316.13 | O125: =FV(Paramètres!$E$24,B125,-E125,,1)-FV(i_p_3,B125,-E125,,1)+(1-PI_1)*'Simulations (3)'!C125*B125 -> -40005865.83 | P125: 1580740.885 | Q125: 1840094.474 | R125: 2107144.553
B126: 124 | C126: 65600 | D126: 63632 | E126: 63632 | F126: 31798.40048 | G126: 36647.13403 | H126: 41717.30237 | I126: 8134400 | J126: 9744971.285 | K126: 10009173.61 | L126: 10281293.86 | M126: =FV(Paramètres!$C$24,B126,-D126,,1)-FV(i_p_1,B126,-D126,,1)+(1-PI_1)*'Simulations (3)'!C126*B126 -> -24017058.47 | N126: =FV(Paramètres!$D$24,B126,-D126,,1)-FV(i_p_2,B126,-D126,,1)+(1-PI_1)*'Simulations (3)'!C126*B126 -> -31601801.8 | O126: =FV(Paramètres!$E$24,B126,-E126,,1)-FV(i_p_3,B126,-E126,,1)+(1-PI_1)*'Simulations (3)'!C126*B126 -> -41208973.37 | P126: 1610571.285 | Q126: 1874773.608 | R126: 2146893.856
B127: 125 | C127: 65600 | D127: 63632 | E127: 63632 | F127: 32110.81478 | G127: 37015.64074 | H127: 42146.50847 | I127: 8200000 | J127: 9840714.1 | K127: 10109821.25 | L127: 10387072.36 | M127: =FV(Paramètres!$C$24,B127,-D127,,1)-FV(i_p_1,B127,-D127,,1)+(1-PI_1)*'Simulations (3)'!C127*B127 -> -24657692.55 | N127: =FV(Paramètres!$D$24,B127,-D127,,1)-FV(i_p_2,B127,-D127,,1)+(1-PI_1)*'Simulations (3)'!C127*B127 -> -32495609.12 | O127: =FV(Paramètres!$E$24,B127,-E127,,1)-FV(i_p_3,B127,-E127,,1)+(1-PI_1)*'Simulations (3)'!C127*B127 -> -42444012.74 | P127: 1640714.1 | Q127: 1909821.249 | R127: 2187072.364
B128: 126 | C128: 65600 | D128: 63632 | E128: 63632 | F128: 32424.25184 | G128: 37385.50163 | H128: 42577.46321 | I128: 8265600 | J128: 9936770.352 | K128: 10210838.75 | L128: 10493281.83 | M128: =FV(Paramètres!$C$24,B128,-D128,,1)-FV(i_p_1,B128,-D128,,1)+(1-PI_1)*'Simulations (3)'!C128*B128 -> -25312635.31 | N128: =FV(Paramètres!$D$24,B128,-D128,,1)-FV(i_p_2,B128,-D128,,1)+(1-PI_1)*'Simulations (3)'!C128*B128 -> -33411219.4 | O128: =FV(Paramètres!$E$24,B128,-E128,,1)-FV(i_p_3,B128,-E128,,1)+(1-PI_1)*'Simulations (3)'!C128*B128 -> -43711781.36 | P128: 1671170.352 | Q128: 1945238.751 | R128: 2227681.828
B129: 127 | C129: 65600 | D129: 63632 | E129: 63632 | F129: 32738.71502 | G129: 37756.7217 | H129: 43010.17371 | I129: 8331200 | J129: 10033141.07 | K129: 10312227.47 | L129: 10599924 | M129: =FV(Paramètres!$C$24,B129,-D129,,1)-FV(i_p_1,B129,-D129,,1)+(1-PI_1)*'Simulations (3)'!C129*B129 -> -25982175.29 | N129: =FV(Paramètres!$D$24,B129,-D129,,1)-FV(i_p_2,B129,-D129,,1)+(1-PI_1)*'Simulations (3)'!C129*B129 -> -34349124.67 | O129: =FV(Paramètres!$E$24,B129,-E129,,1)-FV(i_p_3,B129,-E129,,1)+(1-PI_1)*'Simulations (3)'!C129*B129 -> -45013096.36 | P129: 1701941.067 | Q129: 1981027.472 | R129: 2268724.001
B130: 128 | C130: 65600 | D130: 63632 | E130: 63632 | F130: 33054.20766 | G130: 38129.30593 | H130: 43444.64712 | I130: 8396800 | J130: 10129827.27 | K130: 10413988.78 | L130: 10707000.65 | M130: =FV(Paramètres!$C$24,B130,-D130,,1)-FV(i_p_1,B130,-D130,,1)+(1-PI_1)*'Simulations (3)'!C130*B130 -> -26666606.78 | N130: =FV(Paramètres!$D$24,B130,-D130,,1)-FV(i_p_2,B130,-D130,,1)+(1-PI_1)*'Simulations (3)'!C130*B130 -> -35309827.95 | O130: =FV(Paramètres!$E$24,B130,-E130,,1)-FV(i_p_3,B130,-E130,,1)+(1-PI_1)*'Simulations (3)'!C130*B130 -> -46348795.09 | P130: 1733027.275 | Q130: 2017188.778 | R130: 2310200.648
B131: 129 | C131: 65600 | D131: 63632 | E131: =+C131*PI_3 -> 63632 | F131: 33370.73315 | G131: 38503.25933 | H131: 43880.89064 | I131: 8462400 | J131: 10226830.01 | K131: 10516124.04 | L131: 10814513.54 | M131: =FV(Paramètres!$C$24,B131,-D131,,1)-FV(i_p_1,B131,-D131,,1)+(1-PI_1)*'Simulations (3)'!C131*B131 -> -27366229.89 | N131: =FV(Paramètres!$D$24,B131,-D131,,1)-FV(i_p_2,B131,-D131,,1)+(1-PI_1)*'Simulations (3)'!C131*B131 -> -36293843.48 | O131: =FV(Paramètres!$E$24,B131,-E131,,1)-FV(i_p_3,B131,-E131,,1)+(1-PI_1)*'Simulations (3)'!C131*B131 -> -47719735.63 | P131: 1764430.008 | Q131: 2053724.038 | R131: 2352113.539
B132: 130 | C132: 65600 | D132: 63632 | E132: 63632 | F132: =(D132+J131)*(tm_1) -> 33688.29485 | G132: =+tm_2*(D132+K131) -> 38878.58694 | H132: =+tm_3*(E132+L131) -> 44318.91146 | I132: 8528000 | J132: =(D132+J131)*(1+tm_1) -> 10324150.3 | K132: =(D132+K131)*(1+tm_2) -> 10618634.62 | L132: =(E132+L131)*(1+tm_3) -> 10922464.45 | M132: =FV(Paramètres!$C$24,B132,-D132,,1)-FV(i_p_1,B132,-D132,,1)+(1-PI_1)*'Simulations (3)'!C132*B132 -> -28081350.71 | N132: =FV(Paramètres!$D$24,B132,-D132,,1)-FV(i_p_2,B132,-D132,,1)+(1-PI_1)*'Simulations (3)'!C132*B132 -> -37301696.95 | O132: =FV(Paramètres!$E$24,B132,-E132,,1)-FV(i_p_3,B132,-E132,,1)+(1-PI_1)*'Simulations (3)'!C132*B132 -> -49126797.27 | P132: 1796150.303 | Q132: 2090634.625 | R132: 2394464.45
B133: =+B132+1 -> 131 | C133: 65600 | D133: 63632 | E133: 63632 | F133: 34006.89617 | G133: 39255.29381 | H133: 44758.71684 | I133: 8593600 | J133: 10421789.2 | K133: 10721521.92 | L133: 11030855.17 | M133: =FV(Paramètres!$C$24,B133,-D133,,1)-FV(i_p_1,B133,-D133,,1)+(1-PI_1)*'Simulations (3)'!C133*B133 -> -28812281.42 | N133: =FV(Paramètres!$D$24,B133,-D133,,1)-FV(i_p_2,B133,-D133,,1)+(1-PI_1)*'Simulations (3)'!C133*B133 -> -38333925.78 | O133: =FV(Paramètres!$E$24,B133,-E133,,1)-FV(i_p_3,B133,-E133,,1)+(1-PI_1)*'Simulations (3)'!C133*B133 -> -50570881.06 | P133: =+J133-I133 -> 1828189.199 | Q133: =+K133-I133 -> 2127921.918 | R133: =+L133-I133 -> 2437255.167
B134: 132 | C134: 65600 | D134: 63632 | E134: 63632 | F134: 34326.54051 | G134: 39633.385 | H134: 45200.31404 | I134: 8659200 | J134: 10519747.74 | K134: 10824787.3 | L134: 11139687.48 | M134: =FV(Paramètres!$C$24,B134,-D134,,1)-FV(i_p_1,B134,-D134,,1)+(1-PI_1)*'Simulations (3)'!C134*B134 -> -29559340.36 | N134: =FV(Paramètres!$D$24,B134,-D134,,1)-FV(i_p_2,B134,-D134,,1)+(1-PI_1)*'Simulations (3)'!C134*B134 -> -39391079.39 | O134: =FV(Paramètres!$E$24,B134,-E134,,1)-FV(i_p_3,B134,-E134,,1)+(1-PI_1)*'Simulations (3)'!C134*B134 -> -52052910.33 | P134: 1860547.739 | Q134: 2165587.303 | R134: 2480487.481
A135: 12 | B135: 133 | C135: 65600 | D135: 63632 | E135: 63632 | F135: 34647.23128 | G135: 40012.86561 | H135: 45643.71035 | I135: 8724800 | J135: 10618026.97 | K135: 10928432.17 | L135: 11248963.19 | M135: =FV(Paramètres!$C$24,B135,-D135,,1)-FV(i_p_1,B135,-D135,,1)+(1-PI_1)*'Simulations (3)'!C135*B135 -> -30322852.23 | N135: =FV(Paramètres!$D$24,B135,-D135,,1)-FV(i_p_2,B135,-D135,,1)+(1-PI_1)*'Simulations (3)'!C135*B135 -> -40473719.44 | O135: =FV(Paramètres!$E$24,B135,-E135,,1)-FV(i_p_3,B135,-E135,,1)+(1-PI_1)*'Simulations (3)'!C135*B135 -> -53573831.24 | P135: 1893226.971 | Q135: 2203632.169 | R135: 2524163.192
B136: 134 | C136: 65600 | D136: 63632 | E136: 63632 | F136: 34968.97191 | G136: 40393.74074 | H136: 46088.91313 | I136: 8790400 | J136: 10716627.94 | K136: 11032457.91 | L136: 11358684.1 | M136: =FV(Paramètres!$C$24,B136,-D136,,1)-FV(i_p_1,B136,-D136,,1)+(1-PI_1)*'Simulations (3)'!C136*B136 -> -31103148.16 | N136: =FV(Paramètres!$D$24,B136,-D136,,1)-FV(i_p_2,B136,-D136,,1)+(1-PI_1)*'Simulations (3)'!C136*B136 -> -41582420.11 | O136: =FV(Paramètres!$E$24,B136,-E136,,1)-FV(i_p_3,B136,-E136,,1)+(1-PI_1)*'Simulations (3)'!C136*B136 -> -55134613.39 | P136: 1926227.942 | Q136: 2242057.91 | R136: 2568284.105
B137: 135 | C137: =Prime_périodique -> 65600 | D137: 63632 | E137: 63632 | F137: 35291.76584 | G137: 40776.01551 | H137: 46535.92971 | I137: 8856000 | J137: 10815551.71 | K137: 11136865.93 | L137: 11468852.03 | M137: =FV(Paramètres!$C$24,B137,-D137,,1)-FV(i_p_1,B137,-D137,,1)+(1-PI_1)*'Simulations (3)'!C137*B137 -> -31900565.86 | N137: =FV(Paramètres!$D$24,B137,-D137,,1)-FV(i_p_2,B137,-D137,,1)+(1-PI_1)*'Simulations (3)'!C137*B137 -> -42717768.39 | O137: =FV(Paramètres!$E$24,B137,-E137,,1)-FV(i_p_3,B137,-E137,,1)+(1-PI_1)*'Simulations (3)'!C137*B137 -> -56736250.32 | P137: 1959551.708 | Q137: 2280865.925 | R137: 2612852.035
B138: 136 | C138: 65600 | D138: 63632 | E138: 63632 | F138: 35615.6165 | G138: 41159.69507 | H138: 46984.76749 | I138: 8921600 | J138: 10914799.32 | K138: 11241657.62 | L138: 11579468.8 | M138: =FV(Paramètres!$C$24,B138,-D138,,1)-FV(i_p_1,B138,-D138,,1)+(1-PI_1)*'Simulations (3)'!C138*B138 -> -32715449.75 | N138: =FV(Paramètres!$D$24,B138,-D138,,1)-FV(i_p_2,B138,-D138,,1)+(1-PI_1)*'Simulations (3)'!C138*B138 -> -43880364.36 | O138: =FV(Paramètres!$E$24,B138,-E138,,1)-FV(i_p_3,B138,-E138,,1)+(1-PI_1)*'Simulations (3)'!C138*B138 -> -58379760.16 | P138: 1993199.325 | Q138: 2320057.62 | R138: 2657868.802
B139: 137 | C139: 65600 | D139: 63632 | E139: 63632 | F139: 35940.52737 | G139: 41544.78457 | H139: 47435.43389 | I139: 8987200 | J139: 11014371.85 | K139: 11346834.4 | L139: 11690536.24 | M139: =FV(Paramètres!$C$24,B139,-D139,,1)-FV(i_p_1,B139,-D139,,1)+(1-PI_1)*'Simulations (3)'!C139*B139 -> -33548151.06 | N139: =FV(Paramètres!$D$24,B139,-D139,,1)-FV(i_p_2,B139,-D139,,1)+(1-PI_1)*'Simulations (3)'!C139*B139 -> -45070821.46 | O139: =FV(Paramètres!$E$24,B139,-E139,,1)-FV(i_p_3,B139,-E139,,1)+(1-PI_1)*'Simulations (3)'!C139*B139 -> -60066186.23 | P139: 2027171.852 | Q139: 2359634.405 | R139: 2703336.236
B140: 138 | C140: 65600 | D140: 63632 | E140: 63632 | F140: 36266.50192 | G140: 41931.28921 | H140: 47887.93637 | I140: 9052800 | J140: 11114270.35 | K140: 11452397.69 | L140: 11802056.17 | M140: =FV(Paramètres!$C$24,B140,-D140,,1)-FV(i_p_1,B140,-D140,,1)+(1-PI_1)*'Simulations (3)'!C140*B140 -> -34399028.04 | N140: =FV(Paramètres!$D$24,B140,-D140,,1)-FV(i_p_2,B140,-D140,,1)+(1-PI_1)*'Simulations (3)'!C140*B140 -> -46289766.84 | O140: =FV(Paramètres!$E$24,B140,-E140,,1)-FV(i_p_3,B140,-E140,,1)+(1-PI_1)*'Simulations (3)'!C140*B140 -> -61796597.64 | P140: 2061470.354 | Q140: 2399597.694 | R140: 2749256.172
B141: 139 | C141: 65600 | D141: 63632 | E141: 63632 | F141: 36593.54362 | G141: 42319.21418 | H141: 48342.28239 | I141: 9118400 | J141: 11214495.9 | K141: 11558348.91 | L141: 11914030.45 | M141: =FV(Paramètres!$C$24,B141,-D141,,1)-FV(i_p_1,B141,-D141,,1)+(1-PI_1)*'Simulations (3)'!C141*B141 -> -35268446.02 | N141: =FV(Paramètres!$D$24,B141,-D141,,1)-FV(i_p_2,B141,-D141,,1)+(1-PI_1)*'Simulations (3)'!C141*B141 -> -47537841.6 | O141: =FV(Paramètres!$E$24,B141,-E141,,1)-FV(i_p_3,B141,-E141,,1)+(1-PI_1)*'Simulations (3)'!C141*B141 -> -63572089.94 | P141: 2096095.898 | Q141: 2439948.908 | R141: 2795630.455
B142: 140 | C142: 65600 | D142: 63632 | E142: 63632 | F142: 36921.65597 | G142: 42708.56469 | H142: 48798.47948 | I142: 9184000 | J142: 11315049.55 | K142: 11664689.47 | L142: 12026460.93 | M142: =FV(Paramètres!$C$24,B142,-D142,,1)-FV(i_p_1,B142,-D142,,1)+(1-PI_1)*'Simulations (3)'!C142*B142 -> -36156777.58 | N142: =FV(Paramètres!$D$24,B142,-D142,,1)-FV(i_p_2,B142,-D142,,1)+(1-PI_1)*'Simulations (3)'!C142*B142 -> -48815701.15 | O142: =FV(Paramètres!$E$24,B142,-E142,,1)-FV(i_p_3,B142,-E142,,1)+(1-PI_1)*'Simulations (3)'!C142*B142 -> -65393785.77 | P142: 2131049.554 | Q142: 2480689.473 | R142: 2842460.934
B143: 141 | C143: 65600 | D143: =+C143*PI_2 -> 63632 | E143: 63632 | F143: 37250.84247 | G143: 43099.346 | H143: 49256.53517 | I143: 9249600 | J143: 11415932.4 | K143: 11771420.82 | L143: 12139349.47 | M143: =FV(Paramètres!$C$24,B143,-D143,,1)-FV(i_p_1,B143,-D143,,1)+(1-PI_1)*'Simulations (3)'!C143*B143 -> -37064402.72 | N143: =FV(Paramètres!$D$24,B143,-D143,,1)-FV(i_p_2,B143,-D143,,1)+(1-PI_1)*'Simulations (3)'!C143*B143 -> -50124015.51 | O143: =FV(Paramètres!$E$24,B143,-E143,,1)-FV(i_p_3,B143,-E143,,1)+(1-PI_1)*'Simulations (3)'!C143*B143 -> -67262835.54 | P143: 2166332.396 | Q143: 2521820.819 | R143: 2889749.469
B144: 142 | C144: 65600 | D144: 63632 | E144: 63632 | F144: 37581.10665 | G144: 43491.56335 | H144: 49716.45704 | I144: 9315200 | J144: 11517145.5 | K144: 11878544.38 | L144: 12252697.93 | M144: =FV(Paramètres!$C$24,B144,-D144,,1)-FV(i_p_1,B144,-D144,,1)+(1-PI_1)*'Simulations (3)'!C144*B144 -> -37991708.96 | N144: =FV(Paramètres!$D$24,B144,-D144,,1)-FV(i_p_2,B144,-D144,,1)+(1-PI_1)*'Simulations (3)'!C144*B144 -> -51463469.63 | O144: =FV(Paramètres!$E$24,B144,-E144,,1)-FV(i_p_3,B144,-E144,,1)+(1-PI_1)*'Simulations (3)'!C144*B144 -> -69180418.11 | P144: 2201945.503 | Q144: 2563344.382 | R144: 2937497.926
B145: 143 | C145: 65600 | D145: 63632 | E145: 63632 | F145: 37912.45202 | G145: 43885.22203 | H145: 50178.25268 | I145: 9380800 | J145: 11618689.95 | K145: 11986061.6 | L145: 12366508.18 | M145: =FV(Paramètres!$C$24,B145,-D145,,1)-FV(i_p_1,B145,-D145,,1)+(1-PI_1)*'Simulations (3)'!C145*B145 -> -38939091.52 | N145: =FV(Paramètres!$D$24,B145,-D145,,1)-FV(i_p_2,B145,-D145,,1)+(1-PI_1)*'Simulations (3)'!C145*B145 -> -52834763.72 | O145: =FV(Paramètres!$E$24,B145,-E145,,1)-FV(i_p_3,B145,-E145,,1)+(1-PI_1)*'Simulations (3)'!C145*B145 -> -71147741.48 | P145: 2237889.955 | Q145: 2605261.604 | R145: 2985708.179
B146: 144 | C146: 65600 | D146: 63632 | E146: 63632 | F146: 38244.88213 | G146: 44280.32733 | H146: 50641.92974 | I146: 9446400 | J146: 11720566.84 | K146: 12093973.93 | L146: 12480782.11 | M146: =FV(Paramètres!$C$24,B146,-D146,,1)-FV(i_p_1,B146,-D146,,1)+(1-PI_1)*'Simulations (3)'!C146*B146 -> -39906953.48 | N146: =FV(Paramètres!$D$24,B146,-D146,,1)-FV(i_p_2,B146,-D146,,1)+(1-PI_1)*'Simulations (3)'!C146*B146 -> -54238613.63 | O146: =FV(Paramètres!$E$24,B146,-E146,,1)-FV(i_p_3,B146,-E146,,1)+(1-PI_1)*'Simulations (3)'!C146*B146 -> -73166043.52 | P146: 2274166.837 | Q146: 2647573.932 | R146: 3034382.109
A147: 13 | B147: 145 | C147: 65600 | D147: 63632 | E147: 63632 | F147: 38578.40053 | G147: 44676.88456 | H147: 51107.49587 | I147: 9512000 | J147: 11822777.24 | K147: 12202282.82 | L147: 12595521.6 | M147: =FV(Paramètres!$C$24,B147,-D147,,1)-FV(i_p_1,B147,-D147,,1)+(1-PI_1)*'Simulations (3)'!C147*B147 -> -40895705.9 | N147: =FV(Paramètres!$D$24,B147,-D147,,1)-FV(i_p_2,B147,-D147,,1)+(1-PI_1)*'Simulations (3)'!C147*B147 -> -55675751.14 | O147: =FV(Paramètres!$E$24,B147,-E147,,1)-FV(i_p_3,B147,-E147,,1)+(1-PI_1)*'Simulations (3)'!C147*B147 -> -75236592.73 | P147: 2310777.237 | Q147: 2690282.816 | R147: 3083521.605
B148: 146 | C148: 65600 | D148: 63632 | E148: 63632 | F148: 38913.01079 | G148: 45074.89907 | H148: 51574.95878 | I148: 9577600 | J148: 11925322.25 | K148: 12310989.72 | L148: 12710728.56 | M148: =FV(Paramètres!$C$24,B148,-D148,,1)-FV(i_p_1,B148,-D148,,1)+(1-PI_1)*'Simulations (3)'!C148*B148 -> -41905768.01 | N148: =FV(Paramètres!$D$24,B148,-D148,,1)-FV(i_p_2,B148,-D148,,1)+(1-PI_1)*'Simulations (3)'!C148*B148 -> -57146924.34 | O148: =FV(Paramètres!$E$24,B148,-E148,,1)-FV(i_p_3,B148,-E148,,1)+(1-PI_1)*'Simulations (3)'!C148*B148 -> -77360688.95 | P148: 2347722.248 | Q148: 2733389.715 | R148: 3133128.563
B149: 147 | C149: 65600 | D149: 63632 | E149: 63632 | F149: 39248.71647 | G149: 45474.37621 | H149: 52044.32619 | I149: 9643200 | J149: 12028202.96 | K149: 12420096.09 | L149: 12826404.89 | M149: =FV(Paramètres!$C$24,B149,-D149,,1)-FV(i_p_1,B149,-D149,,1)+(1-PI_1)*'Simulations (3)'!C149*B149 -> -42937567.34 | N149: =FV(Paramètres!$D$24,B149,-D149,,1)-FV(i_p_2,B149,-D149,,1)+(1-PI_1)*'Simulations (3)'!C149*B149 -> -58652898 | O149: =FV(Paramètres!$E$24,B149,-E149,,1)-FV(i_p_3,B149,-E149,,1)+(1-PI_1)*'Simulations (3)'!C149*B149 -> -79539664.16 | P149: 2385002.965 | Q149: 2776896.092 | R149: 3183204.89
B150: 148 | C150: 65600 | D150: 63632 | E150: 63632 | F150: 39585.52116 | G150: 45875.32134 | H150: 52515.60586 | I150: 9708800 | J150: 12131420.49 | K150: 12529603.41 | L150: 12942552.5 | M150: =FV(Paramètres!$C$24,B150,-D150,,1)-FV(i_p_1,B150,-D150,,1)+(1-PI_1)*'Simulations (3)'!C150*B150 -> -43991539.94 | N150: =FV(Paramètres!$D$24,B150,-D150,,1)-FV(i_p_2,B150,-D150,,1)+(1-PI_1)*'Simulations (3)'!C150*B150 -> -60194453.94 | O150: =FV(Paramètres!$E$24,B150,-E150,,1)-FV(i_p_3,B150,-E150,,1)+(1-PI_1)*'Simulations (3)'!C150*B150 -> -81774883.29 | P150: 2422620.486 | Q150: 2820803.413 | R150: 3233752.495
B151: 149 | C151: 65600 | D151: 63632 | E151: 63632 | F151: 39923.42847 | G151: 46277.73988 | H151: 52988.80559 | I151: 9774400 | J151: 12234975.91 | K151: 12639513.15 | L151: 13059173.3 | M151: =FV(Paramètres!$C$24,B151,-D151,,1)-FV(i_p_1,B151,-D151,,1)+(1-PI_1)*'Simulations (3)'!C151*B151 -> -45068130.49 | N151: =FV(Paramètres!$D$24,B151,-D151,,1)-FV(i_p_2,B151,-D151,,1)+(1-PI_1)*'Simulations (3)'!C151*B151 -> -61772391.39 | O151: =FV(Paramètres!$E$24,B151,-E151,,1)-FV(i_p_3,B151,-E151,,1)+(1-PI_1)*'Simulations (3)'!C151*B151 -> -84067745 | P151: 2460575.914 | Q151: 2865113.153 | R151: 3284773.301
B152: 150 | C152: 65600 | D152: 63632 | E152: 63632 | F152: 40262.44199 | G152: 46681.63722 | H152: 53463.93319 | I152: 9840000 | J152: 12338870.36 | K152: 12749826.79 | L152: 13176269.23 | M152: =FV(Paramètres!$C$24,B152,-D152,,1)-FV(i_p_1,B152,-D152,,1)+(1-PI_1)*'Simulations (3)'!C152*B152 -> -46167792.49 | N152: =FV(Paramètres!$D$24,B152,-D152,,1)-FV(i_p_2,B152,-D152,,1)+(1-PI_1)*'Simulations (3)'!C152*B152 -> -63387527.42 | O152: =FV(Paramètres!$E$24,B152,-E152,,1)-FV(i_p_3,B152,-E152,,1)+(1-PI_1)*'Simulations (3)'!C152*B152 -> -86419682.53 | P152: 2498870.356 | Q152: 2909826.79 | R152: 3336269.234
B153: 151 | C153: 65600 | D153: 63632 | E153: 63632 | F153: 40602.56536 | G153: 47087.01881 | H153: 53940.99651 | I153: 9905600 | J153: 12443104.92 | K153: 12860545.81 | L153: 13293842.23 | M153: =FV(Paramètres!$C$24,B153,-D153,,1)-FV(i_p_1,B153,-D153,,1)+(1-PI_1)*'Simulations (3)'!C153*B153 -> -47290988.46 | N153: =FV(Paramètres!$D$24,B153,-D153,,1)-FV(i_p_2,B153,-D153,,1)+(1-PI_1)*'Simulations (3)'!C153*B153 -> -65040697.29 | O153: =FV(Paramètres!$E$24,B153,-E153,,1)-FV(i_p_3,B153,-E153,,1)+(1-PI_1)*'Simulations (3)'!C153*B153 -> -88832164.58 | P153: 2537504.922 | Q153: 2954945.809 | R153: 3388242.231
B154: 152 | C154: 65600 | D154: 63632 | E154: 63632 | F154: 40943.80221 | G154: 47493.8901 | H154: 54420.00345 | I154: 9971200 | J154: 12547680.72 | K154: 12971671.7 | L154: 13411894.23 | M154: =FV(Paramètres!$C$24,B154,-D154,,1)-FV(i_p_1,B154,-D154,,1)+(1-PI_1)*'Simulations (3)'!C154*B154 -> -48438190.08 | N154: =FV(Paramètres!$D$24,B154,-D154,,1)-FV(i_p_2,B154,-D154,,1)+(1-PI_1)*'Simulations (3)'!C154*B154 -> -66732754.86 | O154: =FV(Paramètres!$E$24,B154,-E154,,1)-FV(i_p_3,B154,-E154,,1)+(1-PI_1)*'Simulations (3)'!C154*B154 -> -91306696.12 | P154: 2576480.724 | Q154: 3000471.699 | R154: 3440694.234
B155: 153 | C155: 65600 | D155: 63632 | E155: 63632 | F155: 41286.15617 | G155: 47902.25657 | H155: 54900.96193 | I155: 10036800 | J155: 12652598.88 | K155: 13083205.96 | L155: 13530427.2 | M155: =FV(Paramètres!$C$24,B155,-D155,,1)-FV(i_p_1,B155,-D155,,1)+(1-PI_1)*'Simulations (3)'!C155*B155 -> -49609878.4 | N155: =FV(Paramètres!$D$24,B155,-D155,,1)-FV(i_p_2,B155,-D155,,1)+(1-PI_1)*'Simulations (3)'!C155*B155 -> -68464573.05 | O155: =FV(Paramètres!$E$24,B155,-E155,,1)-FV(i_p_3,B155,-E155,,1)+(1-PI_1)*'Simulations (3)'!C155*B155 -> -93844819.35 | P155: 2615798.88 | Q155: 3046405.956 | R155: 3493627.196
B156: 154 | C156: 65600 | D156: 63632 | E156: 63632 | F156: 41629.63091 | G156: 48312.1237 | H156: 55383.87989 | I156: 10102400 | J156: 12757860.51 | K156: 13195150.08 | L156: 13649443.08 | M156: =FV(Paramètres!$C$24,B156,-D156,,1)-FV(i_p_1,B156,-D156,,1)+(1-PI_1)*'Simulations (3)'!C156*B156 -> -50806544 | N156: =FV(Paramètres!$D$24,B156,-D156,,1)-FV(i_p_2,B156,-D156,,1)+(1-PI_1)*'Simulations (3)'!C156*B156 -> -70237044.2 | O156: =FV(Paramètres!$E$24,B156,-E156,,1)-FV(i_p_3,B156,-E156,,1)+(1-PI_1)*'Simulations (3)'!C156*B156 -> -96448114.59 | P156: 2655460.511 | Q156: 3092750.079 | R156: 3547043.076
B157: 155 | C157: 65600 | D157: 63632 | E157: 63632 | F157: 41974.2301 | G157: 48723.49702 | H157: 55868.76531 | I157: 10168000 | J157: 12863466.74 | K157: 13307505.58 | L157: 13768943.84 | M157: =FV(Paramètres!$C$24,B157,-D157,,1)-FV(i_p_1,B157,-D157,,1)+(1-PI_1)*'Simulations (3)'!C157*B157 -> -52028687.23 | N157: =FV(Paramètres!$D$24,B157,-D157,,1)-FV(i_p_2,B157,-D157,,1)+(1-PI_1)*'Simulations (3)'!C157*B157 -> -72051080.57 | O157: =FV(Paramètres!$E$24,B157,-E157,,1)-FV(i_p_3,B157,-E157,,1)+(1-PI_1)*'Simulations (3)'!C157*B157 -> -99118201.23 | P157: 2695466.741 | Q157: 3139505.576 | R157: 3600943.841
B158: 156 | C158: 65600 | D158: 63632 | E158: 63632 | F158: 42319.95742 | G158: 49136.38206 | H158: 56355.62622 | I158: 10233600 | J158: 12969418.7 | K158: 13420273.96 | L158: 13888931.47 | M158: =FV(Paramètres!$C$24,B158,-D158,,1)-FV(i_p_1,B158,-D158,,1)+(1-PI_1)*'Simulations (3)'!C158*B158 -> -53276818.32 | N158: =FV(Paramètres!$D$24,B158,-D158,,1)-FV(i_p_2,B158,-D158,,1)+(1-PI_1)*'Simulations (3)'!C158*B158 -> -73907614.71 | O158: =FV(Paramètres!$E$24,B158,-E158,,1)-FV(i_p_3,B158,-E158,,1)+(1-PI_1)*'Simulations (3)'!C158*B158 -> -101856738.7 | P158: 2735818.699 | Q158: 3186673.958 | R158: 3655331.468
A159: 14 | B159: 157 | C159: 65600 | D159: 63632 | E159: 63632 | F159: 42666.81656 | G159: 49550.78437 | H159: 56844.47067 | I159: 10299200 | J159: 13075717.52 | K159: 13533456.74 | L159: 14009407.94 | M159: =FV(Paramètres!$C$24,B159,-D159,,1)-FV(i_p_1,B159,-D159,,1)+(1-PI_1)*'Simulations (3)'!C159*B159 -> -54551457.65 | N159: =FV(Paramètres!$D$24,B159,-D159,,1)-FV(i_p_2,B159,-D159,,1)+(1-PI_1)*'Simulations (3)'!C159*B159 -> -75807599.98 | O159: =FV(Paramètres!$E$24,B159,-E159,,1)-FV(i_p_3,B159,-E159,,1)+(1-PI_1)*'Simulations (3)'!C159*B159 -> -104665427.4 | P159: 2776517.515 | Q159: 3234256.743 | R159: 3710207.938
B160: 158 | C160: 65600 | D160: 63632 | E160: 63632 | F160: 43014.81122 | G160: 49966.70953 | H160: 57335.30672 | I160: 10364800 | J160: 13182364.33 | K160: 13647055.45 | L160: 14130375.24 | M160: =FV(Paramètres!$C$24,B160,-D160,,1)-FV(i_p_1,B160,-D160,,1)+(1-PI_1)*'Simulations (3)'!C160*B160 -> -55853135.93 | N160: =FV(Paramètres!$D$24,B160,-D160,,1)-FV(i_p_2,B160,-D160,,1)+(1-PI_1)*'Simulations (3)'!C160*B160 -> -77752010.97 | O160: =FV(Paramètres!$E$24,B160,-E160,,1)-FV(i_p_3,B160,-E160,,1)+(1-PI_1)*'Simulations (3)'!C160*B160 -> -107546009.8 | P160: 2817564.326 | Q160: 3282255.452 | R160: 3765575.245
B161: 159 | C161: 65600 | D161: 63632 | E161: 63632 | F161: 43363.94513 | G161: 50384.16314 | H161: 57828.1425 | I161: 10430400 | J161: 13289360.27 | K161: 13761071.62 | L161: 14251835.39 | M161: =FV(Paramètres!$C$24,B161,-D161,,1)-FV(i_p_1,B161,-D161,,1)+(1-PI_1)*'Simulations (3)'!C161*B161 -> -57182394.39 | N161: =FV(Paramètres!$D$24,B161,-D161,,1)-FV(i_p_2,B161,-D161,,1)+(1-PI_1)*'Simulations (3)'!C161*B161 -> -79741843.99 | O161: =FV(Paramètres!$E$24,B161,-E161,,1)-FV(i_p_3,B161,-E161,,1)+(1-PI_1)*'Simulations (3)'!C161*B161 -> -110500271.5 | P161: 2858960.271 | Q161: 3330671.615 | R161: 3821435.387
B162: 160 | C162: 65600 | D162: 63632 | E162: 63632 | F162: 43714.22201 | G162: 50803.1508 | H162: 58322.98616 | I162: 10496000 | J162: 13396706.49 | K162: 13875506.77 | L162: 14373790.37 | M162: =FV(Paramètres!$C$24,B162,-D162,,1)-FV(i_p_1,B162,-D162,,1)+(1-PI_1)*'Simulations (3)'!C162*B162 -> -58539784.98 | N162: =FV(Paramètres!$D$24,B162,-D162,,1)-FV(i_p_2,B162,-D162,,1)+(1-PI_1)*'Simulations (3)'!C162*B162 -> -81778117.53 | O162: =FV(Paramètres!$E$24,B162,-E162,,1)-FV(i_p_3,B162,-E162,,1)+(1-PI_1)*'Simulations (3)'!C162*B162 -> -113530042.1 | P162: 2900706.493 | Q162: 3379506.766 | R162: 3877790.374
B163: 161 | C163: 65600 | D163: 63632 | E163: 63632 | F163: 44065.64561 | G163: 51223.67817 | H163: 58819.84587 | I163: 10561600 | J163: 13504404.14 | K163: 13990362.44 | L163: 14496242.22 | M163: =FV(Paramètres!$C$24,B163,-D163,,1)-FV(i_p_1,B163,-D163,,1)+(1-PI_1)*'Simulations (3)'!C163*B163 -> -59925870.63 | N163: =FV(Paramètres!$D$24,B163,-D163,,1)-FV(i_p_2,B163,-D163,,1)+(1-PI_1)*'Simulations (3)'!C163*B163 -> -83861872.81 | O163: =FV(Paramètres!$E$24,B163,-E163,,1)-FV(i_p_3,B163,-E163,,1)+(1-PI_1)*'Simulations (3)'!C163*B163 -> -116637196.6 | P163: 2942804.139 | Q163: 3428762.444 | R163: 3934642.219
B164: 162 | C164: 65600 | D164: 63632 | E164: 63632 | F164: 44418.21967 | G164: 51645.7509 | H164: 59318.72984 | I164: 10627200 | J164: 13612454.36 | K164: 14105640.2 | L164: 14619192.95 | M164: =FV(Paramètres!$C$24,B164,-D164,,1)-FV(i_p_1,B164,-D164,,1)+(1-PI_1)*'Simulations (3)'!C164*B164 -> -61341225.42 | N164: =FV(Paramètres!$D$24,B164,-D164,,1)-FV(i_p_2,B164,-D164,,1)+(1-PI_1)*'Simulations (3)'!C164*B164 -> -85994174.2 | O164: =FV(Paramètres!$E$24,B164,-E164,,1)-FV(i_p_3,B164,-E164,,1)+(1-PI_1)*'Simulations (3)'!C164*B164 -> -119823656.2 | P164: 2985254.359 | Q164: 3478440.195 | R164: 3991992.949
B165: 163 | C165: 65600 | D165: 63632 | E165: 63632 | F165: 44771.94798 | G165: 52069.37466 | H165: 59819.64634 | I165: 10692800 | J165: 13720858.31 | K165: 14221341.57 | L165: 14742644.6 | M165: =FV(Paramètres!$C$24,B165,-D165,,1)-FV(i_p_1,B165,-D165,,1)+(1-PI_1)*'Simulations (3)'!C165*B165 -> -62786434.81 | N165: =FV(Paramètres!$D$24,B165,-D165,,1)-FV(i_p_2,B165,-D165,,1)+(1-PI_1)*'Simulations (3)'!C165*B165 -> -88176109.83 | O165: =FV(Paramètres!$E$24,B165,-E165,,1)-FV(i_p_3,B165,-E165,,1)+(1-PI_1)*'Simulations (3)'!C165*B165 -> -123091389.6 | P165: 3028058.307 | Q165: 3528541.57 | R165: 4049844.596
B166: 164 | C166: 65600 | D166: 63632 | E166: 63632 | F166: 45126.83429 | G166: 52494.55516 | H166: 60322.60363 | I166: 10758400 | J166: 13829617.14 | K166: 14337468.13 | L166: 14866599.2 | M166: =FV(Paramètres!$C$24,B166,-D166,,1)-FV(i_p_1,B166,-D166,,1)+(1-PI_1)*'Simulations (3)'!C166*B166 -> -64262095.91 | N166: =FV(Paramètres!$D$24,B166,-D166,,1)-FV(i_p_2,B166,-D166,,1)+(1-PI_1)*'Simulations (3)'!C166*B166 -> -90408792.05 | O166: =FV(Paramètres!$E$24,B166,-E166,,1)-FV(i_p_3,B166,-E166,,1)+(1-PI_1)*'Simulations (3)'!C166*B166 -> -126442414.2 | P166: 3071217.141 | Q166: 3579068.125 | R166: 4108199.199
B167: 165 | C167: 65600 | D167: 63632 | E167: 63632 | F167: 45482.88242 | G167: 52921.29812 | H167: 60827.61002 | I167: 10824000 | J167: 13938732.02 | K167: 14454021.42 | L167: 14991058.81 | M167: =FV(Paramètres!$C$24,B167,-D167,,1)-FV(i_p_1,B167,-D167,,1)+(1-PI_1)*'Simulations (3)'!C167*B167 -> -65768817.62 | N167: =FV(Paramètres!$D$24,B167,-D167,,1)-FV(i_p_2,B167,-D167,,1)+(1-PI_1)*'Simulations (3)'!C167*B167 -> -92693357.98 | O167: =FV(Paramètres!$E$24,B167,-E167,,1)-FV(i_p_3,B167,-E167,,1)+(1-PI_1)*'Simulations (3)'!C167*B167 -> -129878797.3 | P167: 3114732.023 | Q167: 3630021.423 | R167: 4167058.809
B168: 166 | C168: 65600 | D168: 63632 | E168: 63632 | F168: 45840.09615 | G168: 53349.60927 | H168: 61334.67388 | I168: 10889600 | J168: 14048204.12 | K168: 14571003.03 | L168: 15116025.48 | M168: =FV(Paramètres!$C$24,B168,-D168,,1)-FV(i_p_1,B168,-D168,,1)+(1-PI_1)*'Simulations (3)'!C168*B168 -> -67307220.97 | N168: =FV(Paramètres!$D$24,B168,-D168,,1)-FV(i_p_2,B168,-D168,,1)+(1-PI_1)*'Simulations (3)'!C168*B168 -> -95030970.09 | O168: =FV(Paramètres!$E$24,B168,-E168,,1)-FV(i_p_3,B168,-E168,,1)+(1-PI_1)*'Simulations (3)'!C168*B168 -> -133402657.2 | P168: 3158604.12 | Q168: 3681403.032 | R168: 4226425.483
B169: 167 | C169: 65600 | D169: 63632 | E169: 63632 | F169: 46198.4793 | G169: 53779.49439 | H169: 61843.80358 | I169: 10955200 | J169: 14158034.6 | K169: 14688414.53 | L169: 15241501.29 | M169: =FV(Paramètres!$C$24,B169,-D169,,1)-FV(i_p_1,B169,-D169,,1)+(1-PI_1)*'Simulations (3)'!C169*B169 -> -68877939.28 | N169: =FV(Paramètres!$D$24,B169,-D169,,1)-FV(i_p_2,B169,-D169,,1)+(1-PI_1)*'Simulations (3)'!C169*B169 -> -97422816.75 | O169: =FV(Paramètres!$E$24,B169,-E169,,1)-FV(i_p_3,B169,-E169,,1)+(1-PI_1)*'Simulations (3)'!C169*B169 -> -137016164.6 | P169: 3202834.599 | Q169: 3733214.527 | R169: 4286301.287
B170: 168 | C170: 65600 | D170: 63632 | E170: 63632 | F170: 46558.03571 | G170: 54210.95925 | H170: 62355.00754 | I170: 11020800 | J170: 14268224.63 | K170: 14806257.49 | L170: 15367488.29 | M170: =FV(Paramètres!$C$24,B170,-D170,,1)-FV(i_p_1,B170,-D170,,1)+(1-PI_1)*'Simulations (3)'!C170*B170 -> -70481618.42 | N170: =FV(Paramètres!$D$24,B170,-D170,,1)-FV(i_p_2,B170,-D170,,1)+(1-PI_1)*'Simulations (3)'!C170*B170 -> -99870112.8 | O170: =FV(Paramètres!$E$24,B170,-E170,,1)-FV(i_p_3,B170,-E170,,1)+(1-PI_1)*'Simulations (3)'!C170*B170 -> -140721543.9 | P170: 3247424.635 | Q170: 3785457.486 | R170: 4346688.294
A171: 15 | B171: 169 | C171: 65600 | D171: =+C171*PI_3 -> 63632 | E171: 63632 | F171: 46918.76922 | G171: 54644.00967 | H171: 62868.2942 | I171: 11086400 | J171: 14378775.4 | K171: 14924533.5 | L171: 15493988.59 | M171: =FV(Paramètres!$C$24,B171,-D171,,1)-FV(i_p_1,B171,-D171,,1)+(1-PI_1)*'Simulations (3)'!C171*B171 -> -72118917.11 | N171: =FV(Paramètres!$D$24,B171,-D171,,1)-FV(i_p_2,B171,-D171,,1)+(1-PI_1)*'Simulations (3)'!C171*B171 -> -102374100.1 | O171: =FV(Paramètres!$E$24,B171,-E171,,1)-FV(i_p_3,B171,-E171,,1)+(1-PI_1)*'Simulations (3)'!C171*B171 -> -144521074.4 | P171: 3292375.404 | Q171: 3838133.496 | R171: 4407588.589
B172: 170 | C172: 65600 | D172: 63632 | E172: 63632 | F172: 47280.68367 | G172: 55078.65146 | H172: 63383.67206 | I172: 11152000 | J172: 14489688.09 | K172: 15043244.15 | L172: 15621004.26 | M172: =FV(Paramètres!$C$24,B172,-D172,,1)-FV(i_p_1,B172,-D172,,1)+(1-PI_1)*'Simulations (3)'!C172*B172 -> -73790507.09 | N172: =FV(Paramètres!$D$24,B172,-D172,,1)-FV(i_p_2,B172,-D172,,1)+(1-PI_1)*'Simulations (3)'!C172*B172 -> -104936048.3 | O172: =FV(Paramètres!$E$24,B172,-E172,,1)-FV(i_p_3,B172,-E172,,1)+(1-PI_1)*'Simulations (3)'!C172*B172 -> -148417091.7 | P172: 3337688.087 | Q172: 3891244.147 | R172: 4469004.261
B173: 171 | C173: 65600 | D173: 63632 | E173: 63632 | F173: 47643.78293 | G173: 55514.89048 | H173: 63901.14963 | I173: 11217600 | J173: 14600963.87 | K173: 15162391.04 | L173: 15748537.41 | M173: =FV(Paramètres!$C$24,B173,-D173,,1)-FV(i_p_1,B173,-D173,,1)+(1-PI_1)*'Simulations (3)'!C173*B173 -> -75497073.46 | N173: =FV(Paramètres!$D$24,B173,-D173,,1)-FV(i_p_2,B173,-D173,,1)+(1-PI_1)*'Simulations (3)'!C173*B173 -> -107557255.1 | O173: =FV(Paramètres!$E$24,B173,-E173,,1)-FV(i_p_3,B173,-E173,,1)+(1-PI_1)*'Simulations (3)'!C173*B173 -> -152411989.3 | P173: 3383363.87 | Q173: 3944791.038 | R173: 4530937.41
B174: 172 | C174: 65600 | D174: 63632 | E174: 63632 | F174: 48008.07089 | G174: 55952.73259 | H174: 64420.73547 | I174: 11283200 | J174: 14712603.94 | K174: 15281975.77 | L174: 15876590.15 | M174: =FV(Paramètres!$C$24,B174,-D174,,1)-FV(i_p_1,B174,-D174,,1)+(1-PI_1)*'Simulations (3)'!C174*B174 -> -77239314.89 | N174: =FV(Paramètres!$D$24,B174,-D174,,1)-FV(i_p_2,B174,-D174,,1)+(1-PI_1)*'Simulations (3)'!C174*B174 -> -110239047.4 | O174: =FV(Paramètres!$E$24,B174,-E174,,1)-FV(i_p_3,B174,-E174,,1)+(1-PI_1)*'Simulations (3)'!C174*B174 -> -156508219.6 | P174: 3429403.941 | Q174: 3998775.77 | R174: 4593390.146
B175: 173 | C175: 65600 | D175: 63632 | E175: 63632 | F175: 48373.55143 | G175: 56392.18369 | H175: 64942.43816 | I175: 11348800 | J175: 14824609.49 | K175: 15401999.95 | L175: 16005164.58 | M175: =FV(Paramètres!$C$24,B175,-D175,,1)-FV(i_p_1,B175,-D175,,1)+(1-PI_1)*'Simulations (3)'!C175*B175 -> -79017943.9 | N175: =FV(Paramètres!$D$24,B175,-D175,,1)-FV(i_p_2,B175,-D175,,1)+(1-PI_1)*'Simulations (3)'!C175*B175 -> -112982781.5 | O175: =FV(Paramètres!$E$24,B175,-E175,,1)-FV(i_p_3,B175,-E175,,1)+(1-PI_1)*'Simulations (3)'!C175*B175 -> -160708295.9 | P175: 3475809.493 | Q175: 4053199.954 | R175: 4656364.584
B176: 174 | C176: 65600 | D176: 63632 | E176: 63632 | F176: 48740.22846 | G176: 56833.24969 | H176: 65466.26634 | I176: 11414400 | J176: 14936981.72 | K176: 15522465.2 | L176: 16134262.85 | M176: =FV(Paramètres!$C$24,B176,-D176,,1)-FV(i_p_1,B176,-D176,,1)+(1-PI_1)*'Simulations (3)'!C176*B176 -> -80833687.14 | N176: =FV(Paramètres!$D$24,B176,-D176,,1)-FV(i_p_2,B176,-D176,,1)+(1-PI_1)*'Simulations (3)'!C176*B176 -> -115789843.8 | O176: =FV(Paramètres!$E$24,B176,-E176,,1)-FV(i_p_3,B176,-E176,,1)+(1-PI_1)*'Simulations (3)'!C176*B176 -> -165014793.2 | P176: 3522581.721 | Q176: 4108065.204 | R176: 4719862.85
B177: 175 | C177: 65600 | D177: 63632 | E177: 63632 | F177: 49108.1059 | G177: 57275.93652 | H177: 65992.22865 | I177: 11480000 | J177: 15049721.83 | K177: 15643373.14 | L177: 16263887.08 | M177: =FV(Paramètres!$C$24,B177,-D177,,1)-FV(i_p_1,B177,-D177,,1)+(1-PI_1)*'Simulations (3)'!C177*B177 -> -82687285.7 | N177: =FV(Paramètres!$D$24,B177,-D177,,1)-FV(i_p_2,B177,-D177,,1)+(1-PI_1)*'Simulations (3)'!C177*B177 -> -118661651.7 | O177: =FV(Paramètres!$E$24,B177,-E177,,1)-FV(i_p_3,B177,-E177,,1)+(1-PI_1)*'Simulations (3)'!C177*B177 -> -169430350.6 | P177: 3569721.827 | Q177: 4163373.14 | R177: 4783887.079
B178: 176 | C178: 65600 | D178: 63632 | E178: 63632 | F178: 49477.18767 | G178: 57720.25014 | H178: 66520.33381 | I178: 11545600 | J178: 15162831.01 | K178: 15764725.39 | L178: 16394039.41 | M178: =FV(Paramètres!$C$24,B178,-D178,,1)-FV(i_p_1,B178,-D178,,1)+(1-PI_1)*'Simulations (3)'!C178*B178 -> -84579495.33 | N178: =FV(Paramètres!$D$24,B178,-D178,,1)-FV(i_p_2,B178,-D178,,1)+(1-PI_1)*'Simulations (3)'!C178*B178 -> -121599654.3 | O178: =FV(Paramètres!$E$24,B178,-E178,,1)-FV(i_p_3,B178,-E178,,1)+(1-PI_1)*'Simulations (3)'!C178*B178 -> -173957672.1 | P178: 3617231.015 | Q178: 4219125.39 | R178: 4848439.413
B179: 177 | C179: 65600 | D179: 63632 | E179: 63632 | F179: 49847.47771 | G179: 58166.19653 | H179: 67050.59053 | I179: 11611200 | J179: 15276310.49 | K179: 15886523.59 | L179: 16524722 | M179: =FV(Paramètres!$C$24,B179,-D179,,1)-FV(i_p_1,B179,-D179,,1)+(1-PI_1)*'Simulations (3)'!C179*B179 -> -86511086.78 | N179: =FV(Paramètres!$D$24,B179,-D179,,1)-FV(i_p_2,B179,-D179,,1)+(1-PI_1)*'Simulations (3)'!C179*B179 -> -124605332.8 | O179: =FV(Paramètres!$E$24,B179,-E179,,1)-FV(i_p_3,B179,-E179,,1)+(1-PI_1)*'Simulations (3)'!C179*B179 -> -178599528.5 | P179: 3665110.492 | Q179: 4275323.587 | R179: 4913522.003
B180: 178 | C180: 65600 | D180: 63632 | E180: 63632 | F180: 50218.97999 | G180: 58613.78169 | H180: 67583.00758 | I180: 11676800 | J180: 15390161.47 | K180: 16008769.37 | L180: 16655937.01 | M180: =FV(Paramètres!$C$24,B180,-D180,,1)-FV(i_p_1,B180,-D180,,1)+(1-PI_1)*'Simulations (3)'!C180*B180 -> -88482846.08 | N180: =FV(Paramètres!$D$24,B180,-D180,,1)-FV(i_p_2,B180,-D180,,1)+(1-PI_1)*'Simulations (3)'!C180*B180 -> -127680201.4 | O180: =FV(Paramètres!$E$24,B180,-E180,,1)-FV(i_p_3,B180,-E180,,1)+(1-PI_1)*'Simulations (3)'!C180*B180 -> -183358759.4 | P180: 3713361.472 | Q180: 4331969.369 | R180: 4979137.011
B181: 179 | C181: 65600 | D181: 63632 | E181: 63632 | F181: 50591.69848 | G181: 59063.01164 | H181: 68117.59376 | I181: 11742400 | J181: 15504385.17 | K181: 16131464.38 | L181: 16787686.6 | M181: =FV(Paramètres!$C$24,B181,-D181,,1)-FV(i_p_1,B181,-D181,,1)+(1-PI_1)*'Simulations (3)'!C181*B181 -> -90495574.87 | N181: =FV(Paramètres!$D$24,B181,-D181,,1)-FV(i_p_2,B181,-D181,,1)+(1-PI_1)*'Simulations (3)'!C181*B181 -> -130825808.1 | O181: =FV(Paramètres!$E$24,B181,-E181,,1)-FV(i_p_3,B181,-E181,,1)+(1-PI_1)*'Simulations (3)'!C181*B181 -> -188238274.3 | P181: 3761985.171 | Q181: 4389064.38 | R181: 5045286.604
B182: 180 | C182: 65600 | D182: 63632 | E182: 63632 | F182: 50965.63714 | G182: 59513.89242 | H182: 68654.35791 | I182: 11808000 | J182: 15618982.81 | K182: 16254610.27 | L182: 16919972.96 | M182: =FV(Paramètres!$C$24,B182,-D182,,1)-FV(i_p_1,B182,-D182,,1)+(1-PI_1)*'Simulations (3)'!C182*B182 -> -92550090.65 | N182: =FV(Paramètres!$D$24,B182,-D182,,1)-FV(i_p_2,B182,-D182,,1)+(1-PI_1)*'Simulations (3)'!C182*B182 -> -134043735.3 | O182: =FV(Paramètres!$E$24,B182,-E182,,1)-FV(i_p_3,B182,-E182,,1)+(1-PI_1)*'Simulations (3)'!C182*B182 -> -193241054.5 | P182: 3810982.808 | Q182: 4446610.273 | R182: 5111972.962
A183: 16 | B183: 181 | C183: 65600 | D183: 63632 | E183: 63632 | F183: 51340.79999 | G183: 59966.4301 | H183: 69193.30891 | I183: 11873600 | J183: 15733955.61 | K183: 16378208.7 | L183: 17052798.27 | M183: =FV(Paramètres!$C$24,B183,-D183,,1)-FV(i_p_1,B183,-D183,,1)+(1-PI_1)*'Simulations (3)'!C183*B183 -> -94647227.16 | N183: =FV(Paramètres!$D$24,B183,-D183,,1)-FV(i_p_2,B183,-D183,,1)+(1-PI_1)*'Simulations (3)'!C183*B183 -> -137335600.7 | O183: =FV(Paramètres!$E$24,B183,-E183,,1)-FV(i_p_3,B183,-E183,,1)+(1-PI_1)*'Simulations (3)'!C183*B183 -> -198370155.2 | P183: 3860355.608 | Q183: 4504608.703 | R183: 5179198.271
B184: 182 | C184: 65600 | D184: 63632 | E184: 63632 | F184: 51717.19102 | G184: 60420.63077 | H184: 69734.45566 | I184: 11939200 | J184: 15849304.8 | K184: 16502261.33 | L184: 17186164.73 | M184: =FV(Paramètres!$C$24,B184,-D184,,1)-FV(i_p_1,B184,-D184,,1)+(1-PI_1)*'Simulations (3)'!C184*B184 -> -96787834.64 | N184: =FV(Paramètres!$D$24,B184,-D184,,1)-FV(i_p_2,B184,-D184,,1)+(1-PI_1)*'Simulations (3)'!C184*B184 -> -140703058 | O184: =FV(Paramètres!$E$24,B184,-E184,,1)-FV(i_p_3,B184,-E184,,1)+(1-PI_1)*'Simulations (3)'!C184*B184 -> -203628707.1 | P184: 3910104.799 | Q184: 4563061.333 | R184: 5246964.727
B185: 183 | C185: 65600 | D185: 63632 | E185: 63632 | F185: 52094.81425 | G185: 60876.50055 | H185: 70277.80711 | I185: 12004800 | J185: 15965031.61 | K185: 16626769.83 | L185: 17320074.53 | M185: =FV(Paramètres!$C$24,B185,-D185,,1)-FV(i_p_1,B185,-D185,,1)+(1-PI_1)*'Simulations (3)'!C185*B185 -> -98972780.22 | N185: =FV(Paramètres!$D$24,B185,-D185,,1)-FV(i_p_2,B185,-D185,,1)+(1-PI_1)*'Simulations (3)'!C185*B185 -> -144147797.7 | O185: =FV(Paramètres!$E$24,B185,-E185,,1)-FV(i_p_3,B185,-E185,,1)+(1-PI_1)*'Simulations (3)'!C185*B185 -> -209019918 | P185: 3960231.613 | Q185: 4621969.834 | R185: 5315274.534
B186: 184 | C186: 65600 | D186: 63632 | E186: 63632 | F186: 52473.67373 | G186: 61334.04556 | H186: 70823.37224 | I186: 12070400 | J186: 16081137.29 | K186: 16751735.88 | L186: 17454529.91 | M186: =FV(Paramètres!$C$24,B186,-D186,,1)-FV(i_p_1,B186,-D186,,1)+(1-PI_1)*'Simulations (3)'!C186*B186 -> -101202948.2 | N186: =FV(Paramètres!$D$24,B186,-D186,,1)-FV(i_p_2,B186,-D186,,1)+(1-PI_1)*'Simulations (3)'!C186*B186 -> -147671548.1 | O186: =FV(Paramètres!$E$24,B186,-E186,,1)-FV(i_p_3,B186,-E186,,1)+(1-PI_1)*'Simulations (3)'!C186*B186 -> -214547075.3 | P186: 4010737.287 | Q186: 4681335.88 | R186: 5384129.906
B187: 185 | C187: 65600 | D187: 63632 | E187: 63632 | F187: 52853.77349 | G187: 61793.27196 | H187: 71371.16007 | I187: 12136000 | J187: 16197623.06 | K187: 16877161.15 | L187: 17589533.07 | M187: =FV(Paramètres!$C$24,B187,-D187,,1)-FV(i_p_1,B187,-D187,,1)+(1-PI_1)*'Simulations (3)'!C187*B187 -> -103479240.5 | N187: =FV(Paramètres!$D$24,B187,-D187,,1)-FV(i_p_2,B187,-D187,,1)+(1-PI_1)*'Simulations (3)'!C187*B187 -> -151276075.8 | O187: =FV(Paramètres!$E$24,B187,-E187,,1)-FV(i_p_3,B187,-E187,,1)+(1-PI_1)*'Simulations (3)'!C187*B187 -> -220213547.3 | P187: 4061623.061 | Q187: 4741161.152 | R187: 5453533.066
B188: 186 | C188: 65600 | D188: 63632 | E188: 63632 | F188: 53235.1176 | G188: 62254.18592 | H188: 71921.17965 | I188: 12201600 | J188: 16314490.18 | K188: 17003047.34 | L188: 17725086.25 | M188: =FV(Paramètres!$C$24,B188,-D188,,1)-FV(i_p_1,B188,-D188,,1)+(1-PI_1)*'Simulations (3)'!C188*B188 -> -105802576.7 | N188: =FV(Paramètres!$D$24,B188,-D188,,1)-FV(i_p_2,B188,-D188,,1)+(1-PI_1)*'Simulations (3)'!C188*B188 -> -154963186.9 | O188: =FV(Paramètres!$E$24,B188,-E188,,1)-FV(i_p_3,B188,-E188,,1)+(1-PI_1)*'Simulations (3)'!C188*B188 -> -226022785.8 | P188: 4112890.178 | Q188: 4801447.337 | R188: 5523486.246
B189: 187 | C189: 65600 | D189: 63632 | E189: 63632 | F189: 53617.71013 | G189: 62716.79366 | H189: 72473.44009 | I189: =+I188+C189 -> 12267200 | J189: 16431739.89 | K189: 17129396.13 | L189: 17861191.69 | M189: =FV(Paramètres!$C$24,B189,-D189,,1)-FV(i_p_1,B189,-D189,,1)+(1-PI_1)*'Simulations (3)'!C189*B189 -> -108173894.8 | N189: =FV(Paramètres!$D$24,B189,-D189,,1)-FV(i_p_2,B189,-D189,,1)+(1-PI_1)*'Simulations (3)'!C189*B189 -> -158734727.5 | O189: =FV(Paramètres!$E$24,B189,-E189,,1)-FV(i_p_3,B189,-E189,,1)+(1-PI_1)*'Simulations (3)'!C189*B189 -> -231978327.7 | P189: 4164539.888 | Q189: 4862196.131 | R189: 5593991.686
B190: 188 | C190: 65600 | D190: 63632 | E190: 63632 | F190: 54001.55517 | G190: 63181.1014 | H190: 73027.9505 | I190: 12332800 | J190: 16549373.44 | K190: 17256209.23 | L190: 17997851.64 | M190: =FV(Paramètres!$C$24,B190,-D190,,1)-FV(i_p_1,B190,-D190,,1)+(1-PI_1)*'Simulations (3)'!C190*B190 -> -110594151.4 | N190: =FV(Paramètres!$D$24,B190,-D190,,1)-FV(i_p_2,B190,-D190,,1)+(1-PI_1)*'Simulations (3)'!C190*B190 -> -162592585.1 | O190: =FV(Paramètres!$E$24,B190,-E190,,1)-FV(i_p_3,B190,-E190,,1)+(1-PI_1)*'Simulations (3)'!C190*B190 -> -238083797.4 | P190: 4216573.443 | Q190: 4923409.232 | R190: 5665051.637
B191: 189 | C191: 65600 | D191: 63632 | E191: 63632 | F191: 54386.65682 | G191: 63647.11538 | H191: 73584.72005 | I191: 12398400 | J191: 16667392.1 | K191: 17383488.35 | L191: 18135068.36 | M191: =FV(Paramètres!$C$24,B191,-D191,,1)-FV(i_p_1,B191,-D191,,1)+(1-PI_1)*'Simulations (3)'!C191*B191 -> -113064322.1 | N191: =FV(Paramètres!$D$24,B191,-D191,,1)-FV(i_p_2,B191,-D191,,1)+(1-PI_1)*'Simulations (3)'!C191*B191 -> -166538689 | O191: =FV(Paramètres!$E$24,B191,-E191,,1)-FV(i_p_3,B191,-E191,,1)+(1-PI_1)*'Simulations (3)'!C191*B191 -> -244342908.8 | P191: 4268992.1 | Q191: 4985088.348 | R191: 5736668.357
B192: 190 | C192: 65600 | D192: 63632 | E192: 63632 | F192: 54773.01919 | G192: 64114.84186 | H192: 74143.75795 | I192: 12464000 | J192: 16785797.12 | K192: 17511235.19 | L192: 18272844.11 | M192: =FV(Paramètres!$C$24,B192,-D192,,1)-FV(i_p_1,B192,-D192,,1)+(1-PI_1)*'Simulations (3)'!C192*B192 -> -115585401.6 | N192: =FV(Paramètres!$D$24,B192,-D192,,1)-FV(i_p_2,B192,-D192,,1)+(1-PI_1)*'Simulations (3)'!C192*B192 -> -170575011.6 | O192: =FV(Paramètres!$E$24,B192,-E192,,1)-FV(i_p_3,B192,-E192,,1)+(1-PI_1)*'Simulations (3)'!C192*B192 -> -250759467.6 | P192: 4321797.119 | Q192: 5047235.19 | R192: 5808844.115
B193: 191 | C193: 65600 | D193: 63632 | E193: 63632 | F193: 55160.64642 | G193: 64584.28716 | H193: 74705.07345 | I193: 12529600 | J193: 16904589.77 | K193: 17639451.48 | L193: 18411181.19 | M193: =FV(Paramètres!$C$24,B193,-D193,,1)-FV(i_p_1,B193,-D193,,1)+(1-PI_1)*'Simulations (3)'!C193*B193 -> -118158404.5 | N193: =FV(Paramètres!$D$24,B193,-D193,,1)-FV(i_p_2,B193,-D193,,1)+(1-PI_1)*'Simulations (3)'!C193*B193 -> -174703569.1 | O193: =FV(Paramètres!$E$24,B193,-E193,,1)-FV(i_p_3,B193,-E193,,1)+(1-PI_1)*'Simulations (3)'!C193*B193 -> -257337373.5 | P193: 4374989.766 | Q193: 5109851.477 | R193: 5881581.188
B194: 192 | C194: 65600 | D194: 63632 | E194: 63632 | F194: 55549.54263 | G194: 65055.45758 | H194: 75268.67581 | I194: 12595200 | J194: 17023771.31 | K194: 17768138.93 | L194: 18550081.86 | M194: =FV(Paramètres!$C$24,B194,-D194,,1)-FV(i_p_1,B194,-D194,,1)+(1-PI_1)*'Simulations (3)'!C194*B194 -> -120784365.6 | N194: =FV(Paramètres!$D$24,B194,-D194,,1)-FV(i_p_2,B194,-D194,,1)+(1-PI_1)*'Simulations (3)'!C194*B194 -> -178926422.7 | O194: =FV(Paramètres!$E$24,B194,-E194,,1)-FV(i_p_3,B194,-E194,,1)+(1-PI_1)*'Simulations (3)'!C194*B194 -> -264080622.4 | P194: 4428571.309 | Q194: 5172938.934 | R194: 5954881.864
A195: 17 | B195: 193 | C195: 65600 | D195: 63632 | E195: =+C195*PI_3 -> 63632 | F195: 55939.71199 | G195: 65528.35946 | H195: 75834.57435 | I195: 12660800 | J195: 17143343.02 | K195: 17897299.29 | L195: 18689548.44 | M195: =FV(Paramètres!$C$24,B195,-D195,,1)-FV(i_p_1,B195,-D195,,1)+(1-PI_1)*'Simulations (3)'!C195*B195 -> -123464340 | N195: =FV(Paramètres!$D$24,B195,-D195,,1)-FV(i_p_2,B195,-D195,,1)+(1-PI_1)*'Simulations (3)'!C195*B195 -> -183245679.6 | O195: =FV(Paramètres!$E$24,B195,-E195,,1)-FV(i_p_3,B195,-E195,,1)+(1-PI_1)*'Simulations (3)'!C195*B195 -> -270993309.3 | P195: 4482543.02 | Q195: 5236499.294 | R195: 6028748.438
B196: 194 | C196: 65600 | D196: 63632 | E196: 63632 | F196: =(D196+J195)*(tm_1) -> 56331.15866 | G196: =+tm_2*(D196+K195) -> 66002.99916 | H196: =+tm_3*(E196+L195) -> 76402.77844 | I196: 12726400 | J196: =(D196+J195)*(1+tm_1) -> 17263306.18 | K196: =(D196+K195)*(1+tm_2) -> 18026934.29 | L196: =(E196+L195)*(1+tm_3) -> 18829583.22 | M196: =FV(Paramètres!$C$24,B196,-D196,,1)-FV(i_p_1,B196,-D196,,1)+(1-PI_1)*'Simulations (3)'!C196*B196 -> -126199403.8 | N196: =FV(Paramètres!$D$24,B196,-D196,,1)-FV(i_p_2,B196,-D196,,1)+(1-PI_1)*'Simulations (3)'!C196*B196 -> -187663493.6 | O196: =FV(Paramètres!$E$24,B196,-E196,,1)-FV(i_p_3,B196,-E196,,1)+(1-PI_1)*'Simulations (3)'!C196*B196 -> -278079630.1 | P196: 4536906.179 | Q196: 5300534.293 | R196: 6103183.217
B197: =+B196+1 -> 195 | C197: 65600 | D197: 63632 | E197: 63632 | F197: 56723.88682 | G197: 66479.38307 | H197: 76973.29746 | I197: 12792000 | J197: 17383662.07 | K197: 18157045.68 | L197: 18970188.51 | M197: =FV(Paramètres!$C$24,B197,-D197,,1)-FV(i_p_1,B197,-D197,,1)+(1-PI_1)*'Simulations (3)'!C197*B197 -> -128990654.6 | N197: =FV(Paramètres!$D$24,B197,-D197,,1)-FV(i_p_2,B197,-D197,,1)+(1-PI_1)*'Simulations (3)'!C197*B197 -> -192182066.7 | O197: =FV(Paramètres!$E$24,B197,-E197,,1)-FV(i_p_3,B197,-E197,,1)+(1-PI_1)*'Simulations (3)'!C197*B197 -> -285343884.3 | P197: =+J197-I197 -> 4591662.066 | Q197: =+K197-I197 -> 5365045.676 | R197: =+L197-I197 -> 6178188.514
B198: 196 | C198: 65600 | D198: 63632 | E198: 63632 | F198: 57117.90068 | G198: 66957.51761 | H198: 77546.14085 | I198: 12857600 | J198: 17504411.97 | K198: 18287635.19 | L198: 19111366.65 | M198: =FV(Paramètres!$C$24,B198,-D198,,1)-FV(i_p_1,B198,-D198,,1)+(1-PI_1)*'Simulations (3)'!C198*B198 -> -131839211.6 | N198: =FV(Paramètres!$D$24,B198,-D198,,1)-FV(i_p_2,B198,-D198,,1)+(1-PI_1)*'Simulations (3)'!C198*B198 -> -196803650 | O198: =FV(Paramètres!$E$24,B198,-E198,,1)-FV(i_p_3,B198,-E198,,1)+(1-PI_1)*'Simulations (3)'!C198*B198 -> -292790477.9 | P198: 4646811.967 | Q198: 5430035.194 | R198: 6253766.655
B199: 197 | C199: 65600 | D199: 63632 | E199: 63632 | F199: 57513.20443 | G199: 67437.40919 | H199: 78121.31807 | I199: 12923200 | J199: 17625557.17 | K199: 18418704.6 | L199: 19253119.97 | M199: =FV(Paramètres!$C$24,B199,-D199,,1)-FV(i_p_1,B199,-D199,,1)+(1-PI_1)*'Simulations (3)'!C199*B199 -> -134746216 | N199: =FV(Paramètres!$D$24,B199,-D199,,1)-FV(i_p_2,B199,-D199,,1)+(1-PI_1)*'Simulations (3)'!C199*B199 -> -201530544.4 | O199: =FV(Paramètres!$E$24,B199,-E199,,1)-FV(i_p_3,B199,-E199,,1)+(1-PI_1)*'Simulations (3)'!C199*B199 -> -300423925.5 | P199: 4702357.171 | Q199: 5495504.603 | R199: 6329919.973
B200: 198 | C200: 65600 | D200: 63632 | E200: 63632 | F200: 57909.8023 | G200: 67919.06429 | H200: 78698.83864 | I200: 12988800 | J200: 17747098.97 | K200: 18550255.67 | L200: 19395450.81 | M200: =FV(Paramètres!$C$24,B200,-D200,,1)-FV(i_p_1,B200,-D200,,1)+(1-PI_1)*'Simulations (3)'!C200*B200 -> -137712832.1 | N200: =FV(Paramètres!$D$24,B200,-D200,,1)-FV(i_p_2,B200,-D200,,1)+(1-PI_1)*'Simulations (3)'!C200*B200 -> -206365102.5 | O200: =FV(Paramètres!$E$24,B200,-E200,,1)-FV(i_p_3,B200,-E200,,1)+(1-PI_1)*'Simulations (3)'!C200*B200 -> -308248853.4 | P200: 4758298.973 | Q200: 5561455.667 | R200: 6406650.812
... 42 more rows

Sheet Paramètres (hidden)
B3: PARAMETRES TECHNIQUES | J3: RESULTAT SIMULATION | N3: 834
N4: =+(N6+200000)*$N$3 -> 385641600 | O4: UNIQUE
C5: 05 ans | D5: 10 ans | E5: 15 ans | J5: Prime périodique | K5: ='CDC EPARGNE DIASPORA'!K12 -> 65600 | N5: =+N6*N3 -> 218841600 | O5: MENSUELLE
B6: Taux d'intérêt technique annuel | C6: 0.04 | D6: 0.045 | E6: 0.05 | J6: Périodicité de paiement | K6: =IF('CDC EPARGNE DIASPORA'!$N$1=1,O4,IF('CDC EPARGNE DIASPORA'!$N$1=2,O5,IF('CDC EPARGNE DIASPORA'!$N$1=3,O6,IF('CDC EPARGNE DIASPORA'!$N$1=4,O7,"NEANT")))) -> SEMESTRIELLE | N6: =4*Prime_périodique -> 262400 | O6: TRIMESTRIELLE
J7: Durée de cotisation | K7: =+'CDC EPARGNE DIASPORA'!$G$6 -> 5 | O7: SEMESTRIELLE
B8: Taux de frais de gestion | C8: 0.03 | D8: =gestion -> 0.03 | E8: =C8 -> 0.03 | J8: Cumul des cotisations | K8: =IF(Périodicité="MENSUELLE",K7*12,IF(Périodicité="TRIMESTRIELLE",4*K7,IF(Périodicité="SEMESTRIELLE",2*K7,IF(Périodicité="ANNUELLE",K7,0))))*Prime_périodique -> 656000
J9: Epargne à terme (1) = | K9: =IF(Durée<10,IF(p="UNIQUE",Prime_périodique*PI_1*(1+C20)^Durée,FV(i_p_1,IF(Périodicité="MENSUELLE",K7*12,IF(Périodicité="TRIMESTRIELLE",4*K7,IF(Périodicité="SEMESTRIELLE",2*K7,IF(Périodicité="ANNUELLE",K7,0)))),-K5*PI_1,,1)),IF(Durée<15,IF(p="UNIQUE",Prime_périodique*PI_1*(1+D20)^Durée,FV(i_p_2,IF(Périodicité="MENSUELLE",K7*12,IF(Périodicité="TRIMESTRIELLE",4*K7,IF(Périodicité="SEMESTRIELLE",2*K7,IF(Périodicité="ANNUELLE",K7,0)))),-K5*PI_2,,1)),IF(p="UNIQUE",Prime_périodique*PI_1*(1+E20)^Durée,FV(i_p_3,IF(Périodicité="MENSUELLE",K7*12,IF(Périodicité="TRIMESTRIELLE",4*K7,IF(Périodicité="SEMESTRIELLE",2*K7,IF(Périodicité="ANNUELLE",K7,0)))),-K5*PI_3,,1)))) -> 709914.3753
B10: Taux de frais sur encours | C10: 0 | D10: =encours -> 0 | E10: =encours -> 0
B12: Taux de frais d'acquisition | C12: 0 | D12: =C12 -> 0 | E12: =acquisition_1 -> 0 | J12: Epargne à terme (2) = | K12: =IF(Durée<10,FV(i_p_1,IF(Périodicité="MENSUELLE",K7*12,IF(Périodicité="TRIMESTRIELLE",4*K7,IF(Périodicité="SEMESTRIELLE",2*K7,IF(Périodicité="ANNUELLE",K7,0)))),-K5*PI_1,,1),IF(Durée<15,FV(i_p_1,IF(Périodicité="MENSUELLE",9*12,IF(Périodicité="TRIMESTRIELLE",4*9,IF(Périodicité="SEMESTRIELLE",2*9,IF(Périodicité="ANNUELLE",9,0)))),-K5*PI_1,,1)*(1+Taux_2)^(Durée-9)+FV(i_p_2,IF(Périodicité="MENSUELLE",(K7-9)*12,IF(Périodicité="TRIMESTRIELLE",4*(K7-9),IF(Périodicité="SEMESTRIELLE",2*(K7-9),IF(Périodicité="ANNUELLE",(K7-9),0)))),-K5*PI_2,,1),(FV(i_p_1,IF(Périodicité="MENSUELLE",9*12,IF(Périodicité="TRIMESTRIELLE",4*9,IF(Périodicité="SEMESTRIELLE",2*9,IF(Périodicité="ANNUELLE",9,0)))),-K5*PI_1,,1)*(1+Taux_2)^5)*(1+Taux_3)^(Durée-14)+FV(i_p_2,IF(Périodicité="MENSUELLE",5*12,IF(Périodicité="TRIMESTRIELLE",4*5,IF(Périodicité="SEMESTRIELLE",2*5,IF(Périodicité="ANNUELLE",5,0)))),-K5*PI_2,,1)*(1+Taux_3)^(Durée-14)+FV(i_p_3,IF(Périodicité="MENSUELLE",(Durée-14)*12,IF(Périodicité="TRIMESTRIELLE",4*(Durée-14),IF(Périodicité="SEMESTRIELLE",2*(Durée-14),IF(Périodicité="ANNUELLE",(Durée-14),0)))),-K5*PI_3,,1))) -> 709914.3753
B14: Périodicité des paiements | C14: =$K$6 -> SEMESTRIELLE
C15: =IF(Périodicité="MENSUELLE",(((1+Taux_1)*(1-0))^(1/12))-1,IF(Périodicité="TRIMESTRIELLE",((1+Taux_1)*(1-0))^(1/4)-1,IF(Périodicité="SEMESTRIELLE",((1+Taux_1)*(1-0))^(1/2)-1,IF(Périodicité="ANNUELLE",((1+Taux_1)*(1-0))^(1/1)-1,0)))) -> 0.01980390272 | D15: =+IF(Périodicité="MENSUELLE",(((1+Taux_2)*(1-0))^(0.0833333333333333))-1,IF(Périodicité="TRIMESTRIELLE",((1+Taux_2)*(1-0))^(0.25)-1,IF(Périodicité="SEMESTRIELLE",((1+Taux_2)*(1-0))^(0.5)-1,IF(Périodicité="ANNUELLE",((1+Taux_2)*(1-0))^(1)-1,0)))) -> 0.02225241501 | E15: =IF(Périodicité="MENSUELLE",(((1+Taux_3)*(1-0))^(1/12))-1,IF(Périodicité="TRIMESTRIELLE",((1+Taux_3)*(1-0))^(1/4)-1,IF(Périodicité="SEMESTRIELLE",((1+Taux_3)*(1-0))^(1/2)-1,IF(Périodicité="ANNUELLE",((1+Taux_3)*(1-0))^(1/1)-1,0)))) -> 0.0246950766 | J15: GAINS (1) | K15: =+K9-K8 -> 53914.37529
B16: Taux d'intérêt technique périodique | C16: =IF(Périodicité="MENSUELLE",(((1+Taux_1)*(1-encours))^(1/12))-1,IF(Périodicité="TRIMESTRIELLE",((1+Taux_1)*(1-encours))^(1/4)-1,IF(Périodicité="SEMESTRIELLE",((1+Taux_1)*(1-encours))^(1/2)-1,IF(Périodicité="ANNUELLE",((1+Taux_1)*(1-encours))^(1/1)-1,0)))) -> 0.01980390272 | D16: =IF(Périodicité="MENSUELLE",(((1+Taux_2)*(1-encours_1))^(1/12))-1,IF(Périodicité="TRIMESTRIELLE",((1+Taux_2)*(1-encours_1))^(1/4)-1,IF(Périodicité="SEMESTRIELLE",((1+Taux_2)*(1-encours_1))^(1/2)-1,IF(Périodicité="ANNUELLE",((1+Taux_2)*(1-encours_1))^(1/1)-1,0)))) -> 0.02225241501 | E16: =IF(Périodicité="MENSUELLE",(((1+Taux_3)*(1-encours_2))^(1/12))-1,IF(Périodicité="TRIMESTRIELLE",((1+Taux_3)*(1-encours_2))^(1/4)-1,IF(Périodicité="SEMESTRIELLE",((1+Taux_3)*(1-encours_2))^(1/2)-1,IF(Périodicité="ANNUELLE",((1+Taux_3)*(1-encours_2))^(1/1)-1,0)))) -> 0.0246950766 | J16: GAINS (2) | K16: =+K12-K8 -> 53914.37529 | N16: =+K15-K16 -> 0
B18: Prime investie | C18: =1-gestion-acquisition -> 0.97 | D18: =1-gestion_1-acquisition_1 -> 0.97 | E18: =1-gestion_2-acquisition_2 -> 0.97 | J18: =IF(Durée=5,FV(i_p_1,IF(Périodicité="MENSUELLE",5*12,IF(Périodicité="TRIMESTRIELLE",4*5,IF(Périodicité="SEMESTRIELLE",2*5,IF(Périodicité="ANNUELLE",5,0)))),-K5*PI_1,,1),IF(Durée=10,FV(i_p_2,IF(Périodicité="MENSUELLE",5*12,IF(Périodicité="TRIMESTRIELLE",4*5,IF(Périodicité="SEMESTRIELLE",2*5,IF(Périodicité="ANNUELLE",5,0)))),-K5*PI_1,,1),FV(i_p_3,IF(Périodicité="MENSUELLE",5*12,IF(Périodicité="TRIMESTRIELLE",4*5,IF(Périodicité="SEMESTRIELLE",2*5,IF(Périodicité="ANNUELLE",5,0)))),-K5*PI_1,,1))) -> 709914.3753 | K18: =IF(Durée=5,Prime_périodique*PI_1*(1+$C$20)^5,IF(Durée=10,Prime_périodique*PI_1*(1+$D$20)^5,IF(Durée=15,Prime_périodique*PI_1*(1+$E$20)^5,0))) -> 77418.05749
J19: =+K7 -> 5 | K19: 4906403.784
B20: Taux technique NET ANNUEL | C20: =+(1+Taux_1)*(1-encours)-1 -> 0.04 | D20: =+(1+Taux_2)*(1-encours_1)-1 -> 0.045 | E20: =(1+Taux_3)*(1-encours_2)-1 -> 0.05 | K20: =+K15-K19 -> -4852489.409
K21: =+K20*N3 -> -4046976167
B23: Taux d'intérêt technique mensuel | C23: =(((1+Taux_1)*(1-encours))^(1/12))-1 -> 0.003273739782 | D23: =(((1+Taux_2)*(1-encours_1))^(1/12))-1 -> 0.0036748094 | E23: =(((1+Taux_3)*(1-encours_2))^(1/12))-1 -> 0.004074123784
C24: =(((1+Taux_1)*(1-0))^(1/12))-1 -> 0.003273739782 | D24: =+(((1+Taux_2)*(1-0))^(1/12))-1 -> 0.0036748094 | E24: =+(((1+Taux_3)*(1-0))^(1/12))-1 -> 0.004074123784

Sheet CDC EPARGNE DIASPORA
M1: 1 | N1: 4 | O1: 1 | Q1: CDCCI
N2: =Paramètres!J18 -> 709914.3753 | O2: =Paramètres!K18 -> 77418.05749
C3: CDC EPARGNE DIASPORA - SIMULATION SOUSCRIPTION
F6: DUREE | G6: =IF($M$1=1,5,IF($M$1=2,10,IF($M$1=3,15,"NEANT"))) -> 5
F9: TAUX | G9: =IF($M$1=1,0.04,IF($M$1=2,0.045,IF($M$1=3,0.05,"NEANT"))) -> 0.04
C12: Périodicité de paiement | I12: ="Prime"&" "&IF(N1=1,"Unique",IF(N1=2,"Mensuelle",IF(N1=3,"Trimestrielle",IF(N1=4,"Semestrielle")))) -> Prime Semestrielle | K12: 65600
N13: =+C19 -> 709914.3753
N16: =+J17-J19 -> 0
C17: =IF($O$1=1,"Capital acquis au terme hors versements libres",IF($O$1=2,"Rente Viagère Annuelle",IF($O$1=4,"Prêt immobilier maximum à partir de la 5ème année",IF($O$1=3,"Rente viagère annuelle reversible ","NEANT")))) -> Capital acquis au terme hors versements libres | H17: =IF(OR(O1=2,O1=3),"Age de l'épargnant au terme du contrat","") ->  | K17: =+IF(OR(O1=2,O1=3),"Renseigner obligatoirement !","") ->  | N17: =+C19/12 -> 59159.53127
C19: =IFERROR(IF($O$1=1,Paramètres!$K$9,IF(AND($O$1=2,J17<>""),Paramètres!$K$9*VLOOKUP(J17,'RENTE VIAGERE NON REVERSIBLE'!$B$6:$C$68,2,FALSE),IF(AND($O$1=3,J17<>"",J19<>""),Paramètres!$K$9*VLOOKUP(J17,'RENTE VIAGERE REVERSIBLE'!$A$8:$AP$70,1+MATCH(J17-J19,'RENTE VIAGERE REVERSIBLE'!$B$7:$AP$7,0),FALSE),IF($O$1=4,IF(Paramètres!$K$6="UNIQUE",'CDC EPARGNE DIASPORA'!$O$2/10%,$N$2*10),"NEANT")))),"NEANT") -> 709914.3753 | H19: =IF(O1=3,"Age du conjoint au terme du contrat","") ->  | K19: =+IF(OR(O1=3),"Renseigner obligatoirement !","") ->  | N19: =MATCH(J17-J19,'[1]RENTE VIAGERE REVERSIBLE'!$B$7:$AP$7,0) -> 21
C20: =+IF(C19="NEANT","Vérifier l'âge l'épargnant et/ou de son(sa) conjoint(e)","") ->  | M20: =TEXT(60%*M22,"# ##0") -> 425 948 | N20: =+VLOOKUP(J17,'[1]RENTE VIAGERE REVERSIBLE'!$A$8:$AP$70,1+MATCH(J17-J19,'[1]RENTE VIAGERE REVERSIBLE'!$B$7:$AP$7,0),FALSE) ->  | O20: =+C19 -> 709914.3753
C21: =IFERROR(IF(AND(O1=2,J17<>""),CONCATENATE("Au terme du contrat,Il sera versé une rente viagère immédiate de ",M22," CFA par an à l’épargnant."),IF(AND(O1=3,J17<>"",J19<>""),CONCATENATE("Il sera versé une rente viagère immédiate de ",M22," CFA par an à l’épargnant. Au décès de l'épargnant, Il sera reversé une rente de ",M20," CFA par an aux bénéficiaires désignés. ","Cette rente est viagère si le bénéficiaire est le(la) conjoint(e) ou payable jusqu’à l’âge de 25 ans si les bénéficiaires sont les enfants.")," ")),"") -> 
M22: =+TEXT(C19,"# ##0") -> 709 914 | N22: =+CONCATENATE(M22,"cfa") -> 709 914cfa

Sheet RENTE VIAGERE NON REVERSIBLE (hidden)
B2: RENTE VIAGERE NON REVERSIBLE
B5: AGE LIQUIDATION | C5: ARRERAGE
B6: 18 | C6: 0.0394
B7: 19 | C7: 0.0397
B8: 20 | C8: 0.0399
B9: 21 | C9: 0.0402
B10: 22 | C10: 0.0404
B11: 23 | C11: 0.0407
B12: 24 | C12: 0.041
B13: 25 | C13: 0.0413
B14: 26 | C14: 0.0416
B15: 27 | C15: 0.0419
B16: 28 | C16: 0.0423
B17: 29 | C17: 0.0426
B18: 30 | C18: 0.043
B19: 31 | C19: 0.0434
B20: 32 | C20: 0.0438
B21: 33 | C21: 0.0442
B22: 34 | C22: 0.0447
B23: 35 | C23: 0.0452
B24: 36 | C24: 0.0457
B25: 37 | C25: 0.0462
B26: 38 | C26: 0.0468
B27: 39 | C27: 0.0474
B28: 40 | C28: 0.048
B29: 41 | C29: 0.0486
B30: 42 | C30: 0.0493
B31: 43 | C31: 0.0501
B32: 44 | C32: 0.0508
B33: 45 | C33: 0.0517
B34: 46 | C34: 0.0525
B35: 47 | C35: 0.0534
B36: 48 | C36: 0.0544
B37: 49 | C37: 0.0554
B38: 50 | C38: 0.0565
B39: 51 | C39: 0.0577
B40: 52 | C40: 0.0589
B41: 53 | C41: 0.0602
B42: 54 | C42: 0.0616
B43: 55 | C43: 0.0631
B44: 56 | C44: 0.0647
B45: 57 | C45: 0.0664
B46: 58 | C46: 0.0682
B47: 59 | C47: 0.0701
B48: 60 | C48: 0.0722
B49: 61 | C49: 0.0744
B50: 62 | C50: 0.0768
B51: 63 | C51: 0.0794
B52: 64 | C52: 0.0821
B53: 65 | C53: 0.0851
B54: 66 | C54: 0.0883
B55: 67 | C55: 0.0917
B56: 68 | C56: 0.0954
B57: 69 | C57: 0.0995
B58: 70 | C58: 0.1038
B59: 71 | C59: 0.1085
B60: 72 | C60: 0.1137
B61: 73 | C61: 0.1193
B62: 74 | C62: 0.1254
B63: 75 | C63: 0.132
B64: 76 | C64: 0.1393
B65: 77 | C65: 0.1472
B66: 78 | C66: 0.1559
B67: 79 | C67: 0.1655
B68: 80 | C68: 0.176

Sheet RENTE VIAGERE REVERSIBLE (hidden)
B2: RENTE VIAGERE NON REVERSIBLE - RENTE VIAGERE NON REVERSIBLE - RENTE VIAGERE NON REVERSIBLE- RENTE VIAGERE NON REVERSIBLE
B4: 1 | C4: 2 | D4: 3 | E4: 4 | F4: 5 | G4: 6 | H4: 7 | I4: 8 | J4: 9 | K4: 10 | L4: 11 | M4: 12 | N4: 13 | O4: 14 | P4: 15 | Q4: 16 | R4: 17 | S4: 18 | T4: 19 | U4: 20 | V4: 21 | W4: 22 | X4: 23 | Y4: 24 | Z4: 25 | AA4: 26 | AB4: 27 | AC4: 28 | AD4: 29 | AE4: 30 | AF4: 31 | AG4: 32 | AH4: 33 | AI4: 34 | AJ4: 35 | AK4: 36 | AL4: 37 | AM4: 38 | AN4: 39 | AO4: 40 | AP4: 41
A5: AGE LIQUIDATION | B5: ARRERAGE - ARRERAGE - ARRERAGE - ARRERAGE - ARRERAGE - ARRERAGE - ARRERAGE - ARRERAGE - ARRERAGE - - ARRERAGE - ARRERAGE - ARRERAGE - ARRERAGE - ARRERAGE - ARRERAGE - ARRERAGE - ARRERAGE - ARRERAGE - ARRERAGE -
A6: AGE LIQUIDATION | B6: DIFFERENCE AGE RENTIER ET AGE CONJOINT - DIFFERENCE AGE RENTIER ET AGE CONJOINT - DIFFERENCE AGE RENTIER ET AGE CONJOINT - DIFFERENCE AGE RENTIER ET AGE CONJOINT - DIFFERENCE AGE RENTIER ET AGE CONJOINT - DIFFERENCE AGE RENTIER ET AGE CONJOINT
B7: -20 | C7: -19 | D7: -18 | E7: -17 | F7: -16 | G7: -15 | H7: -14 | I7: -13 | J7: -12 | K7: -11 | L7: -10 | M7: -9 | N7: -8 | O7: -7 | P7: -6 | Q7: -5 | R7: -4 | S7: -3 | T7: -2 | U7: -1 | V7: 0 | W7: 1 | X7: 2 | Y7: 3 | Z7: 4 | AA7: 5 | AB7: 6 | AC7: 7 | AD7: 8 | AE7: 9 | AF7: 10 | AG7: 11 | AH7: 12 | AI7: 13 | AJ7: 14 | AK7: 15 | AL7: 16 | AM7: 17 | AN7: 18 | AO7: 19 | AP7: 20
A8: 18 | B8: 0.0393 | C8: 0.0392 | D8: 0.0392 | E8: 0.0392 | F8: 0.0391 | G8: 0.0391 | H8: 0.0391 | I8: 0.039 | J8: 0.039 | K8: 0.039 | L8: 0.0389 | M8: 0.0389 | N8: 0.0388 | O8: 0.0388 | P8: 0.0387 | Q8: 0.0387 | R8: 0.0387 | S8: 0.0386 | T8: 0.0386 | U8: 0.0385 | V8: 0.0385 | W8: 0.0384 | X8: 0.0384 | Y8: 0.0383 | Z8: 0.0383 | AA8: 0.0382 | AB8: 0.0382 | AC8: 0.0381 | AD8: 0.038 | AE8: 0.038 | AF8: 0.0379 | AG8: 0.0379 | AH8: 0.0378 | AI8: 0.0378 | AJ8: 0.0377 | AK8: 0.0377 | AL8: 0.0376 | AM8: 0.0372 | AN8: 0 | AO8: 0 | AP8: 0
A9: 19 | B9: 0.0395 | C9: 0.0395 | D9: 0.0394 | E9: 0.0394 | F9: 0.0394 | G9: 0.0393 | H9: 0.0393 | I9: 0.0392 | J9: 0.0392 | K9: 0.0392 | L9: 0.0391 | M9: 0.0391 | N9: 0.039 | O9: 0.039 | P9: 0.039 | Q9: 0.0389 | R9: 0.0389 | S9: 0.0388 | T9: 0.0388 | U9: 0.0387 | V9: 0.0387 | W9: 0.0386 | X9: 0.0386 | Y9: 0.0385 | Z9: 0.0384 | AA9: 0.0384 | AB9: 0.0383 | AC9: 0.0383 | AD9: 0.0382 | AE9: 0.0382 | AF9: 0.0381 | AG9: 0.0381 | AH9: 0.038 | AI9: 0.0379 | AJ9: 0.0379 | AK9: 0.0378 | AL9: 0.0378 | AM9: 0.0377 | AN9: 0.0373 | AO9: 0 | AP9: 0
A10: 20 | B10: 0.0397 | C10: 0.0397 | D10: 0.0397 | E10: 0.0396 | F10: 0.0396 | G10: 0.0396 | H10: 0.0395 | I10: 0.0395 | J10: 0.0394 | K10: 0.0394 | L10: 0.0394 | M10: 0.0393 | N10: 0.0393 | O10: 0.0392 | P10: 0.0392 | Q10: 0.0391 | R10: 0.0391 | S10: 0.039 | T10: 0.039 | U10: 0.0389 | V10: 0.0389 | W10: 0.0388 | X10: 0.0388 | Y10: 0.0387 | Z10: 0.0386 | AA10: 0.0386 | AB10: 0.0385 | AC10: 0.0385 | AD10: 0.0384 | AE10: 0.0383 | AF10: 0.0383 | AG10: 0.0382 | AH10: 0.0382 | AI10: 0.0381 | AJ10: 0.0381 | AK10: 0.038 | AL10: 0.0379 | AM10: 0.0379 | AN10: 0.0378 | AO10: 0.0374 | AP10: 0
A11: 21 | B11: 0.04 | C11: 0.0399 | D11: 0.0399 | E11: 0.0399 | F11: 0.0398 | G11: 0.0398 | H11: 0.0398 | I11: 0.0397 | J11: 0.0397 | K11: 0.0396 | L11: 0.0396 | M11: 0.0395 | N11: 0.0395 | O11: 0.0394 | P11: 0.0394 | Q11: 0.0393 | R11: 0.0393 | S11: 0.0392 | T11: 0.0392 | U11: 0.0391 | V11: 0.0391 | W11: 0.039 | X11: 0.039 | Y11: 0.0389 | Z11: 0.0388 | AA11: 0.0388 | AB11: 0.0387 | AC11: 0.0387 | AD11: 0.0386 | AE11: 0.0385 | AF11: 0.0385 | AG11: 0.0384 | AH11: 0.0384 | AI11: 0.0383 | AJ11: 0.0382 | AK11: 0.0382 | AL11: 0.0381 | AM11: 0.0381 | AN11: 0.038 | AO11: 0.0379 | AP11: 0.0375
A12: 22 | B12: 0.0402 | C12: 0.0402 | D12: 0.0402 | E12: 0.0401 | F12: 0.0401 | G12: 0.0401 | H12: 0.04 | I12: 0.04 | J12: 0.0399 | K12: 0.0399 | L12: 0.0398 | M12: 0.0398 | N12: 0.0397 | O12: 0.0397 | P12: 0.0396 | Q12: 0.0396 | R12: 0.0395 | S12: 0.0395 | T12: 0.0394 | U12: 0.0394 | V12: 0.0393 | W12: 0.0392 | X12: 0.0392 | Y12: 0.0391 | Z12: 0.0391 | AA12: 0.039 | AB12: 0.0389 | AC12: 0.0389 | AD12: 0.0388 | AE12: 0.0387 | AF12: 0.0387 | AG12: 0.0386 | AH12: 0.0386 | AI12: 0.0385 | AJ12: 0.0384 | AK12: 0.0384 | AL12: 0.0383 | AM12: 0.0382 | AN12: 0.0382 | AO12: 0.0381 | AP12: 0.038
A13: 23 | B13: 0.0405 | C13: 0.0405 | D13: 0.0404 | E13: 0.0404 | F13: 0.0404 | G13: 0.0403 | H13: 0.0403 | I13: 0.0402 | J13: 0.0402 | K13: 0.0401 | L13: 0.0401 | M13: 0.04 | N13: 0.04 | O13: 0.0399 | P13: 0.0399 | Q13: 0.0398 | R13: 0.0398 | S13: 0.0397 | T13: 0.0397 | U13: 0.0396 | V13: 0.0395 | W13: 0.0395 | X13: 0.0394 | Y13: 0.0393 | Z13: 0.0393 | AA13: 0.0392 | AB13: 0.0391 | AC13: 0.0391 | AD13: 0.039 | AE13: 0.0389 | AF13: 0.0389 | AG13: 0.0388 | AH13: 0.0388 | AI13: 0.0387 | AJ13: 0.0386 | AK13: 0.0386 | AL13: 0.0385 | AM13: 0.0384 | AN13: 0.0384 | AO13: 0.0383 | AP13: 0.0382
A14: 24 | B14: 0.0408 | C14: 0.0408 | D14: 0.0407 | E14: 0.0407 | F14: 0.0406 | G14: 0.0406 | H14: 0.0406 | I14: 0.0405 | J14: 0.0405 | K14: 0.0404 | L14: 0.0404 | M14: 0.0403 | N14: 0.0403 | O14: 0.0402 | P14: 0.0401 | Q14: 0.0401 | R14: 0.04 | S14: 0.04 | T14: 0.0399 | U14: 0.0398 | V14: 0.0398 | W14: 0.0397 | X14: 0.0396 | Y14: 0.0396 | Z14: 0.0395 | AA14: 0.0394 | AB14: 0.0394 | AC14: 0.0393 | AD14: 0.0392 | AE14: 0.0392 | AF14: 0.0391 | AG14: 0.039 | AH14: 0.039 | AI14: 0.0389 | AJ14: 0.0388 | AK14: 0.0388 | AL14: 0.0387 | AM14: 0.0386 | AN14: 0.0386 | AO14: 0.0385 | AP14: 0.0384
A15: 25 | B15: 0.0411 | C15: 0.0411 | D15: 0.041 | E15: 0.041 | F15: 0.0409 | G15: 0.0409 | H15: 0.0408 | I15: 0.0408 | J15: 0.0407 | K15: 0.0407 | L15: 0.0406 | M15: 0.0406 | N15: 0.0405 | O15: 0.0405 | P15: 0.0404 | Q15: 0.0404 | R15: 0.0403 | S15: 0.0402 | T15: 0.0402 | U15: 0.0401 | V15: 0.04 | W15: 0.04 | X15: 0.0399 | Y15: 0.0398 | Z15: 0.0397 | AA15: 0.0397 | AB15: 0.0396 | AC15: 0.0395 | AD15: 0.0395 | AE15: 0.0394 | AF15: 0.0393 | AG15: 0.0392 | AH15: 0.0392 | AI15: 0.0391 | AJ15: 0.039 | AK15: 0.039 | AL15: 0.0389 | AM15: 0.0388 | AN15: 0.0388 | AO15: 0.0387 | AP15: 0.0386
A16: 26 | B16: 0.0414 | C16: 0.0414 | D16: 0.0413 | E16: 0.0413 | F16: 0.0412 | G16: 0.0412 | H16: 0.0412 | I16: 0.0411 | J16: 0.041 | K16: 0.041 | L16: 0.0409 | M16: 0.0409 | N16: 0.0408 | O16: 0.0408 | P16: 0.0407 | Q16: 0.0406 | R16: 0.0406 | S16: 0.0405 | T16: 0.0404 | U16: 0.0404 | V16: 0.0403 | W16: 0.0402 | X16: 0.0402 | Y16: 0.0401 | Z16: 0.04 | AA16: 0.0399 | AB16: 0.0399 | AC16: 0.0398 | AD16: 0.0397 | AE16: 0.0396 | AF16: 0.0396 | AG16: 0.0395 | AH16: 0.0394 | AI16: 0.0393 | AJ16: 0.0393 | AK16: 0.0392 | AL16: 0.0391 | AM16: 0.039 | AN16: 0.039 | AO16: 0.0389 | AP16: 0.0388
A17: 27 | B17: 0.0417 | C17: 0.0417 | D17: 0.0417 | E17: 0.0416 | F17: 0.0416 | G17: 0.0415 | H17: 0.0415 | I17: 0.0414 | J17: 0.0414 | K17: 0.0413 | L17: 0.0412 | M17: 0.0412 | N17: 0.0411 | O17: 0.0411 | P17: 0.041 | Q17: 0.0409 | R17: 0.0409 | S17: 0.0408 | T17: 0.0407 | U17: 0.0406 | V17: 0.0406 | W17: 0.0405 | X17: 0.0404 | Y17: 0.0403 | Z17: 0.0403 | AA17: 0.0402 | AB17: 0.0401 | AC17: 0.04 | AD17: 0.04 | AE17: 0.0399 | AF17: 0.0398 | AG17: 0.0397 | AH17: 0.0396 | AI17: 0.0396 | AJ17: 0.0395 | AK17: 0.0394 | AL17: 0.0393 | AM17: 0.0393 | AN17: 0.0392 | AO17: 0.0391 | AP17: 0.039
A18: 28 | B18: 0.0421 | C18: 0.042 | D18: 0.042 | E18: 0.042 | F18: 0.0419 | G18: 0.0419 | H18: 0.0418 | I18: 0.0417 | J18: 0.0417 | K18: 0.0416 | L18: 0.0416 | M18: 0.0415 | N18: 0.0414 | O18: 0.0414 | P18: 0.0413 | Q18: 0.0412 | R18: 0.0412 | S18: 0.0411 | T18: 0.041 | U18: 0.0409 | V18: 0.0409 | W18: 0.0408 | X18: 0.0407 | Y18: 0.0406 | Z18: 0.0405 | AA18: 0.0405 | AB18: 0.0404 | AC18: 0.0403 | AD18: 0.0402 | AE18: 0.0401 | AF18: 0.04 | AG18: 0.04 | AH18: 0.0399 | AI18: 0.0398 | AJ18: 0.0397 | AK18: 0.0396 | AL18: 0.0396 | AM18: 0.0395 | AN18: 0.0394 | AO18: 0.0393 | AP18: 0.0393
A19: 29 | B19: 0.0424 | C19: 0.0424 | D19: 0.0424 | E19: 0.0423 | F19: 0.0423 | G19: 0.0422 | H19: 0.0422 | I19: 0.0421 | J19: 0.042 | K19: 0.042 | L19: 0.0419 | M19: 0.0418 | N19: 0.0418 | O19: 0.0417 | P19: 0.0416 | Q19: 0.0416 | R19: 0.0415 | S19: 0.0414 | T19: 0.0413 | U19: 0.0412 | V19: 0.0412 | W19: 0.0411 | X19: 0.041 | Y19: 0.0409 | Z19: 0.0408 | AA19: 0.0407 | AB19: 0.0407 | AC19: 0.0406 | AD19: 0.0405 | AE19: 0.0404 | AF19: 0.0403 | AG19: 0.0402 | AH19: 0.0401 | AI19: 0.0401 | AJ19: 0.04 | AK19: 0.0399 | AL19: 0.0398 | AM19: 0.0397 | AN19: 0.0396 | AO19: 0.0396 | AP19: 0.0395
A20: 30 | B20: 0.0428 | C20: 0.0428 | D20: 0.0427 | E20: 0.0427 | F20: 0.0426 | G20: 0.0426 | H20: 0.0425 | I20: 0.0425 | J20: 0.0424 | K20: 0.0423 | L20: 0.0423 | M20: 0.0422 | N20: 0.0421 | O20: 0.0421 | P20: 0.042 | Q20: 0.0419 | R20: 0.0418 | S20: 0.0417 | T20: 0.0417 | U20: 0.0416 | V20: 0.0415 | W20: 0.0414 | X20: 0.0413 | Y20: 0.0412 | Z20: 0.0411 | AA20: 0.041 | AB20: 0.041 | AC20: 0.0409 | AD20: 0.0408 | AE20: 0.0407 | AF20: 0.0406 | AG20: 0.0405 | AH20: 0.0404 | AI20: 0.0403 | AJ20: 0.0402 | AK20: 0.0401 | AL20: 0.0401 | AM20: 0.04 | AN20: 0.0399 | AO20: 0.0398 | AP20: 0.0397
A21: 31 | B21: 0.0432 | C21: 0.0432 | D21: 0.0431 | E21: 0.0431 | F21: 0.043 | G21: 0.043 | H21: 0.0429 | I21: 0.0428 | J21: 0.0428 | K21: 0.0427 | L21: 0.0426 | M21: 0.0426 | N21: 0.0425 | O21: 0.0424 | P21: 0.0423 | Q21: 0.0423 | R21: 0.0422 | S21: 0.0421 | T21: 0.042 | U21: 0.0419 | V21: 0.0418 | W21: 0.0417 | X21: 0.0416 | Y21: 0.0415 | Z21: 0.0414 | AA21: 0.0414 | AB21: 0.0413 | AC21: 0.0412 | AD21: 0.0411 | AE21: 0.041 | AF21: 0.0409 | AG21: 0.0408 | AH21: 0.0407 | AI21: 0.0406 | AJ21: 0.0405 | AK21: 0.0404 | AL21: 0.0403 | AM21: 0.0402 | AN21: 0.0402 | AO21: 0.0401 | AP21: 0.04
A22: 32 | B22: 0.0436 | C22: 0.0436 | D22: 0.0435 | E22: 0.0435 | F22: 0.0434 | G22: 0.0434 | H22: 0.0433 | I22: 0.0432 | J22: 0.0432 | K22: 0.0431 | L22: 0.043 | M22: 0.043 | N22: 0.0429 | O22: 0.0428 | P22: 0.0427 | Q22: 0.0426 | R22: 0.0425 | S22: 0.0424 | T22: 0.0424 | U22: 0.0423 | V22: 0.0422 | W22: 0.0421 | X22: 0.042 | Y22: 0.0419 | Z22: 0.0418 | AA22: 0.0417 | AB22: 0.0416 | AC22: 0.0415 | AD22: 0.0414 | AE22: 0.0413 | AF22: 0.0412 | AG22: 0.0411 | AH22: 0.041 | AI22: 0.0409 | AJ22: 0.0408 | AK22: 0.0407 | AL22: 0.0406 | AM22: 0.0405 | AN22: 0.0404 | AO22: 0.0403 | AP22: 0.0402
A23: 33 | B23: 0.0441 | C23: 0.044 | D23: 0.044 | E23: 0.0439 | F23: 0.0439 | G23: 0.0438 | H23: 0.0437 | I23: 0.0437 | J23: 0.0436 | K23: 0.0435 | L23: 0.0434 | M23: 0.0434 | N23: 0.0433 | O23: 0.0432 | P23: 0.0431 | Q23: 0.043 | R23: 0.0429 | S23: 0.0428 | T23: 0.0427 | U23: 0.0426 | V23: 0.0425 | W23: 0.0424 | X23: 0.0423 | Y23: 0.0422 | Z23: 0.0421 | AA23: 0.042 | AB23: 0.0419 | AC23: 0.0418 | AD23: 0.0417 | AE23: 0.0416 | AF23: 0.0415 | AG23: 0.0414 | AH23: 0.0413 | AI23: 0.0412 | AJ23: 0.0411 | AK23: 0.041 | AL23: 0.0409 | AM23: 0.0408 | AN23: 0.0407 | AO23: 0.0406 | AP23: 0.0405
A24: 34 | B24: 0.0445 | C24: 0.0445 | D24: 0.0444 | E24: 0.0444 | F24: 0.0443 | G24: 0.0442 | H24: 0.0442 | I24: 0.0441 | J24: 0.044 | K24: 0.0439 | L24: 0.0439 | M24: 0.0438 | N24: 0.0437 | O24: 0.0436 | P24: 0.0435 | Q24: 0.0434 | R24: 0.0433 | S24: 0.0432 | T24: 0.0431 | U24: 0.043 | V24: 0.0429 | W24: 0.0428 | X24: 0.0427 | Y24: 0.0426 | Z24: 0.0425 | AA24: 0.0424 | AB24: 0.0423 | AC24: 0.0422 | AD24: 0.0421 | AE24: 0.0419 | AF24: 0.0418 | AG24: 0.0417 | AH24: 0.0416 | AI24: 0.0415 | AJ24: 0.0414 | AK24: 0.0413 | AL24: 0.0412 | AM24: 0.0411 | AN24: 0.041 | AO24: 0.0409 | AP24: 0.0408
A25: 35 | B25: 0.045 | C25: 0.045 | D25: 0.0449 | E25: 0.0448 | F25: 0.0448 | G25: 0.0447 | H25: 0.0446 | I25: 0.0446 | J25: 0.0445 | K25: 0.0444 | L25: 0.0443 | M25: 0.0442 | N25: 0.0441 | O25: 0.0441 | P25: 0.044 | Q25: 0.0439 | R25: 0.0438 | S25: 0.0437 | T25: 0.0435 | U25: 0.0434 | V25: 0.0433 | W25: 0.0432 | X25: 0.0431 | Y25: 0.043 | Z25: 0.0429 | AA25: 0.0428 | AB25: 0.0426 | AC25: 0.0425 | AD25: 0.0424 | AE25: 0.0423 | AF25: 0.0422 | AG25: 0.0421 | AH25: 0.042 | AI25: 0.0418 | AJ25: 0.0417 | AK25: 0.0416 | AL25: 0.0415 | AM25: 0.0414 | AN25: 0.0413 | AO25: 0.0412 | AP25: 0.0411
A26: 36 | B26: 0.0455 | C26: 0.0455 | D26: 0.0454 | E26: 0.0453 | F26: 0.0453 | G26: 0.0452 | H26: 0.0451 | I26: 0.0451 | J26: 0.045 | K26: 0.0449 | L26: 0.0448 | M26: 0.0447 | N26: 0.0446 | O26: 0.0445 | P26: 0.0444 | Q26: 0.0443 | R26: 0.0442 | S26: 0.0441 | T26: 0.044 | U26: 0.0439 | V26: 0.0438 | W26: 0.0436 | X26: 0.0435 | Y26: 0.0434 | Z26: 0.0433 | AA26: 0.0432 | AB26: 0.043 | AC26: 0.0429 | AD26: 0.0428 | AE26: 0.0427 | AF26: 0.0425 | AG26: 0.0424 | AH26: 0.0423 | AI26: 0.0422 | AJ26: 0.0421 | AK26: 0.042 | AL26: 0.0418 | AM26: 0.0417 | AN26: 0.0416 | AO26: 0.0415 | AP26: 0.0414
A27: 37 | B27: 0.0461 | C27: 0.046 | D27: 0.0459 | E27: 0.0459 | F27: 0.0458 | G27: 0.0457 | H27: 0.0456 | I27: 0.0456 | J27: 0.0455 | K27: 0.0454 | L27: 0.0453 | M27: 0.0452 | N27: 0.0451 | O27: 0.045 | P27: 0.0449 | Q27: 0.0448 | R27: 0.0447 | S27: 0.0446 | T27: 0.0444 | U27: 0.0443 | V27: 0.0442 | W27: 0.0441 | X27: 0.044 | Y27: 0.0438 | Z27: 0.0437 | AA27: 0.0436 | AB27: 0.0434 | AC27: 0.0433 | AD27: 0.0432 | AE27: 0.0431 | AF27: 0.0429 | AG27: 0.0428 | AH27: 0.0427 | AI27: 0.0426 | AJ27: 0.0424 | AK27: 0.0423 | AL27: 0.0422 | AM27: 0.0421 | AN27: 0.042 | AO27: 0.0418 | AP27: 0.0417
A28: 38 | B28: 0.0466 | C28: 0.0466 | D28: 0.0465 | E28: 0.0464 | F28: 0.0463 | G28: 0.0463 | H28: 0.0462 | I28: 0.0461 | J28: 0.046 | K28: 0.0459 | L28: 0.0458 | M28: 0.0457 | N28: 0.0456 | O28: 0.0455 | P28: 0.0454 | Q28: 0.0453 | R28: 0.0452 | S28: 0.0451 | T28: 0.0449 | U28: 0.0448 | V28: 0.0447 | W28: 0.0445 | X28: 0.0444 | Y28: 0.0443 | Z28: 0.0441 | AA28: 0.044 | AB28: 0.0439 | AC28: 0.0437 | AD28: 0.0436 | AE28: 0.0435 | AF28: 0.0433 | AG28: 0.0432 | AH28: 0.0431 | AI28: 0.0429 | AJ28: 0.0428 | AK28: 0.0427 | AL28: 0.0426 | AM28: 0.0424 | AN28: 0.0423 | AO28: 0.0422 | AP28: 0.0421
A29: 39 | B29: 0.0472 | C29: 0.0471 | D29: 0.0471 | E29: 0.047 | F29: 0.0469 | G29: 0.0468 | H29: 0.0468 | I29: 0.0467 | J29: 0.0466 | K29: 0.0465 | L29: 0.0464 | M29: 0.0463 | N29: 0.0462 | O29: 0.0461 | P29: 0.0459 | Q29: 0.0458 | R29: 0.0457 | S29: 0.0456 | T29: 0.0454 | U29: 0.0453 | V29: 0.0452 | W29: 0.045 | X29: 0.0449 | Y29: 0.0448 | Z29: 0.0446 | AA29: 0.0445 | AB29: 0.0443 | AC29: 0.0442 | AD29: 0.044 | AE29: 0.0439 | AF29: 0.0438 | AG29: 0.0436 | AH29: 0.0435 | AI29: 0.0433 | AJ29: 0.0432 | AK29: 0.0431 | AL29: 0.0429 | AM29: 0.0428 | AN29: 0.0427 | AO29: 0.0425 | AP29: 0.0424
A30: 40 | B30: 0.0478 | C30: 0.0478 | D30: 0.0477 | E30: 0.0476 | F30: 0.0475 | G30: 0.0475 | H30: 0.0474 | I30: 0.0473 | J30: 0.0472 | K30: 0.0471 | L30: 0.047 | M30: 0.0469 | N30: 0.0467 | O30: 0.0466 | P30: 0.0465 | Q30: 0.0464 | R30: 0.0462 | S30: 0.0461 | T30: 0.046 | U30: 0.0458 | V30: 0.0457 | W30: 0.0455 | X30: 0.0454 | Y30: 0.0453 | Z30: 0.0451 | AA30: 0.045 | AB30: 0.0448 | AC30: 0.0447 | AD30: 0.0445 | AE30: 0.0443 | AF30: 0.0442 | AG30: 0.0441 | AH30: 0.0439 | AI30: 0.0438 | AJ30: 0.0436 | AK30: 0.0435 | AL30: 0.0433 | AM30: 0.0432 | AN30: 0.0431 | AO30: 0.0429 | AP30: 0.0428
A31: 41 | B31: 0.0485 | C31: 0.0484 | D31: 0.0483 | E31: 0.0483 | F31: 0.0482 | G31: 0.0481 | H31: 0.048 | I31: 0.0479 | J31: 0.0478 | K31: 0.0477 | L31: 0.0476 | M31: 0.0475 | N31: 0.0474 | O31: 0.0472 | P31: 0.0471 | Q31: 0.047 | R31: 0.0468 | S31: 0.0467 | T31: 0.0465 | U31: 0.0464 | V31: 0.0462 | W31: 0.0461 | X31: 0.0459 | Y31: 0.0458 | Z31: 0.0456 | AA31: 0.0455 | AB31: 0.0453 | AC31: 0.0451 | AD31: 0.045 | AE31: 0.0448 | AF31: 0.0447 | AG31: 0.0445 | AH31: 0.0444 | AI31: 0.0442 | AJ31: 0.044 | AK31: 0.0439 | AL31: 0.0438 | AM31: 0.0436 | AN31: 0.0435 | AO31: 0.0433 | AP31: 0.0432
A32: 42 | B32: 0.0492 | C32: 0.0491 | D32: 0.049 | E32: 0.049 | F32: 0.0489 | G32: 0.0488 | H32: 0.0487 | I32: 0.0486 | J32: 0.0485 | K32: 0.0484 | L32: 0.0482 | M32: 0.0481 | N32: 0.048 | O32: 0.0479 | P32: 0.0477 | Q32: 0.0476 | R32: 0.0474 | S32: 0.0473 | T32: 0.0471 | U32: 0.047 | V32: 0.0468 | W32: 0.0467 | X32: 0.0465 | Y32: 0.0463 | Z32: 0.0462 | AA32: 0.046 | AB32: 0.0458 | AC32: 0.0457 | AD32: 0.0455 | AE32: 0.0453 | AF32: 0.0452 | AG32: 0.045 | AH32: 0.0448 | AI32: 0.0447 | AJ32: 0.0445 | AK32: 0.0443 | AL32: 0.0442 | AM32: 0.044 | AN32: 0.0439 | AO32: 0.0437 | AP32: 0.0436
A33: 43 | B33: 0.0499 | C33: 0.0498 | D33: 0.0498 | E33: 0.0497 | F33: 0.0496 | G33: 0.0495 | H33: 0.0494 | I33: 0.0493 | J33: 0.0492 | K33: 0.0491 | L33: 0.0489 | M33: 0.0488 | N33: 0.0487 | O33: 0.0485 | P33: 0.0484 | Q33: 0.0482 | R33: 0.0481 | S33: 0.0479 | T33: 0.0478 | U33: 0.0476 | V33: 0.0474 | W33: 0.0473 | X33: 0.0471 | Y33: 0.0469 | Z33: 0.0467 | AA33: 0.0466 | AB33: 0.0464 | AC33: 0.0462 | AD33: 0.046 | AE33: 0.0459 | AF33: 0.0457 | AG33: 0.0455 | AH33: 0.0453 | AI33: 0.0452 | AJ33: 0.045 | AK33: 0.0448 | AL33: 0.0447 | AM33: 0.0445 | AN33: 0.0443 | AO33: 0.0442 | AP33: 0.044
A34: 44 | B34: 0.0507 | C34: 0.0506 | D34: 0.0505 | E34: 0.0504 | F34: 0.0504 | G34: 0.0503 | H34: 0.0501 | I34: 0.05 | J34: 0.0499 | K34: 0.0498 | L34: 0.0497 | M34: 0.0495 | N34: 0.0494 | O34: 0.0492 | P34: 0.0491 | Q34: 0.0489 | R34: 0.0488 | S34: 0.0486 | T34: 0.0484 | U34: 0.0483 | V34: 0.0481 | W34: 0.0479 | X34: 0.0477 | Y34: 0.0475 | Z34: 0.0473 | AA34: 0.0472 | AB34: 0.047 | AC34: 0.0468 | AD34: 0.0466 | AE34: 0.0464 | AF34: 0.0462 | AG34: 0.046 | AH34: 0.0458 | AI34: 0.0457 | AJ34: 0.0455 | AK34: 0.0453 | AL34: 0.0451 | AM34: 0.045 | AN34: 0.0448 | AO34: 0.0446 | AP34: 0.0445
A35: 45 | B35: 0.0515 | C35: 0.0514 | D35: 0.0513 | E35: 0.0513 | F35: 0.0512 | G35: 0.0511 | H35: 0.0509 | I35: 0.0508 | J35: 0.0507 | K35: 0.0506 | L35: 0.0504 | M35: 0.0503 | N35: 0.0501 | O35: 0.05 | P35: 0.0498 | Q35: 0.0497 | R35: 0.0495 | S35: 0.0493 | T35: 0.0491 | U35: 0.049 | V35: 0.0488 | W35: 0.0486 | X35: 0.0484 | Y35: 0.0482 | Z35: 0.048 | AA35: 0.0478 | AB35: 0.0476 | AC35: 0.0474 | AD35: 0.0472 | AE35: 0.047 | AF35: 0.0468 | AG35: 0.0466 | AH35: 0.0464 | AI35: 0.0462 | AJ35: 0.046 | AK35: 0.0458 | AL35: 0.0457 | AM35: 0.0455 | AN35: 0.0453 | AO35: 0.0451 | AP35: 0.045
A36: 46 | B36: 0.0524 | C36: 0.0523 | D36: 0.0522 | E36: 0.0521 | F36: 0.052 | G36: 0.0519 | H36: 0.0518 | I36: 0.0517 | J36: 0.0515 | K36: 0.0514 | L36: 0.0513 | M36: 0.0511 | N36: 0.0509 | O36: 0.0508 | P36: 0.0506 | Q36: 0.0504 | R36: 0.0503 | S36: 0.0501 | T36: 0.0499 | U36: 0.0497 | V36: 0.0495 | W36: 0.0493 | X36: 0.0491 | Y36: 0.0489 | Z36: 0.0487 | AA36: 0.0484 | AB36: 0.0482 | AC36: 0.048 | AD36: 0.0478 | AE36: 0.0476 | AF36: 0.0474 | AG36: 0.0472 | AH36: 0.047 | AI36: 0.0468 | AJ36: 0.0466 | AK36: 0.0464 | AL36: 0.0462 | AM36: 0.046 | AN36: 0.0458 | AO36: 0.0456 | AP36: 0.0455
A37: 47 | B37: 0.0533 | C37: 0.0532 | D37: 0.0531 | E37: 0.053 | F37: 0.0529 | G37: 0.0528 | H37: 0.0527 | I37: 0.0525 | J37: 0.0524 | K37: 0.0523 | L37: 0.0521 | M37: 0.052 | N37: 0.0518 | O37: 0.0516 | P37: 0.0514 | Q37: 0.0513 | R37: 0.0511 | S37: 0.0509 | T37: 0.0507 | U37: 0.0505 | V37: 0.0502 | W37: 0.05 | X37: 0.0498 | Y37: 0.0496 | Z37: 0.0494 | AA37: 0.0491 | AB37: 0.0489 | AC37: 0.0487 | AD37: 0.0485 | AE37: 0.0482 | AF37: 0.048 | AG37: 0.0478 | AH37: 0.0476 | AI37: 0.0474 | AJ37: 0.0472 | AK37: 0.047 | AL37: 0.0467 | AM37: 0.0465 | AN37: 0.0464 | AO37: 0.0462 | AP37: 0.046
A38: 48 | B38: 0.0543 | C38: 0.0542 | D38: 0.0541 | E38: 0.054 | F38: 0.0539 | G38: 0.0538 | H38: 0.0536 | I38: 0.0535 | J38: 0.0533 | K38: 0.0532 | L38: 0.053 | M38: 0.0529 | N38: 0.0527 | O38: 0.0525 | P38: 0.0523 | Q38: 0.0521 | R38: 0.0519 | S38: 0.0517 | T38: 0.0515 | U38: 0.0513 | V38: 0.0511 | W38: 0.0508 | X38: 0.0506 | Y38: 0.0504 | Z38: 0.0501 | AA38: 0.0499 | AB38: 0.0496 | AC38: 0.0494 | AD38: 0.0492 | AE38: 0.0489 | AF38: 0.0487 | AG38: 0.0485 | AH38: 0.0482 | AI38: 0.048 | AJ38: 0.0478 | AK38: 0.0476 | AL38: 0.0473 | AM38: 0.0471 | AN38: 0.0469 | AO38: 0.0467 | AP38: 0.0465
A39: 49 | B39: 0.0553 | C39: 0.0552 | D39: 0.0551 | E39: 0.055 | F39: 0.0549 | G39: 0.0548 | H39: 0.0546 | I39: 0.0545 | J39: 0.0543 | K39: 0.0542 | L39: 0.054 | M39: 0.0538 | N39: 0.0536 | O39: 0.0535 | P39: 0.0532 | Q39: 0.053 | R39: 0.0528 | S39: 0.0526 | T39: 0.0524 | U39: 0.0521 | V39: 0.0519 | W39: 0.0517 | X39: 0.0514 | Y39: 0.0512 | Z39: 0.0509 | AA39: 0.0507 | AB39: 0.0504 | AC39: 0.0502 | AD39: 0.0499 | AE39: 0.0497 | AF39: 0.0494 | AG39: 0.0492 | AH39: 0.0489 | AI39: 0.0487 | AJ39: 0.0484 | AK39: 0.0482 | AL39: 0.048 | AM39: 0.0477 | AN39: 0.0475 | AO39: 0.0473 | AP39: 0.0471
A40: 50 | B40: 0.0564 | C40: 0.0563 | D40: 0.0562 | E40: 0.0561 | F40: 0.056 | G40: 0.0558 | H40: 0.0557 | I40: 0.0555 | J40: 0.0554 | K40: 0.0552 | L40: 0.055 | M40: 0.0549 | N40: 0.0547 | O40: 0.0545 | P40: 0.0542 | Q40: 0.054 | R40: 0.0538 | S40: 0.0536 | T40: 0.0533 | U40: 0.0531 | V40: 0.0528 | W40: 0.0526 | X40: 0.0523 | Y40: 0.052 | Z40: 0.0518 | AA40: 0.0515 | AB40: 0.0512 | AC40: 0.051 | AD40: 0.0507 | AE40: 0.0504 | AF40: 0.0502 | AG40: 0.0499 | AH40: 0.0496 | AI40: 0.0494 | AJ40: 0.0491 | AK40: 0.0489 | AL40: 0.0486 | AM40: 0.0484 | AN40: 0.0482 | AO40: 0.0479 | AP40: 0.0477
A41: 51 | B41: 0.0576 | C41: 0.0575 | D41: 0.0573 | E41: 0.0572 | F41: 0.0571 | G41: 0.057 | H41: 0.0568 | I41: 0.0567 | J41: 0.0565 | K41: 0.0563 | L41: 0.0561 | M41: 0.0559 | N41: 0.0557 | O41: 0.0555 | P41: 0.0553 | Q41: 0.0551 | R41: 0.0548 | S41: 0.0546 | T41: 0.0543 | U41: 0.054 | V41: 0.0538 | W41: 0.0535 | X41: 0.0532 | Y41: 0.0529 | Z41: 0.0527 | AA41: 0.0524 | AB41: 0.0521 | AC41: 0.0518 | AD41: 0.0515 | AE41: 0.0512 | AF41: 0.0509 | AG41: 0.0507 | AH41: 0.0504 | AI41: 0.0501 | AJ41: 0.0498 | AK41: 0.0496 | AL41: 0.0493 | AM41: 0.0491 | AN41: 0.0488 | AO41: 0.0486 | AP41: 0.0483
A42: 52 | B42: 0.0588 | C42: 0.0587 | D42: 0.0586 | E42: 0.0585 | F42: 0.0583 | G42: 0.0582 | H42: 0.058 | I42: 0.0579 | J42: 0.0577 | K42: 0.0575 | L42: 0.0573 | M42: 0.0571 | N42: 0.0569 | O42: 0.0566 | P42: 0.0564 | Q42: 0.0562 | R42: 0.0559 | S42: 0.0556 | T42: 0.0554 | U42: 0.0551 | V42: 0.0548 | W42: 0.0545 | X42: 0.0542 | Y42: 0.0539 | Z42: 0.0536 | AA42: 0.0533 | AB42: 0.053 | AC42: 0.0527 | AD42: 0.0524 | AE42: 0.0521 | AF42: 0.0518 | AG42: 0.0515 | AH42: 0.0512 | AI42: 0.0509 | AJ42: 0.0506 | AK42: 0.0503 | AL42: 0.05 | AM42: 0.0498 | AN42: 0.0495 | AO42: 0.0493 | AP42: 0.049
A43: 53 | B43: 0.0601 | C43: 0.06 | D43: 0.0599 | E43: 0.0598 | F43: 0.0596 | G43: 0.0595 | H43: 0.0593 | I43: 0.0591 | J43: 0.0589 | K43: 0.0587 | L43: 0.0585 | M43: 0.0583 | N43: 0.0581 | O43: 0.0578 | P43: 0.0576 | Q43: 0.0573 | R43: 0.057 | S43: 0.0568 | T43: 0.0565 | U43: 0.0562 | V43: 0.0559 | W43: 0.0556 | X43: 0.0552 | Y43: 0.0549 | Z43: 0.0546 | AA43: 0.0543 | AB43: 0.054 | AC43: 0.0536 | AD43: 0.0533 | AE43: 0.053 | AF43: 0.0527 | AG43: 0.0523 | AH43: 0.052 | AI43: 0.0517 | AJ43: 0.0514 | AK43: 0.0511 | AL43: 0.0508 | AM43: 0.0505 | AN43: 0.0503 | AO43: 0.05 | AP43: 0.0497
A44: 54 | B44: 0.0615 | C44: 0.0614 | D44: 0.0613 | E44: 0.0611 | F44: 0.061 | G44: 0.0608 | H44: 0.0607 | I44: 0.0605 | J44: 0.0603 | K44: 0.0601 | L44: 0.0599 | M44: 0.0596 | N44: 0.0594 | O44: 0.0591 | P44: 0.0588 | Q44: 0.0586 | R44: 0.0583 | S44: 0.058 | T44: 0.0577 | U44: 0.0573 | V44: 0.057 | W44: 0.0567 | X44: 0.0564 | Y44: 0.056 | Z44: 0.0557 | AA44: 0.0553 | AB44: 0.055 | AC44: 0.0546 | AD44: 0.0543 | AE44: 0.0539 | AF44: 0.0536 | AG44: 0.0533 | AH44: 0.0529 | AI44: 0.0526 | AJ44: 0.0523 | AK44: 0.0519 | AL44: 0.0516 | AM44: 0.0513 | AN44: 0.051 | AO44: 0.0507 | AP44: 0.0505
A45: 55 | B45: 0.063 | C45: 0.0629 | D45: 0.0627 | E45: 0.0626 | F45: 0.0625 | G45: 0.0623 | H45: 0.0621 | I45: 0.0619 | J45: 0.0617 | K45: 0.0615 | L45: 0.0613 | M45: 0.061 | N45: 0.0608 | O45: 0.0605 | P45: 0.0602 | Q45: 0.0599 | R45: 0.0596 | S45: 0.0593 | T45: 0.0589 | U45: 0.0586 | V45: 0.0582 | W45: 0.0579 | X45: 0.0575 | Y45: 0.0572 | Z45: 0.0568 | AA45: 0.0564 | AB45: 0.0561 | AC45: 0.0557 | AD45: 0.0553 | AE45: 0.0549 | AF45: 0.0546 | AG45: 0.0542 | AH45: 0.0539 | AI45: 0.0535 | AJ45: 0.0532 | AK45: 0.0528 | AL45: 0.0525 | AM45: 0.0522 | AN45: 0.0518 | AO45: 0.0515 | AP45: 0.0512
A46: 56 | B46: 0.0646 | C46: 0.0645 | D46: 0.0643 | E46: 0.0642 | F46: 0.064 | G46: 0.0639 | H46: 0.0637 | I46: 0.0635 | J46: 0.0632 | K46: 0.063 | L46: 0.0628 | M46: 0.0625 | N46: 0.0622 | O46: 0.0619 | P46: 0.0616 | Q46: 0.0613 | R46: 0.061 | S46: 0.0606 | T46: 0.0603 | U46: 0.0599 | V46: 0.0595 | W46: 0.0592 | X46: 0.0588 | Y46: 0.0584 | Z46: 0.058 | AA46: 0.0576 | AB46: 0.0572 | AC46: 0.0568 | AD46: 0.0564 | AE46: 0.056 | AF46: 0.0556 | AG46: 0.0552 | AH46: 0.0549 | AI46: 0.0545 | AJ46: 0.0541 | AK46: 0.0538 | AL46: 0.0534 | AM46: 0.0531 | AN46: 0.0527 | AO46: 0.0524 | AP46: 0.0521
A47: 57 | B47: 0.0663 | C47: 0.0661 | D47: 0.066 | E47: 0.0659 | F47: 0.0657 | G47: 0.0655 | H47: 0.0653 | I47: 0.0651 | J47: 0.0649 | K47: 0.0646 | L47: 0.0644 | M47: 0.0641 | N47: 0.0638 | O47: 0.0635 | P47: 0.0632 | Q47: 0.0628 | R47: 0.0625 | S47: 0.0621 | T47: 0.0617 | U47: 0.0613 | V47: 0.0609 | W47: 0.0605 | X47: 0.0601 | Y47: 0.0597 | Z47: 0.0593 | AA47: 0.0589 | AB47: 0.0584 | AC47: 0.058 | AD47: 0.0576 | AE47: 0.0572 | AF47: 0.0567 | AG47: 0.0563 | AH47: 0.0559 | AI47: 0.0555 | AJ47: 0.0551 | AK47: 0.0547 | AL47: 0.0544 | AM47: 0.054 | AN47: 0.0536 | AO47: 0.0533 | AP47: 0.0529
A48: 58 | B48: 0.0681 | C48: 0.068 | D48: 0.0678 | E48: 0.0677 | F48: 0.0675 | G48: 0.0673 | H48: 0.0671 | I48: 0.0669 | J48: 0.0666 | K48: 0.0664 | L48: 0.0661 | M48: 0.0658 | N48: 0.0655 | O48: 0.0651 | P48: 0.0648 | Q48: 0.0644 | R48: 0.0641 | S48: 0.0637 | T48: 0.0633 | U48: 0.0628 | V48: 0.0624 | W48: 0.062 | X48: 0.0615 | Y48: 0.0611 | Z48: 0.0606 | AA48: 0.0602 | AB48: 0.0597 | AC48: 0.0593 | AD48: 0.0588 | AE48: 0.0584 | AF48: 0.0579 | AG48: 0.0575 | AH48: 0.057 | AI48: 0.0566 | AJ48: 0.0562 | AK48: 0.0558 | AL48: 0.0554 | AM48: 0.055 | AN48: 0.0546 | AO48: 0.0542 | AP48: 0.0538
A49: 59 | B49: 0.07 | C49: 0.0699 | D49: 0.0697 | E49: 0.0696 | F49: 0.0694 | G49: 0.0692 | H49: 0.069 | I49: 0.0687 | J49: 0.0685 | K49: 0.0682 | L49: 0.0679 | M49: 0.0676 | N49: 0.0673 | O49: 0.0669 | P49: 0.0665 | Q49: 0.0662 | R49: 0.0658 | S49: 0.0653 | T49: 0.0649 | U49: 0.0645 | V49: 0.064 | W49: 0.0635 | X49: 0.0631 | Y49: 0.0626 | Z49: 0.0621 | AA49: 0.0616 | AB49: 0.0611 | AC49: 0.0606 | AD49: 0.0601 | AE49: 0.0597 | AF49: 0.0592 | AG49: 0.0587 | AH49: 0.0582 | AI49: 0.0578 | AJ49: 0.0573 | AK49: 0.0569 | AL49: 0.0565 | AM49: 0.056 | AN49: 0.0556 | AO49: 0.0552 | AP49: 0.0548
A50: 60 | B50: 0.0721 | C50: 0.0719 | D50: 0.0718 | E50: 0.0716 | F50: 0.0714 | G50: 0.0712 | H50: 0.071 | I50: 0.0708 | J50: 0.0705 | K50: 0.0702 | L50: 0.0699 | M50: 0.0696 | N50: 0.0692 | O50: 0.0688 | P50: 0.0684 | Q50: 0.068 | R50: 0.0676 | S50: 0.0671 | T50: 0.0667 | U50: 0.0662 | V50: 0.0657 | W50: 0.0652 | X50: 0.0647 | Y50: 0.0642 | Z50: 0.0637 | AA50: 0.0631 | AB50: 0.0626 | AC50: 0.0621 | AD50: 0.0616 | AE50: 0.061 | AF50: 0.0605 | AG50: 0.06 | AH50: 0.0595 | AI50: 0.059 | AJ50: 0.0585 | AK50: 0.0581 | AL50: 0.0576 | AM50: 0.0571 | AN50: 0.0567 | AO50: 0.0563 | AP50: 0.0558
A51: 61 | B51: 0.0743 | C51: 0.0742 | D51: 0.074 | E51: 0.0738 | F51: 0.0736 | G51: 0.0734 | H51: 0.0732 | I51: 0.0729 | J51: 0.0726 | K51: 0.0723 | L51: 0.072 | M51: 0.0716 | N51: 0.0713 | O51: 0.0709 | P51: 0.0704 | Q51: 0.07 | R51: 0.0695 | S51: 0.069 | T51: 0.0685 | U51: 0.068 | V51: 0.0675 | W51: 0.067 | X51: 0.0664 | Y51: 0.0659 | Z51: 0.0653 | AA51: 0.0647 | AB51: 0.0642 | AC51: 0.0636 | AD51: 0.0631 | AE51: 0.0625 | AF51: 0.0619 | AG51: 0.0614 | AH51: 0.0609 | AI51: 0.0603 | AJ51: 0.0598 | AK51: 0.0593 | AL51: 0.0588 | AM51: 0.0583 | AN51: 0.0578 | AO51: 0.0574 | AP51: 0.0569
A52: 62 | B52: 0.0767 | C52: 0.0765 | D52: 0.0764 | E52: 0.0762 | F52: 0.076 | G52: 0.0758 | H52: 0.0755 | I52: 0.0752 | J52: 0.0749 | K52: 0.0746 | L52: 0.0743 | M52: 0.0739 | N52: 0.0735 | O52: 0.073 | P52: 0.0726 | Q52: 0.0721 | R52: 0.0716 | S52: 0.0711 | T52: 0.0706 | U52: 0.07 | V52: 0.0694 | W52: 0.0689 | X52: 0.0683 | Y52: 0.0677 | Z52: 0.0671 | AA52: 0.0665 | AB52: 0.0659 | AC52: 0.0653 | AD52: 0.0647 | AE52: 0.0641 | AF52: 0.0635 | AG52: 0.0629 | AH52: 0.0623 | AI52: 0.0617 | AJ52: 0.0612 | AK52: 0.0606 | AL52: 0.0601 | AM52: 0.0596 | AN52: 0.059 | AO52: 0.0585 | AP52: 0.0581
A53: 63 | B53: 0.0792 | C53: 0.0791 | D53: 0.0789 | E53: 0.0787 | F53: 0.0785 | G53: 0.0783 | H53: 0.078 | I53: 0.0777 | J53: 0.0774 | K53: 0.0771 | L53: 0.0767 | M53: 0.0763 | N53: 0.0758 | O53: 0.0754 | P53: 0.0749 | Q53: 0.0744 | R53: 0.0739 | S53: 0.0733 | T53: 0.0727 | U53: 0.0721 | V53: 0.0715 | W53: 0.0709 | X53: 0.0703 | Y53: 0.0696 | Z53: 0.069 | AA53: 0.0683 | AB53: 0.0677 | AC53: 0.067 | AD53: 0.0664 | AE53: 0.0657 | AF53: 0.0651 | AG53: 0.0644 | AH53: 0.0638 | AI53: 0.0632 | AJ53: 0.0626 | AK53: 0.062 | AL53: 0.0614 | AM53: 0.0609 | AN53: 0.0603 | AO53: 0.0598 | AP53: 0.0593
A54: 64 | B54: 0.082 | C54: 0.0818 | D54: 0.0817 | E54: 0.0815 | F54: 0.0812 | G54: 0.081 | H54: 0.0807 | I54: 0.0804 | J54: 0.0801 | K54: 0.0797 | L54: 0.0793 | M54: 0.0789 | N54: 0.0784 | O54: 0.0779 | P54: 0.0774 | Q54: 0.0768 | R54: 0.0763 | S54: 0.0757 | T54: 0.0751 | U54: 0.0744 | V54: 0.0738 | W54: 0.0731 | X54: 0.0724 | Y54: 0.0717 | Z54: 0.071 | AA54: 0.0703 | AB54: 0.0696 | AC54: 0.0689 | AD54: 0.0682 | AE54: 0.0675 | AF54: 0.0668 | AG54: 0.0661 | AH54: 0.0654 | AI54: 0.0648 | AJ54: 0.0641 | AK54: 0.0635 | AL54: 0.0629 | AM54: 0.0623 | AN54: 0.0617 | AO54: 0.0611 | AP54: 0.0606
A55: 65 | B55: 0.085 | C55: 0.0848 | D55: 0.0846 | E55: 0.0844 | F55: 0.0842 | G55: 0.0839 | H55: 0.0836 | I55: 0.0833 | J55: 0.0829 | K55: 0.0825 | L55: 0.0821 | M55: 0.0817 | N55: 0.0812 | O55: 0.0806 | P55: 0.0801 | Q55: 0.0795 | R55: 0.0789 | S55: 0.0782 | T55: 0.0776 | U55: 0.0769 | V55: 0.0762 | W55: 0.0754 | X55: 0.0747 | Y55: 0.074 | Z55: 0.0732 | AA55: 0.0724 | AB55: 0.0717 | AC55: 0.0709 | AD55: 0.0701 | AE55: 0.0694 | AF55: 0.0686 | AG55: 0.0679 | AH55: 0.0672 | AI55: 0.0665 | AJ55: 0.0658 | AK55: 0.0651 | AL55: 0.0644 | AM55: 0.0638 | AN55: 0.0631 | AO55: 0.0625 | AP55: 0.0619
A56: 66 | B56: 0.0881 | C56: 0.088 | D56: 0.0878 | E56: 0.0876 | F56: 0.0873 | G56: 0.0871 | H56: 0.0867 | I56: 0.0864 | J56: 0.086 | K56: 0.0856 | L56: 0.0851 | M56: 0.0847 | N56: 0.0841 | O56: 0.0836 | P56: 0.083 | Q56: 0.0823 | R56: 0.0817 | S56: 0.081 | T56: 0.0803 | U56: 0.0795 | V56: 0.0787 | W56: 0.078 | X56: 0.0772 | Y56: 0.0764 | Z56: 0.0755 | AA56: 0.0747 | AB56: 0.0739 | AC56: 0.0731 | AD56: 0.0722 | AE56: 0.0714 | AF56: 0.0706 | AG56: 0.0698 | AH56: 0.069 | AI56: 0.0683 | AJ56: 0.0675 | AK56: 0.0668 | AL56: 0.066 | AM56: 0.0653 | AN56: 0.0647 | AO56: 0.064 | AP56: 0.0633
A57: 67 | B57: 0.0916 | C57: 0.0914 | D57: 0.0912 | E57: 0.091 | F57: 0.0907 | G57: 0.0904 | H57: 0.0901 | I57: 0.0898 | J57: 0.0894 | K57: 0.0889 | L57: 0.0884 | M57: 0.0879 | N57: 0.0873 | O57: 0.0867 | P57: 0.0861 | Q57: 0.0854 | R57: 0.0847 | S57: 0.0839 | T57: 0.0832 | U57: 0.0824 | V57: 0.0815 | W57: 0.0807 | X57: 0.0798 | Y57: 0.0789 | Z57: 0.0781 | AA57: 0.0772 | AB57: 0.0763 | AC57: 0.0754 | AD57: 0.0745 | AE57: 0.0736 | AF57: 0.0727 | AG57: 0.0719 | AH57: 0.071 | AI57: 0.0702 | AJ57: 0.0693 | AK57: 0.0686 | AL57: 0.0678 | AM57: 0.067 | AN57: 0.0663 | AO57: 0.0656 | AP57: 0.0649
A58: 68 | B58: 0.0953 | C58: 0.0951 | D58: 0.0949 | E58: 0.0947 | F58: 0.0944 | G58: 0.0941 | H58: 0.0938 | I58: 0.0934 | J58: 0.093 | K58: 0.0925 | L58: 0.092 | M58: 0.0914 | N58: 0.0908 | O58: 0.0901 | P58: 0.0895 | Q58: 0.0887 | R58: 0.088 | S58: 0.0871 | T58: 0.0863 | U58: 0.0854 | V58: 0.0845 | W58: 0.0836 | X58: 0.0827 | Y58: 0.0817 | Z58: 0.0808 | AA58: 0.0798 | AB58: 0.0788 | AC58: 0.0778 | AD58: 0.0769 | AE58: 0.0759 | AF58: 0.075 | AG58: 0.074 | AH58: 0.0731 | AI58: 0.0722 | AJ58: 0.0713 | AK58: 0.0705 | AL58: 0.0696 | AM58: 0.0688 | AN58: 0.068 | AO58: 0.0672 | AP58: 0.0665
A59: 69 | B59: 0.0993 | C59: 0.0991 | D59: 0.0989 | E59: 0.0987 | F59: 0.0984 | G59: 0.0981 | H59: 0.0977 | I59: 0.0973 | J59: 0.0969 | K59: 0.0964 | L59: 0.0958 | M59: 0.0952 | N59: 0.0945 | O59: 0.0939 | P59: 0.0931 | Q59: 0.0923 | R59: 0.0915 | S59: 0.0906 | T59: 0.0897 | U59: 0.0888 | V59: 0.0878 | W59: 0.0868 | X59: 0.0858 | Y59: 0.0847 | Z59: 0.0837 | AA59: 0.0826 | AB59: 0.0816 | AC59: 0.0805 | AD59: 0.0795 | AE59: 0.0784 | AF59: 0.0774 | AG59: 0.0764 | AH59: 0.0754 | AI59: 0.0744 | AJ59: 0.0734 | AK59: 0.0725 | AL59: 0.0716 | AM59: 0.0707 | AN59: 0.0698 | AO59: 0.069 | AP59: 0.0682
A60: 70 | B60: 0.1037 | C60: 0.1035 | D60: 0.1033 | E60: 0.103 | F60: 0.1027 | G60: 0.1024 | H60: 0.102 | I60: 0.1016 | J60: 0.1011 | K60: 0.1005 | L60: 0.1 | M60: 0.0993 | N60: 0.0986 | O60: 0.0979 | P60: 0.0971 | Q60: 0.0962 | R60: 0.0953 | S60: 0.0944 | T60: 0.0934 | U60: 0.0923 | V60: 0.0913 | W60: 0.0902 | X60: 0.0891 | Y60: 0.088 | Z60: 0.0868 | AA60: 0.0857 | AB60: 0.0845 | AC60: 0.0834 | AD60: 0.0822 | AE60: 0.0811 | AF60: 0.08 | AG60: 0.0789 | AH60: 0.0778 | AI60: 0.0767 | AJ60: 0.0757 | AK60: 0.0747 | AL60: 0.0737 | AM60: 0.0727 | AN60: 0.0718 | AO60: 0.0709 | AP60: 0.07
A61: 71 | B61: 0.1084 | C61: 0.1082 | D61: 0.108 | E61: 0.1077 | F61: 0.1074 | G61: 0.1071 | H61: 0.1066 | I61: 0.1062 | J61: 0.1057 | K61: 0.1051 | L61: 0.1045 | M61: 0.1038 | N61: 0.103 | O61: 0.1022 | P61: 0.1013 | Q61: 0.0994 | R61: 0.0984 | S61: 0.0984 | T61: 0.0973 | U61: 0.0962 | V61: 0.0951 | W61: 0.0939 | X61: 0.0927 | Y61: 0.0915 | Z61: 0.0902 | AA61: 0.089 | AB61: 0.0877 | AC61: 0.0865 | AD61: 0.0852 | AE61: 0.084 | AF61: 0.0828 | AG61: 0.0816 | AH61: 0.0804 | AI61: 0.0792 | AJ61: 0.0781 | AK61: 0.077 | AL61: 0.0759 | AM61: 0.0749 | AN61: 0.0739 | AO61: 0.0729 | AP61: 0.072
A62: 72 | B62: 0.1135 | C62: 0.1133 | D62: 0.1131 | E62: 0.1128 | F62: 0.1125 | G62: 0.1121 | H62: 0.1117 | I62: 0.1112 | J62: 0.1107 | K62: 0.11 | L62: 0.1094 | M62: 0.1086 | N62: 0.1078 | O62: 0.1069 | P62: 0.106 | Q62: 0.105 | R62: 0.1039 | S62: 0.1028 | T62: 0.1017 | U62: 0.1005 | V62: 0.0992 | W62: 0.0979 | X62: 0.0966 | Y62: 0.0953 | Z62: 0.0939 | AA62: 0.0925 | AB62: 0.0912 | AC62: 0.0898 | AD62: 0.0885 | AE62: 0.0871 | AF62: 0.0858 | AG62: 0.0845 | AH62: 0.0832 | AI62: 0.0819 | AJ62: 0.0807 | AK62: 0.0795 | AL62: 0.0783 | AM62: 0.0772 | AN62: 0.0761 | AO62: 0.0751 | AP62: 0.074
A63: 73 | B63: 0.1191 | C63: 0.1189 | D63: 0.1187 | E63: 0.1184 | F63: 0.118 | G63: 0.1176 | H63: 0.1172 | I63: 0.1167 | J63: 0.1161 | K63: 0.1154 | L63: 0.1147 | M63: 0.1139 | N63: 0.113 | O63: 0.1121 | P63: 0.1111 | Q63: 0.11 | R63: 0.1088 | S63: 0.1076 | T63: 0.1064 | U63: 0.105 | V63: 0.1037 | W63: 0.1023 | X63: 0.1008 | Y63: 0.0994 | Z63: 0.0979 | AA63: 0.0964 | AB63: 0.0949 | AC63: 0.0934 | AD63: 0.0919 | AE63: 0.0905 | AF63: 0.089 | AG63: 0.0876 | AH63: 0.0862 | AI63: 0.0848 | AJ63: 0.0835 | AK63: 0.0822 | AL63: 0.0809 | AM63: 0.0797 | AN63: 0.0785 | AO63: 0.0773 | AP63: 0.0762
A64: 74 | B64: 0.1252 | C64: 0.125 | D64: 0.1247 | E64: 0.1244 | F64: 0.1241 | G64: 0.1236 | H64: 0.1232 | I64: 0.1226 | J64: 0.122 | K64: 0.1213 | L64: 0.1205 | M64: 0.1196 | N64: 0.1187 | O64: 0.1177 | P64: 0.1166 | Q64: 0.1154 | R64: 0.1142 | S64: 0.1128 | T64: 0.1115 | U64: 0.11 | V64: 0.1085 | W64: 0.107 | X64: 0.1054 | Y64: 0.1038 | Z64: 0.1022 | AA64: 0.1006 | AB64: 0.0989 | AC64: 0.0973 | AD64: 0.0957 | AE64: 0.0941 | AF64: 0.0925 | AG64: 0.0909 | AH64: 0.0894 | AI64: 0.0879 | AJ64: 0.0865 | AK64: 0.085 | AL64: 0.0837 | AM64: 0.0823 | AN64: 0.081 | AO64: 0.0798 | AP64: 0.0786
A65: 75 | B65: 0.1319 | C65: 0.1316 | D65: 0.1314 | E65: 0.131 | F65: 0.1306 | G65: 0.1302 | H65: 0.1297 | I65: 0.1291 | J65: 0.1284 | K65: 0.1277 | L65: 0.1268 | M65: 0.1259 | N65: 0.1249 | O65: 0.1238 | P65: 0.1226 | Q65: 0.1213 | R65: 0.12 | S65: 0.1185 | T65: 0.117 | U65: 0.1155 | V65: 0.1138 | W65: 0.1121 | X65: 0.1104 | Y65: 0.1087 | Z65: 0.1069 | AA65: 0.1051 | AB65: 0.1033 | AC65: 0.1015 | AD65: 0.0998 | AE65: 0.098 | AF65: 0.0963 | AG65: 0.0946 | AH65: 0.0929 | AI65: 0.0913 | AJ65: 0.0897 | AK65: 0.0881 | AL65: 0.0866 | AM65: 0.0852 | AN65: 0.0837 | AO65: 0.0824 | AP65: 0.0811
A66: 76 | B66: 0.1391 | C66: 0.1389 | D66: 0.1386 | E66: 0.1382 | F66: 0.1378 | G66: 0.1374 | H66: 0.1368 | I66: 0.1362 | J66: 0.1355 | K66: 0.1347 | L66: 0.1338 | M66: 0.1328 | N66: 0.1317 | O66: 0.1305 | P66: 0.1292 | Q66: 0.1278 | R66: 0.1263 | S66: 0.1248 | T66: 0.1231 | U66: 0.1214 | V66: 0.1196 | W66: 0.1178 | X66: 0.1159 | Y66: 0.1139 | Z66: 0.112 | AA66: 0.11 | AB66: 0.1081 | AC66: 0.1061 | AD66: 0.1042 | AE66: 0.1022 | AF66: 0.1003 | AG66: 0.0985 | AH66: 0.0966 | AI66: 0.0948 | AJ66: 0.0931 | AK66: 0.0914 | AL66: 0.0898 | AM66: 0.0882 | AN66: 0.0866 | AO66: 0.0852 | AP66: 0.0837
A67: 77 | B67: 0.147 | C67: 0.1468 | D67: 0.1465 | E67: 0.1461 | F67: 0.1457 | G67: 0.1452 | H67: 0.1446 | I67: 0.144 | J67: 0.1432 | K67: 0.1423 | L67: 0.1414 | M67: 0.1403 | N67: 0.1391 | O67: 0.1378 | P67: 0.1364 | Q67: 0.1349 | R67: 0.1333 | S67: 0.1316 | T67: 0.1297 | U67: 0.1279 | V67: 0.1259 | W67: 0.1239 | X67: 0.1218 | Y67: 0.1197 | Z67: 0.1176 | AA67: 0.1154 | AB67: 0.1132 | AC67: 0.1111 | AD67: 0.1089 | AE67: 0.1068 | AF67: 0.1047 | AG67: 0.1027 | AH67: 0.1007 | AI67: 0.0987 | AJ67: 0.0968 | AK67: 0.095 | AL67: 0.0932 | AM67: 0.0914 | AN67: 0.0898 | AO67: 0.0881 | AP67: 0.0866
A68: 78 | B68: 0.1558 | C68: 0.1555 | D68: 0.1552 | E68: 0.1548 | F68: 0.1544 | G68: 0.1538 | H68: 0.1532 | I68: 0.1525 | J68: 0.1517 | K68: 0.1507 | L68: 0.1497 | M68: 0.1485 | N68: 0.1472 | O68: 0.1458 | P68: 0.1443 | Q68: 0.1426 | R68: 0.1409 | S68: 0.139 | T68: 0.137 | U68: 0.1349 | V68: 0.1328 | W68: 0.1306 | X68: 0.1283 | Y68: 0.126 | Z68: 0.1236 | AA68: 0.1212 | AB68: 0.1189 | AC68: 0.1165 | AD68: 0.1141 | AE68: 0.1118 | AF68: 0.1095 | AG68: 0.1073 | AH68: 0.1051 | AI68: 0.1029 | AJ68: 0.1008 | AK68: 0.0988 | AL68: 0.0968 | AM68: 0.0949 | AN68: 0.0931 | AO68: 0.0913 | AP68: 0.0896
A69: 79 | B69: 0.1653 | C69: 0.1651 | D69: 0.1647 | E69: 0.1643 | F69: 0.1638 | G69: 0.1633 | H69: 0.1626 | I69: 0.1619 | J69: 0.161 | K69: 0.16 | L69: 0.1588 | M69: 0.1576 | N69: 0.1562 | O69: 0.1546 | P69: 0.153 | Q69: 0.1512 | R69: 0.1492 | S69: 0.1472 | T69: 0.145 | U69: 0.1427 | V69: 0.1404 | W69: 0.1379 | X69: 0.1354 | Y69: 0.1328 | Z69: 0.1302 | AA69: 0.1276 | AB69: 0.125 | AC69: 0.1224 | AD69: 0.1198 | AE69: 0.1172 | AF69: 0.1147 | AG69: 0.1122 | AH69: 0.1098 | AI69: 0.1074 | AJ69: 0.1051 | AK69: 0.1029 | AL69: 0.1008 | AM69: 0.0987 | AN69: 0.0967 | AO69: 0.0948 | AP69: 0.0929
A70: 80 | B70: 0.1759 | C70: 0.1756 | D70: 0.1752 | E70: 0.1748 | F70: 0.1743 | G70: 0.1737 | H70: 0.173 | I70: 0.1722 | J70: 0.1712 | K70: 0.1701 | L70: 0.1689 | M70: 0.1675 | N70: 0.166 | O70: 0.1643 | P70: 0.1625 | Q70: 0.1605 | R70: 0.1584 | S70: 0.1562 | T70: 0.1538 | U70: 0.1513 | V70: 0.1487 | W70: 0.146 | X70: 0.1432 | Y70: 0.1403 | Z70: 0.1375 | AA70: 0.1346 | AB70: 0.1317 | AC70: 0.1288 | AD70: 0.1259 | AE70: 0.1231 | AF70: 0.1203 | AG70: 0.1176 | AH70: 0.1149 | AI70: 0.1123 | AJ70: 0.1098 | AK70: 0.1073 | AL70: 0.105 | AM70: 0.1027 | AN70: 0.1005 | AO70: 0.0984 | AP70: 0.0964

Sheet Simulations (2) (hidden)
A1: Année | B1: Mois | C1: Provision | D1: Provision | E1: Provision | F1: Cotisation | G1: Cotisation | H1: Intérêts | I1: Cumul de | J1: Provision de | K1: Provision de | L1: Provision de | N1: Gains | Q1: 5 ANS | R1: 10 ANS | S1: 15 ANS | T1: 20 ANS
C2: ouverture 01 | D2: ouverture 02 | E2: ouverture 03 | G2: investie | I2: cotisations | J2: clôture 01 | K2: clôture 02 | L2: clôture 03 | N2: Assuré | P2: CAPITAL A TERME | Q2: 0.03
A3: 1 | B3: 1 | C3: 0 | F3: =Prime_périodique -> 65600 | G3: =+F3*PI_1 -> 63632 | H3: =+L3-G3 ->  | I3: =+F3 -> 65600 | J3: =FV(i_p_1,B3,-G3,0,1) -> 64892.16194 | L3: =+FV(#REF!,B3,-G3,0,1) ->  | M3: =+G3 -> 63632 | P3: CUMUL | Q3: 0.015
B4: =+B3+1 -> 2 | C4: =L3 ->  | F4: =F3 -> 65600 | G4: 63632 | H4: =+L4-M4 ->  | I4: =+I3+F4 -> 131200 | J4: 131069.4419 | L4: =+FV(#REF!,B4,-G4,0,1) ->  | M4: =+G4+M3 -> 127264
B5: =+B4+1 -> 3 | C5: =L4 ->  | F5: =F4 -> 65600 | G5: 63632 | H5: =+L5-M5 ->  | I5: =+I4+F5 -> 196800 | J5: 198557.2904 | L5: =+FV(#REF!,B5,-G5,0,1) ->  | M5: 190896
B6: 4 | F6: 65600 | G6: 63632 | H6: =+L6-M6 ->  | I6: 262400 | J6: 267381.6616 | L6: =+FV(#REF!,B6,-G6,0,1) ->  | M6: 254528
B7: 5 | F7: 65600 | G7: 63632 | I7: 328000 | J7: 337569.0239 | L7: =+FV(#REF!,B7,-G7,0,1) ->  | M7: 318160
B8: 6 | F8: 65600 | G8: 63632 | I8: 393600 | J8: 409146.37 | L8: =+FV(#REF!,B8,-G8,0,1) ->  | M8: 381792
B9: 7 | F9: =Prime_périodique -> 65600 | G9: 63632 | I9: 459200 | J9: 482141.2268 | L9: =+FV(#REF!,B9,-G9,0,1) ->  | M9: 445424
B10: 8 | F10: 65600 | G10: 63632 | I10: 524800 | J10: 556581.6667 | L10: =+FV(#REF!,B10,-G10,0,1) ->  | M10: 509056
B11: 9 | F11: 65600 | G11: 63632 | I11: 590400 | J11: 632496.3178 | L11: =+FV(#REF!,B11,-G11,0,1) ->  | M11: 572688
B12: 10 | F12: 65600 | G12: 63632 | I12: 656000 | J12: 709914.3753 | L12: =+FV(#REF!,B12,-G12,0,1) ->  | M12: 636320
B13: 11 | F13: 65600 | G13: 63632 | I13: 721600 | J13: 788865.6125 | L13: =+FV(#REF!,B13,-G13,0,1) ->  | M13: 699952
B14: 12 | F14: 65600 | G14: 63632 | I14: 787200 | J14: 869380.3922 | L14: =+FV(#REF!,B14,-G14,0,1) ->  | M14: 763584
A15: 2 | B15: 13 | F15: 65600 | G15: 63632 | I15: 852800 | J15: 951489.6789 | L15: =+FV(#REF!,B15,-G15,0,1) ->  | M15: 827216
B16: 14 | F16: 65600 | G16: 63632 | I16: 918400 | J16: 1035225.05 | L16: =+FV(#REF!,B16,-G16,0,1) ->  | M16: 890848
B17: 15 | F17: 65600 | G17: 63632 | I17: 984000 | J17: 1120618.708 | L17: =+FV(#REF!,B17,-G17,0,1) ->  | M17: 954480
B18: 16 | F18: 65600 | G18: 63632 | I18: 1049600 | J18: 1207703.494 | L18: =+FV(#REF!,B18,-G18,0,1) ->  | M18: 1018112
B19: 17 | F19: 65600 | G19: 63632 | I19: 1115200 | J19: 1296512.898 | L19: =+FV(#REF!,B19,-G19,0,1) ->  | M19: 1081744
B20: 18 | F20: 65600 | G20: 63632 | I20: 1180800 | J20: 1387081.075 | L20: =+FV(#REF!,B20,-G20,0,1) ->  | M20: 1145376
B21: 19 | F21: 65600 | G21: 63632 | I21: 1246400 | J21: 1479442.856 | L21: =+FV(#REF!,B21,-G21,0,1) ->  | M21: 1209008
B22: 20 | F22: 65600 | G22: 63632 | I22: 1312000 | J22: 1573633.76 | L22: =+FV(#REF!,B22,-G22,0,1) ->  | M22: 1272640
B23: 21 | F23: 65600 | G23: 63632 | I23: 1377600 | J23: 1669690.012 | L23: =+FV(#REF!,B23,-G23,0,1) ->  | M23: 1336272
B24: 22 | F24: 65600 | G24: 63632 | I24: 1443200 | J24: 1767648.553 | L24: =+FV(#REF!,B24,-G24,0,1) ->  | M24: 1399904
B25: 23 | F25: 65600 | G25: 63632 | I25: 1508800 | J25: 1867547.055 | L25: =+FV(#REF!,B25,-G25,0,1) ->  | M25: 1463536
B26: 24 | F26: 65600 | G26: 63632 | I26: 1574400 | J26: 1969423.937 | L26: =+FV(#REF!,B26,-G26,0,1) ->  | M26: 1527168
A27: 3 | B27: 25 | F27: 65600 | G27: 63632 | I27: 1640000 | J27: 2073318.379 | L27: =+FV(#REF!,B27,-G27,0,1) ->  | M27: 1590800
B28: 26 | F28: 65600 | G28: 63632 | I28: 1705600 | J28: 2179270.336 | L28: =+FV(#REF!,B28,-G28,0,1) ->  | M28: 1654432
B29: 27 | F29: 65600 | G29: 63632 | I29: 1771200 | J29: 2287320.556 | L29: =+FV(#REF!,B29,-G29,0,1) ->  | M29: 1718064
B30: 28 | F30: 65600 | G30: 63632 | I30: 1836800 | J30: 2397510.592 | L30: =+FV(#REF!,B30,-G30,0,1) ->  | M30: 1781696
B31: 29 | F31: 65600 | G31: 63632 | I31: 1902400 | J31: 2509882.82 | L31: =+FV(#REF!,B31,-G31,0,1) ->  | M31: 1845328
B32: 30 | F32: 65600 | G32: 63632 | I32: 1968000 | J32: 2624480.457 | L32: =+FV(#REF!,B32,-G32,0,1) ->  | M32: 1908960
B33: 31 | F33: 65600 | G33: 63632 | I33: 2033600 | J33: 2741347.575 | L33: =+FV(#REF!,B33,-G33,0,1) ->  | M33: 1972592
B34: 32 | F34: 65600 | G34: 63632 | I34: 2099200 | J34: 2860529.117 | L34: =+FV(#REF!,B34,-G34,0,1) ->  | M34: 2036224
B35: 33 | F35: 65600 | G35: =+F35*PI_1 -> 63632 | I35: 2164800 | J35: =FV(i_p_1,B35,-G35,0,1) -> 2982070.92 | L35: =+FV(#REF!,B35,-G35,0,1) ->  | M35: 2099856
B36: 34 | F36: 65600 | G36: 63632 | I36: 2230400 | J36: 3106019.724 | L36: =+FV(#REF!,B36,-G36,0,1) ->  | M36: =+G36+M35 -> 2163488
B37: 35 | F37: 65600 | G37: 63632 | I37: 2296000 | J37: 3232423.199 | L37: =+FV(#REF!,B37,-G37,0,1) ->  | M37: 2227120
B38: 36 | F38: 65600 | G38: 63632 | I38: =+I37+F38 -> 2361600 | J38: 3361329.955 | L38: =+FV(#REF!,B38,-G38,0,1) ->  | M38: 2290752
A39: 4 | B39: 37 | F39: 65600 | G39: 63632 | I39: =+I38+F39 -> 2427200 | J39: 3492789.568 | L39: =+FV(#REF!,B39,-G39,0,1) ->  | M39: 2354384
B40: 38 | F40: 65600 | G40: 63632 | I40: 2492800 | J40: 3626852.595 | L40: =+FV(#REF!,B40,-G40,0,1) ->  | M40: 2418016
B41: 39 | F41: 65600 | G41: 63632 | I41: 2558400 | J41: 3763570.593 | L41: =+FV(#REF!,B41,-G41,0,1) ->  | M41: 2481648
B42: 40 | F42: 65600 | G42: 63632 | I42: 2624000 | J42: 3902996.141 | L42: =+FV(#REF!,B42,-G42,0,1) ->  | M42: 2545280
B43: 41 | F43: 65600 | G43: 63632 | I43: 2689600 | J43: 4045182.859 | L43: =+FV(#REF!,B43,-G43,0,1) ->  | M43: 2608912
B44: 42 | F44: 65600 | G44: 63632 | I44: 2755200 | J44: 4190185.428 | L44: =+FV(#REF!,B44,-G44,0,1) ->  | M44: 2672544
B45: 43 | F45: 65600 | G45: 63632 | I45: 2820800 | J45: 4338059.615 | L45: =+FV(#REF!,B45,-G45,0,1) ->  | M45: 2736176
B46: 44 | F46: 65600 | G46: 63632 | I46: 2886400 | J46: 4488862.288 | L46: =+FV(#REF!,B46,-G46,0,1) ->  | M46: 2799808
B47: 45 | F47: 65600 | G47: 63632 | I47: 2952000 | J47: 4642651.442 | L47: =+FV(#REF!,B47,-G47,0,1) ->  | M47: 2863440
B48: 46 | F48: 65600 | G48: 63632 | I48: 3017600 | J48: 4799486.221 | L48: =+FV(#REF!,B48,-G48,0,1) ->  | M48: 2927072
B49: 47 | F49: 65600 | G49: 63632 | I49: 3083200 | J49: 4959426.941 | L49: =+FV(#REF!,B49,-G49,0,1) ->  | M49: 2990704
B50: 48 | F50: 65600 | G50: 63632 | I50: 3148800 | J50: 5122535.112 | L50: =+FV(#REF!,B50,-G50,0,1) ->  | M50: 3054336
A51: 5 | B51: 49 | F51: 65600 | G51: 63632 | I51: 3214400 | J51: 5288873.461 | L51: =+FV(#REF!,B51,-G51,0,1) ->  | M51: 3117968
B52: 50 | F52: 65600 | G52: 63632 | I52: 3280000 | J52: 5458505.958 | L52: =+FV(#REF!,B52,-G52,0,1) ->  | M52: 3181600
B53: 51 | F53: 65600 | G53: 63632 | I53: 3345600 | J53: 5631497.841 | L53: =+FV(#REF!,B53,-G53,0,1) ->  | M53: 3245232
B54: 52 | F54: 65600 | G54: 63632 | I54: 3411200 | J54: 5807915.638 | L54: =+FV(#REF!,B54,-G54,0,1) ->  | M54: 3308864
B55: 53 | F55: 65600 | G55: 63632 | I55: 3476800 | J55: 5987827.197 | L55: =+FV(#REF!,B55,-G55,0,1) ->  | M55: 3372496
B56: 54 | F56: 65600 | G56: 63632 | I56: 3542400 | J56: 6171301.706 | L56: =+FV(#REF!,B56,-G56,0,1) ->  | M56: 3436128
B57: 55 | F57: 65600 | G57: 63632 | I57: 3608000 | J57: 6358409.727 | L57: =+FV(#REF!,B57,-G57,0,1) ->  | M57: 3499760
B58: 56 | F58: 65600 | G58: 63632 | I58: 3673600 | J58: 6549223.216 | L58: =+FV(#REF!,B58,-G58,0,1) ->  | M58: 3563392
B59: 57 | F59: 65600 | G59: 63632 | I59: 3739200 | J59: 6743815.558 | L59: =+FV(#REF!,B59,-G59,0,1) ->  | M59: 3627024
B60: 58 | F60: 65600 | G60: 63632 | I60: =+I59+F60 -> 3804800 | J60: 6942261.587 | L60: =+FV(#REF!,B60,-G60,0,1) ->  | M60: 3690656
B61: 59 | F61: 65600 | G61: 63632 | I61: =+I60+F61 -> 3870400 | J61: 7144637.622 | L61: =+FV(#REF!,B61,-G61,0,1) ->  | M61: 3754288
B62: 60 | F62: 65600 | G62: 63632 | I62: 3936000 | J62: 7351021.492 | L62: =+FV(#REF!,B62,-G62,0,1) ->  | M62: 3817920
A63: 6 | B63: 61 | F63: 65600 | G63: 63632 | I63: 4001600 | L63: =+FV(#REF!,B63,-G63,0,1) ->  | M63: 3881552
B64: 62 | F64: 65600 | G64: 63632 | I64: 4067200 | L64: =+FV(#REF!,B64,-G64,0,1) ->  | M64: 3945184
B65: 63 | F65: 65600 | G65: 63632 | I65: 4132800 | L65: =+FV(#REF!,B65,-G65,0,1) ->  | M65: 4008816
B66: 64 | F66: 65600 | G66: 63632 | I66: 4198400 | L66: =+FV(#REF!,B66,-G66,0,1) ->  | M66: 4072448
B67: 65 | F67: 65600 | G67: =+F67*PI_1 -> 63632 | I67: 4264000 | L67: =+FV(#REF!,B67,-G67,0,1) ->  | M67: 4136080
B68: 66 | F68: 65600 | G68: 63632 | I68: 4329600 | L68: =+FV(#REF!,B68,-G68,0,1) ->  | M68: 4199712
B69: =+B68+1 -> 67 | C69: =L68 ->  | F69: 65600 | G69: 63632 | I69: 4395200 | L69: =+FV(#REF!,B69,-G69,0,1) ->  | M69: =+G69+M68 -> 4263344
B70: 68 | F70: 65600 | G70: 63632 | H70: =+L70-M70 ->  | I70: 4460800 | L70: =+FV(#REF!,B70,-G70,0,1) ->  | M70: 4326976
B71: 69 | F71: 65600 | G71: 63632 | I71: 4526400 | L71: =+FV(#REF!,B71,-G71,0,1) ->  | M71: 4390608
B72: 70 | F72: 65600 | G72: 63632 | I72: 4592000 | L72: =+FV(#REF!,B72,-G72,0,1) ->  | M72: 4454240
B73: 71 | F73: =Prime_périodique -> 65600 | G73: 63632 | I73: 4657600 | L73: =+FV(#REF!,B73,-G73,0,1) ->  | M73: 4517872
B74: 72 | F74: 65600 | G74: 63632 | I74: 4723200 | L74: =+FV(#REF!,B74,-G74,0,1) ->  | M74: 4581504
A75: 7 | B75: 73 | F75: 65600 | G75: 63632 | I75: 4788800 | L75: =+FV(#REF!,B75,-G75,0,1) ->  | M75: 4645136
B76: 74 | F76: 65600 | G76: 63632 | I76: 4854400 | L76: =+FV(#REF!,B76,-G76,0,1) ->  | M76: 4708768
B77: 75 | F77: 65600 | G77: 63632 | I77: 4920000 | L77: =+FV(#REF!,B77,-G77,0,1) ->  | M77: 4772400
B78: 76 | F78: 65600 | G78: 63632 | I78: 4985600 | L78: =+FV(#REF!,B78,-G78,0,1) ->  | M78: 4836032
B79: 77 | F79: 65600 | G79: 63632 | I79: 5051200 | L79: =+FV(#REF!,B79,-G79,0,1) ->  | M79: 4899664
B80: 78 | F80: 65600 | G80: 63632 | I80: 5116800 | L80: =+FV(#REF!,B80,-G80,0,1) ->  | M80: 4963296
B81: 79 | F81: 65600 | G81: 63632 | I81: 5182400 | L81: =+FV(#REF!,B81,-G81,0,1) ->  | M81: 5026928
B82: 80 | F82: 65600 | G82: 63632 | I82: 5248000 | L82: =+FV(#REF!,B82,-G82,0,1) ->  | M82: 5090560
B83: 81 | F83: 65600 | G83: 63632 | I83: 5313600 | L83: =+FV(#REF!,B83,-G83,0,1) ->  | M83: 5154192
B84: 82 | F84: 65600 | G84: 63632 | I84: 5379200 | L84: =+FV(#REF!,B84,-G84,0,1) ->  | M84: 5217824
B85: 83 | F85: 65600 | G85: 63632 | I85: 5444800 | L85: =+FV(#REF!,B85,-G85,0,1) ->  | M85: 5281456
B86: 84 | F86: 65600 | G86: 63632 | I86: 5510400 | L86: =+FV(#REF!,B86,-G86,0,1) ->  | M86: 5345088
A87: 8 | B87: 85 | F87: 65600 | G87: 63632 | I87: 5576000 | L87: =+FV(#REF!,B87,-G87,0,1) ->  | M87: 5408720
B88: 86 | F88: 65600 | G88: 63632 | I88: 5641600 | L88: =+FV(#REF!,B88,-G88,0,1) ->  | M88: 5472352
B89: 87 | F89: 65600 | G89: 63632 | I89: 5707200 | L89: =+FV(#REF!,B89,-G89,0,1) ->  | M89: 5535984
B90: 88 | F90: 65600 | G90: 63632 | I90: 5772800 | L90: =+FV(#REF!,B90,-G90,0,1) ->  | M90: 5599616
B91: 89 | F91: 65600 | G91: 63632 | I91: 5838400 | L91: =+FV(#REF!,B91,-G91,0,1) ->  | M91: 5663248
B92: 90 | F92: 65600 | G92: 63632 | I92: 5904000 | L92: =+FV(#REF!,B92,-G92,0,1) ->  | M92: 5726880
B93: 91 | F93: 65600 | G93: 63632 | I93: 5969600 | L93: =+FV(#REF!,B93,-G93,0,1) ->  | M93: 5790512
B94: 92 | F94: 65600 | G94: 63632 | I94: 6035200 | L94: =+FV(#REF!,B94,-G94,0,1) ->  | M94: 5854144
B95: 93 | F95: 65600 | G95: 63632 | I95: 6100800 | L95: =+FV(#REF!,B95,-G95,0,1) ->  | M95: 5917776
B96: 94 | F96: 65600 | G96: 63632 | I96: 6166400 | L96: =+FV(#REF!,B96,-G96,0,1) ->  | M96: 5981408
B97: 95 | F97: 65600 | G97: 63632 | I97: 6232000 | L97: =+FV(#REF!,B97,-G97,0,1) ->  | M97: 6045040
B98: 96 | F98: 65600 | G98: 63632 | I98: 6297600 | L98: =+FV(#REF!,B98,-G98,0,1) ->  | M98: 6108672
A99: 9 | B99: 97 | F99: 65600 | G99: =+F99*PI_1 -> 63632 | I99: 6363200 | L99: =+FV(#REF!,B99,-G99,0,1) ->  | M99: 6172304
B100: 98 | F100: 65600 | G100: 63632 | I100: 6428800 | L100: =+FV(#REF!,B100,-G100,0,1) ->  | M100: 6235936
B101: 99 | F101: 65600 | G101: 63632 | I101: 6494400 | L101: =+FV(#REF!,B101,-G101,0,1) ->  | M101: 6299568
B102: 100 | F102: 65600 | G102: 63632 | I102: 6560000 | L102: =+FV(#REF!,B102,-G102,0,1) ->  | M102: 6363200
B103: 101 | F103: 65600 | G103: 63632 | I103: 6625600 | L103: =+FV(#REF!,B103,-G103,0,1) ->  | M103: 6426832
B104: 102 | F104: 65600 | G104: 63632 | I104: 6691200 | L104: =+FV(#REF!,B104,-G104,0,1) ->  | M104: 6490464
B105: 103 | F105: 65600 | G105: 63632 | I105: 6756800 | L105: =+FV(#REF!,B105,-G105,0,1) ->  | M105: 6554096
B106: 104 | F106: 65600 | G106: 63632 | I106: 6822400 | L106: =+FV(#REF!,B106,-G106,0,1) ->  | M106: 6617728
B107: 105 | F107: 65600 | G107: 63632 | I107: 6888000 | L107: =+FV(#REF!,B107,-G107,0,1) ->  | M107: 6681360
B108: 106 | F108: 65600 | G108: 63632 | I108: 6953600 | L108: =+FV(#REF!,B108,-G108,0,1) ->  | M108: 6744992
B109: 107 | F109: 65600 | G109: 63632 | I109: 7019200 | L109: =+FV(#REF!,B109,-G109,0,1) ->  | M109: 6808624
B110: 108 | F110: 65600 | G110: 63632 | I110: 7084800 | L110: =+FV(#REF!,B110,-G110,0,1) ->  | M110: 6872256
A111: 10 | B111: 109 | F111: 65600 | G111: =+F111*PI_2 -> 63632 | I111: 7150400 | L111: =+FV(#REF!,B111,-G111,0,1) ->  | M111: 6935888
B112: 110 | F112: 65600 | G112: 63632 | I112: 7216000 | L112: =+FV(#REF!,B112,-G112,0,1) ->  | M112: 6999520
B113: 111 | F113: 65600 | G113: 63632 | I113: 7281600 | L113: =+FV(#REF!,B113,-G113,0,1) ->  | M113: 7063152
B114: 112 | F114: 65600 | G114: 63632 | I114: 7347200 | L114: =+FV(#REF!,B114,-G114,0,1) ->  | M114: 7126784
B115: 113 | F115: 65600 | G115: 63632 | I115: 7412800 | L115: =+FV(#REF!,B115,-G115,0,1) ->  | M115: 7190416
B116: 114 | F116: 65600 | G116: 63632 | I116: 7478400 | L116: =+FV(#REF!,B116,-G116,0,1) ->  | M116: 7254048
B117: 115 | F117: 65600 | G117: 63632 | I117: 7544000 | L117: =+FV(#REF!,B117,-G117,0,1) ->  | M117: 7317680
B118: 116 | F118: 65600 | G118: 63632 | I118: 7609600 | L118: =+FV(#REF!,B118,-G118,0,1) ->  | M118: 7381312
B119: 117 | F119: 65600 | G119: 63632 | I119: 7675200 | L119: =+FV(#REF!,B119,-G119,0,1) ->  | M119: 7444944
B120: 118 | F120: 65600 | G120: 63632 | I120: 7740800 | L120: =+FV(#REF!,B120,-G120,0,1) ->  | M120: 7508576
B121: 119 | F121: 65600 | G121: 63632 | I121: 7806400 | L121: =+FV(#REF!,B121,-G121,0,1) ->  | M121: 7572208
B122: 120 | F122: 65600 | G122: 63632 | I122: 7872000 | L122: =+FV(#REF!,B122,-G122,0,1) ->  | M122: 7635840
A123: 11 | B123: 121 | F123: 65600 | G123: 63632 | I123: 7937600 | L123: =+FV(#REF!,B123,-G123,0,1) ->  | M123: 7699472
B124: 122 | F124: 65600 | G124: 63632 | I124: 8003200 | L124: =+FV(#REF!,B124,-G124,0,1) ->  | M124: 7763104
B125: 123 | F125: 65600 | G125: 63632 | I125: =+I124+F125 -> 8068800 | L125: =+FV(#REF!,B125,-G125,0,1) ->  | M125: 7826736
B126: 124 | F126: 65600 | G126: 63632 | I126: 8134400 | L126: =+FV(#REF!,B126,-G126,0,1) ->  | M126: 7890368
B127: 125 | F127: 65600 | G127: 63632 | I127: 8200000 | L127: =+FV(#REF!,B127,-G127,0,1) ->  | M127: 7954000
B128: 126 | F128: 65600 | G128: 63632 | I128: 8265600 | L128: =+FV(#REF!,B128,-G128,0,1) ->  | M128: 8017632
B129: 127 | F129: 65600 | G129: 63632 | I129: 8331200 | L129: =+FV(#REF!,B129,-G129,0,1) ->  | M129: 8081264
B130: 128 | F130: 65600 | G130: 63632 | I130: 8396800 | L130: =+FV(#REF!,B130,-G130,0,1) ->  | M130: 8144896
B131: 129 | F131: 65600 | G131: 63632 | I131: 8462400 | L131: =+FV(#REF!,B131,-G131,0,1) ->  | M131: 8208528
B132: 130 | F132: 65600 | G132: 63632 | I132: 8528000 | L132: =+FV(#REF!,B132,-G132,0,1) ->  | M132: 8272160
B133: =+B132+1 -> 131 | C133: =L132 ->  | F133: 65600 | G133: 63632 | I133: 8593600 | L133: =+FV(#REF!,B133,-G133,0,1) ->  | M133: =+G133+M132 -> 8335792
B134: 132 | F134: 65600 | G134: 63632 | H134: =+L134-M134 ->  | I134: 8659200 | L134: =+FV(#REF!,B134,-G134,0,1) ->  | M134: 8399424
A135: 12 | B135: 133 | F135: 65600 | G135: 63632 | I135: 8724800 | L135: =+FV(#REF!,B135,-G135,0,1) ->  | M135: 8463056
B136: 134 | F136: 65600 | G136: 63632 | I136: 8790400 | L136: =+FV(#REF!,B136,-G136,0,1) ->  | M136: 8526688
B137: 135 | F137: =Prime_périodique -> 65600 | G137: 63632 | I137: 8856000 | L137: =+FV(#REF!,B137,-G137,0,1) ->  | M137: 8590320
B138: 136 | F138: 65600 | G138: 63632 | I138: 8921600 | L138: =+FV(#REF!,B138,-G138,0,1) ->  | M138: 8653952
B139: 137 | F139: 65600 | G139: 63632 | I139: 8987200 | L139: =+FV(#REF!,B139,-G139,0,1) ->  | M139: 8717584
B140: 138 | F140: 65600 | G140: 63632 | I140: 9052800 | L140: =+FV(#REF!,B140,-G140,0,1) ->  | M140: 8781216
B141: 139 | F141: 65600 | G141: 63632 | I141: 9118400 | L141: =+FV(#REF!,B141,-G141,0,1) ->  | M141: 8844848
B142: 140 | F142: 65600 | G142: 63632 | I142: 9184000 | L142: =+FV(#REF!,B142,-G142,0,1) ->  | M142: 8908480
B143: 141 | F143: 65600 | G143: =+F143*PI_2 -> 63632 | I143: 9249600 | L143: =+FV(#REF!,B143,-G143,0,1) ->  | M143: 8972112
B144: 142 | F144: 65600 | G144: 63632 | I144: 9315200 | L144: =+FV(#REF!,B144,-G144,0,1) ->  | M144: 9035744
B145: 143 | F145: 65600 | G145: 63632 | I145: 9380800 | L145: =+FV(#REF!,B145,-G145,0,1) ->  | M145: 9099376
B146: 144 | F146: 65600 | G146: 63632 | I146: 9446400 | L146: =+FV(#REF!,B146,-G146,0,1) ->  | M146: 9163008
A147: 13 | B147: 145 | F147: 65600 | G147: 63632 | I147: 9512000 | L147: =+FV(#REF!,B147,-G147,0,1) ->  | M147: 9226640
B148: 146 | F148: 65600 | G148: 63632 | I148: 9577600 | L148: =+FV(#REF!,B148,-G148,0,1) ->  | M148: 9290272
B149: 147 | F149: 65600 | G149: 63632 | I149: 9643200 | L149: =+FV(#REF!,B149,-G149,0,1) ->  | M149: 9353904
B150: 148 | F150: 65600 | G150: 63632 | I150: 9708800 | L150: =+FV(#REF!,B150,-G150,0,1) ->  | M150: 9417536
B151: 149 | F151: 65600 | G151: 63632 | I151: 9774400 | L151: =+FV(#REF!,B151,-G151,0,1) ->  | M151: 9481168
B152: 150 | F152: 65600 | G152: 63632 | I152: 9840000 | L152: =+FV(#REF!,B152,-G152,0,1) ->  | M152: 9544800
B153: 151 | F153: 65600 | G153: 63632 | I153: 9905600 | L153: =+FV(#REF!,B153,-G153,0,1) ->  | M153: 9608432
B154: 152 | F154: 65600 | G154: 63632 | I154: 9971200 | L154: =+FV(#REF!,B154,-G154,0,1) ->  | M154: 9672064
B155: 153 | F155: 65600 | G155: 63632 | I155: 10036800 | L155: =+FV(#REF!,B155,-G155,0,1) ->  | M155: 9735696
B156: 154 | F156: 65600 | G156: 63632 | I156: 10102400 | L156: =+FV(#REF!,B156,-G156,0,1) ->  | M156: 9799328
B157: 155 | F157: 65600 | G157: 63632 | I157: 10168000 | L157: =+FV(#REF!,B157,-G157,0,1) ->  | M157: 9862960
B158: 156 | F158: 65600 | G158: 63632 | I158: 10233600 | L158: =+FV(#REF!,B158,-G158,0,1) ->  | M158: 9926592
A159: 14 | B159: 157 | F159: 65600 | G159: 63632 | I159: 10299200 | L159: =+FV(#REF!,B159,-G159,0,1) ->  | M159: 9990224
B160: 158 | F160: 65600 | G160: 63632 | I160: 10364800 | L160: =+FV(#REF!,B160,-G160,0,1) ->  | M160: 10053856
B161: 159 | F161: 65600 | G161: 63632 | I161: 10430400 | L161: =+FV(#REF!,B161,-G161,0,1) ->  | M161: 10117488
B162: 160 | F162: 65600 | G162: 63632 | I162: 10496000 | L162: =+FV(#REF!,B162,-G162,0,1) ->  | M162: 10181120
B163: 161 | F163: 65600 | G163: 63632 | I163: 10561600 | L163: =+FV(#REF!,B163,-G163,0,1) ->  | M163: 10244752
B164: 162 | F164: 65600 | G164: 63632 | I164: 10627200 | L164: =+FV(#REF!,B164,-G164,0,1) ->  | M164: 10308384
B165: 163 | F165: 65600 | G165: 63632 | I165: 10692800 | L165: =+FV(#REF!,B165,-G165,0,1) ->  | M165: 10372016
B166: 164 | F166: 65600 | G166: 63632 | I166: 10758400 | L166: =+FV(#REF!,B166,-G166,0,1) ->  | M166: 10435648
B167: 165 | F167: 65600 | G167: 63632 | I167: 10824000 | L167: =+FV(#REF!,B167,-G167,0,1) ->  | M167: 10499280
B168: 166 | F168: 65600 | G168: 63632 | I168: 10889600 | L168: =+FV(#REF!,B168,-G168,0,1) ->  | M168: 10562912
B169: 167 | F169: 65600 | G169: 63632 | I169: 10955200 | L169: =+FV(#REF!,B169,-G169,0,1) ->  | M169: 10626544
B170: 168 | F170: 65600 | G170: 63632 | I170: 11020800 | L170: =+FV(#REF!,B170,-G170,0,1) ->  | M170: 10690176
A171: 15 | B171: 169 | F171: 65600 | G171: =+F171*PI_3 -> 63632 | I171: 11086400 | L171: =+FV(#REF!,B171,-G171,0,1) ->  | M171: 10753808
B172: 170 | F172: 65600 | G172: 63632 | I172: 11152000 | L172: =+FV(#REF!,B172,-G172,0,1) ->  | M172: 10817440
B173: 171 | F173: 65600 | G173: 63632 | I173: 11217600 | L173: =+FV(#REF!,B173,-G173,0,1) ->  | M173: 10881072
B174: 172 | F174: 65600 | G174: 63632 | I174: 11283200 | L174: =+FV(#REF!,B174,-G174,0,1) ->  | M174: 10944704
B175: 173 | F175: 65600 | G175: 63632 | I175: 11348800 | L175: =+FV(#REF!,B175,-G175,0,1) ->  | M175: 11008336
B176: 174 | F176: 65600 | G176: 63632 | I176: 11414400 | L176: =+FV(#REF!,B176,-G176,0,1) ->  | M176: 11071968
B177: 175 | F177: 65600 | G177: 63632 | I177: 11480000 | L177: =+FV(#REF!,B177,-G177,0,1) ->  | M177: 11135600
B178: 176 | F178: 65600 | G178: 63632 | I178: 11545600 | L178: =+FV(#REF!,B178,-G178,0,1) ->  | M178: 11199232
B179: 177 | F179: 65600 | G179: 63632 | I179: 11611200 | L179: =+FV(#REF!,B179,-G179,0,1) ->  | M179: 11262864
B180: 178 | F180: 65600 | G180: 63632 | I180: 11676800 | L180: =+FV(#REF!,B180,-G180,0,1) ->  | M180: 11326496
B181: 179 | F181: 65600 | G181: 63632 | I181: 11742400 | L181: =+FV(#REF!,B181,-G181,0,1) ->  | M181: 11390128
B182: 180 | F182: 65600 | G182: 63632 | I182: 11808000 | L182: =+FV(#REF!,B182,-G182,0,1) ->  | M182: 11453760
A183: 16 | B183: 181 | F183: 65600 | G183: 63632 | I183: 11873600 | L183: =+FV(#REF!,B183,-G183,0,1) ->  | M183: 11517392
B184: 182 | F184: 65600 | G184: 63632 | I184: 11939200 | L184: =+FV(#REF!,B184,-G184,0,1) ->  | M184: 11581024
B185: 183 | F185: 65600 | G185: 63632 | I185: 12004800 | L185: =+FV(#REF!,B185,-G185,0,1) ->  | M185: 11644656
B186: 184 | F186: 65600 | G186: 63632 | I186: 12070400 | L186: =+FV(#REF!,B186,-G186,0,1) ->  | M186: 11708288
B187: 185 | F187: 65600 | G187: 63632 | I187: 12136000 | L187: =+FV(#REF!,B187,-G187,0,1) ->  | M187: 11771920
B188: 186 | F188: 65600 | G188: 63632 | I188: 12201600 | L188: =+FV(#REF!,B188,-G188,0,1) ->  | M188: 11835552
B189: 187 | F189: 65600 | G189: 63632 | I189: =+I188+F189 -> 12267200 | L189: =+FV(#REF!,B189,-G189,0,1) ->  | M189: 11899184
B190: 188 | F190: 65600 | G190: 63632 | I190: 12332800 | L190: =+FV(#REF!,B190,-G190,0,1) ->  | M190: 11962816
B191: 189 | F191: 65600 | G191: 63632 | I191: 12398400 | L191: =+FV(#REF!,B191,-G191,0,1) ->  | M191: 12026448
B192: 190 | F192: 65600 | G192: 63632 | I192: 12464000 | L192: =+FV(#REF!,B192,-G192,0,1) ->  | M192: 12090080
B193: 191 | F193: 65600 | G193: 63632 | I193: 12529600 | L193: =+FV(#REF!,B193,-G193,0,1) ->  | M193: 12153712
B194: 192 | F194: 65600 | G194: 63632 | I194: 12595200 | L194: =+FV(#REF!,B194,-G194,0,1) ->  | M194: 12217344
A195: 17 | B195: 193 | F195: 65600 | G195: 63632 | I195: 12660800 | L195: =+FV(#REF!,B195,-G195,0,1) ->  | M195: 12280976
B196: 194 | F196: 65600 | G196: 63632 | I196: 12726400 | L196: =+FV(#REF!,B196,-G196,0,1) ->  | M196: 12344608
B197: =+B196+1 -> 195 | C197: =L196 ->  | F197: 65600 | G197: 63632 | I197: 12792000 | L197: =+FV(#REF!,B197,-G197,0,1) ->  | M197: =+G197+M196 -> 12408240
B198: 196 | F198: 65600 | G198: 63632 | H198: =+L198-M198 ->  | I198: 12857600 | L198: =+FV(#REF!,B198,-G198,0,1) ->  | M198: 12471872
B199: 197 | F199: 65600 | G199: 63632 | I199: 12923200 | L199: =+FV(#REF!,B199,-G199,0,1) ->  | M199: 12535504
B200: 198 | F200: 65600 | G200: 63632 | I200: 12988800 | L200: =+FV(#REF!,B200,-G200,0,1) ->  | M200: 12599136
... 42 more rows
